Ref No,Fund Type,Dept,Cost Centre Description    ,Description    ,Creditor Name    ,GL Code Net Amount,Payment date        
2,Revenue,CCHD,Bed Purchasing - Elderly - South,Permanent Nursing,.,1705.28, 08-Jul-2014
3,Revenue,CCHD,Bed purchasing - Elderly S117 - South,Permanent Nursing,.,2395.80, 08-Jul-2014
4,Revenue,CCHD,Bed Purchasing - Elderly - South,Permanent Nursing,.,2227.80, 08-Jul-2014
5,Revenue,CCHD,Bed Purchasing - Elderly - South,Permanent Nursing,.,1734.36, 08-Jul-2014
6,Revenue,CCHD,Bed purchasing - Under 65s PWLD - North,Permanent Residential,1 St Georges House,13266.80, 08-Jul-2014
7,Revenue,CCHD,Breakthrough and Inclusion Work,Other Supplies & Services,121Turnaround Limited,7195.97, 14-Jul-2014
8,Revenue,CCHD,Supporting People Programme,Grants to Voluntary Bodies,1625 Independent People,16692.50, 01-Jul-2014
9,Revenue,CCHD,Home Care - Elderly - South,Other Small Contracts,3 Trees Community Support Ltd,196.68, 01-Jul-2014
10,Revenue,CCHD,Home Care - Elderly - North,Other Small Contracts,3 Trees Community Support Ltd,1805.88, 01-Jul-2014
11,Revenue,CCHD,Day Care - North,Private & Voluntary Day Care,3 Trees Community Support Ltd,53.64, 01-Jul-2014
12,Revenue,CCHD,Home Care - Elderly - South,Other Small Contracts,3 Trees Community Support Ltd,196.68, 29-Jul-2014
13,Revenue,CCHD,Home Care - Elderly - North,Other Small Contracts,3 Trees Community Support Ltd,1653.90, 29-Jul-2014
14,Revenue,CCHD,Day Care - North,Private & Voluntary Day Care,3 Trees Community Support Ltd,53.64, 29-Jul-2014
15,Revenue,CCHD,Home Care - Elderly - South,Other Small Contracts,3 Trees Community Support Ltd,196.68, 29-Jul-2014
16,Revenue,CCHD,Home Care - Elderly - North,Private & Voluntary Day Care,3 Trees Community Support Ltd,1546.62, 29-Jul-2014
17,Revenue,CCHD,Home Care - Elderly - North,Other Small Contracts,3 Trees Community Support Ltd,1349.94, 29-Jul-2014
18,Revenue,CCHD,Home Care - Elderly - North,Supported Living,3 Trees Community Support Ltd,1014.69, 29-Jul-2014
19,Revenue,CCHD,Purchase of Non-Res Care - North,Private & Voluntary Day Care,3 Trees Community Support Ltd,4899.74, 03-Jul-2014
20,Revenue,CCHD,Purchase of Non-Res Care - North,Private & Voluntary Day Care,3 Trees Community Support Ltd,1861.77, 03-Jul-2014
21,Revenue,CCHD,Supported Living - South,Private & Voluntary Home Care,3 Trees Community Support Ltd,607.95, 21-Jul-2014
22,Revenue,CCHD,Supported Living - South,Private & Voluntary Home Care,3 Trees Community Support Ltd,2090.21, 25-Jul-2014
23,Revenue,CCHD,Purchase of Non-Res Care - North,Private & Voluntary Day Care,3 Trees Community Support Ltd,1718.40, 25-Jul-2014
24,Revenue,CCHD,Purchase of Non-Res Care - North,Private & Voluntary Day Care,3 Trees Community Support Ltd,1616.59, 28-Jul-2014
25,Revenue,CCHD,Purchase of Non-Res Care - North,Private & Voluntary Day Care,3 Trees Community Support Ltd,1346.35, 28-Jul-2014
26,Revenue,CCHD,Purchase of Non-Res Care - North,Private & Voluntary Day Care,3 Trees Community Support Ltd,6163.71, 28-Jul-2014
27,Revenue,CCHD,Supported Living - North,Private & Voluntary Home Care,3 Trees Community Support Ltd,9498.10, 25-Jul-2014
28,Revenue,CCHD,Supported Living - North,Private & Voluntary Home Care,3 Trees Community Support Ltd,9639.65, 25-Jul-2014
29,Revenue,CCHD,Supported Living - North,Private & Voluntary Home Care,3 Trees Community Support Ltd,9541.00, 25-Jul-2014
30,Revenue,CCHD,Bed Purchasing - Under 65s PWLD - South,Permanent Residential,5Th Floor Harlech Court,16062.20, 08-Jul-2014
31,Revenue,CCHD,Bed purchasing - Under 65s PWLD - North,Permanent Residential,5Th Floor Harlech Court,13647.88, 08-Jul-2014
32,Revenue,CCHD,Bed purchasing - Under 65s PWLD - North,Permanent Residential,5Th Floor Harlech Court,13962.28, 08-Jul-2014
33,Revenue,CCHD,Bed purchasing - Under 65s PWLD - North,Permanent Residential,5Th Floor Harlech Court,16589.72, 08-Jul-2014
34,Revenue,CCHD,Bed purchasing - Under 65s PWLD - North,Permanent Residential,5Th Floor Harlech Court,15754.12, 08-Jul-2014
35,Revenue,CCHD,Bed Purchasing - Under 65s PWLD - South,Permanent Nursing,5Th Floor Harlech Court,9898.88, 08-Jul-2014
36,Revenue,CCHD,Bed purchasing - S28A Under 65 - South,Permanent Residential,5Th Floor Harlech Court,10570.16, 08-Jul-2014
37,Revenue,CCHD,Bed purchasing - S28A Under 65 - South,Permanent Residential,5Th Floor Harlech Court,12355.24, 08-Jul-2014
38,Revenue,CCHD,Bed Purchasing - Under 65s PWLD - South,Permanent Nursing,5Th Floor Harlech Court,10240.88, 08-Jul-2014
39,Revenue,CCHD,Cambrian Green Day Service,Prop.Serv. General Repairs,A E Horder (Contracting) Limited,1760.24, 15-Jul-2014
40,Revenue,CCHD,Bed Purchasing - Frenchay Hospital,Permanent Nursing,Aabletone Nursing Home,814.88, 08-Jul-2014
41,Revenue,CCHD,Bed purchasing - Phys Dis - North,Permanent Nursing,ABI Development Limited,6970.24, 08-Jul-2014
42,Revenue,CCHD,Day Care - North,Private & Voluntary Day Care,About Me Care and Support Limited,1315.84, 03-Jul-2014
43,Revenue,CCHD,Day Care - North,Private & Voluntary Day Care,About Me Care and Support Limited,1141.08, 10-Jul-2014
44,Revenue,CCHD,Day Care - South,Private & Voluntary Day Care,About Me Care and Support Limited,780.16, 01-Jul-2014
45,Revenue,CCHD,Bed purchasing - Under 65s PWLD - North,Permanent Residential,Acorn Care Providers,5829.60, 08-Jul-2014
46,Revenue,CCHD,Older People's Commissioned Se,Grants to Voluntary Bodies,Action for Blind People,24242.25, 01-Jul-2014
47,Revenue,CCHD,SLA Grants - Support Serv,Grants to Voluntary Bodies,Age UK South Gloucestershire,5437.75, 01-Jul-2014
48,Revenue,CCHD,Home Care - Elderly - South,Other Small Contracts,Agincare Chippenham,1295.80, 17-Jul-2014
49,Revenue,CCHD,Home Care - Elderly - South,Other Small Contracts,Agincare Chippenham,1273.00, 17-Jul-2014
50,Revenue,CCHD,Home Care - Elderly - South,Other Small Contracts,Agincare Chippenham,1242.60, 23-Jul-2014
51,Revenue,CCHD,Home Care - Elderly - South,Other Small Contracts,Agincare Chippenham,817.00, 17-Jul-2014
52,Revenue,CCHD,Home Care - Elderly - South,Other Small Contracts,Agincare Chippenham,760.00, 17-Jul-2014
53,Revenue,CCHD,Home Care - Elderly - South,Other Small Contracts,Agincare UK Limited,798.00, 17-Jul-2014
54,Revenue,CCHD,Home Care - Elderly - North,Other Small Contracts,Agincare UK Limited,83.60, 17-Jul-2014
55,Revenue,CCHD,Elderly MH Day Care North,Private & Voluntary Day Care,Agincare UK Limited,53.20, 17-Jul-2014
56,Revenue,CCHD,Home Care - Elderly - South,Other Small Contracts,Agincare UK Limited,950.00, 17-Jul-2014
57,Revenue,CCHD,Home Care - Elderly - North,Other Small Contracts,Agincare UK Limited,83.60, 17-Jul-2014
58,Revenue,CCHD,Elderly MH Day Care North,Private & Voluntary Day Care,Agincare UK Limited,64.60, 17-Jul-2014
59,Revenue,CCHD,Home Care - Elderly - South,Other Small Contracts,Agincare UK Limited,684.00, 17-Jul-2014
60,Revenue,CCHD,Home Care - Elderly - North,Other Small Contracts,Agincare UK Limited,83.60, 17-Jul-2014
61,Revenue,CCHD,Elderly MH Day Care North,Private & Voluntary Day Care,Agincare UK Limited,53.20, 17-Jul-2014
62,Revenue,CCHD,Home Care - Elderly - South,Other Small Contracts,Agincare UK Limited,668.80, 17-Jul-2014
63,Revenue,CCHD,Home Care - Elderly - North,Other Small Contracts,Agincare UK Limited,79.80, 17-Jul-2014
64,Revenue,CCHD,Elderly MH Day Care North,Private & Voluntary Day Care,Agincare UK Limited,53.20, 17-Jul-2014
65,Revenue,CCHD,Home Care - Elderly - North,Other Small Contracts,Agincare UK Nutfield,1128.60, 17-Jul-2014
66,Revenue,CCHD,Home Care - Elderly - North,Other Small Contracts,Agincare UK Nutfield,1398.40, 17-Jul-2014
67,Revenue,CCHD,Home Care - Elderly - North,Other Small Contracts,Agincare UK Nutfield,1311.00, 17-Jul-2014
68,Revenue,CCHD,Home Care - Elderly - North,Other Small Contracts,Agincare UK Nutfield,1197.00, 17-Jul-2014
69,Revenue,CCHD,S117 Placements PCT,Permanent Residential,Alexandra House,6977.40, 08-Jul-2014
70,Revenue,CCHD,Bed Purchasing - Under 65s PWLD - South,Permanent Residential,Alexandra House,6158.40, 08-Jul-2014
71,Revenue,CCHD,Section 117 Placements MH Younger,Permanent Residential,Alexandra House,6495.60, 08-Jul-2014
72,Revenue,CCHD,Home Care - Elderly - South,Other Small Contracts,AliMo Care Ltd,809.48, 03-Jul-2014
73,Revenue,CCHD,Home Care - Elderly - North,Other Small Contracts,AliMo Care Ltd,1523.89, 03-Jul-2014
74,Revenue,CCHD,Home Care - Elderly - South,Other Small Contracts,AliMo Care Ltd,797.09, 09-Jul-2014
75,Revenue,CCHD,Home Care - Elderly - North,Other Small Contracts,AliMo Care Ltd,1511.50, 09-Jul-2014
76,Revenue,CCHD,Home Care - Elderly - South,Other Small Contracts,AliMo Care Ltd,689.71, 16-Jul-2014
77,Revenue,CCHD,Home Care - Elderly - North,Other Small Contracts,AliMo Care Ltd,1503.24, 16-Jul-2014
78,Revenue,CCHD,Home Care - Elderly - South,Other Small Contracts,AliMo Care Ltd,689.71, 23-Jul-2014
79,Revenue,CCHD,Home Care - Elderly - North,Other Small Contracts,AliMo Care Ltd,1490.85, 23-Jul-2014
80,Revenue,CCHD,Home Care - Elderly - South,Other Small Contracts,AliMo Care Ltd,681.45, 30-Jul-2014
81,Revenue,CCHD,Home Care - Elderly - North,Other Small Contracts,AliMo Care Ltd,1548.67, 30-Jul-2014
82,Revenue,CCHD,Home Care - Elderly - South,Other Small Contracts,Allied Healthcare Group,12600.00, 30-Jul-2014
83,Revenue,CCHD,Home Care - Elderly - North,Other Small Contracts,Allied Healthcare Group,23400.00, 30-Jul-2014
84,Revenue,CCHD,Bed Purchasing - Southmead Hospital,Permanent Nursing,Ambleside Nusing Ho!,1443.84, 08-Jul-2014
85,Revenue,CCHD,Bed purchasing - Under 65s PWLD - North,Permanent Residential,Ark Care Homes Ltd,10314.64, 08-Jul-2014
86,Revenue,CCHD,Mental Capacity Act - Advocacy,Other Supplies & Services,Armadillo Youth Venue & Cafe,676.00, 08-Jul-2014
87,Revenue,CCHD,Bed Purchasing - Elderly - South,Permanent Residential,Ashbourne House Care Home Limited,1122.44, 08-Jul-2014
88,Revenue,CCHD,Home Care - Elderly - South,Other Small Contracts,Ashley Commercial Finance Ltd,929.91, 09-Jul-2014
89,Revenue,CCHD,Home Care - Elderly - North,Other Small Contracts,Ashley Commercial Finance Ltd,3552.84, 09-Jul-2014
90,Revenue,CCHD,Home Care - Elderly - South,Other Small Contracts,Ashley Commercial Finance Ltd,921.57, 29-Jul-2014
91,Revenue,CCHD,Home Care - Elderly - North,Other Small Contracts,Ashley Commercial Finance Ltd,3704.13, 29-Jul-2014
92,Revenue,CCHD,Home Care - Elderly - South,Other Small Contracts,Ashley Commercial Finance Ltd,850.68, 29-Jul-2014
93,Revenue,CCHD,Home Care - Elderly - North,Other Small Contracts,Ashley Commercial Finance Ltd,3911.46, 29-Jul-2014
94,Revenue,CCHD,Home Care - Elderly - South,Other Small Contracts,Ashley Commercial Finance Ltd,612.99, 30-Jul-2014
95,Revenue,CCHD,Home Care - Elderly - North,Other Small Contracts,Ashley Commercial Finance Ltd,3882.27, 30-Jul-2014
96,Revenue,CCHD,Bed and Breakfast,Bed & Breakfast,Ashley Guest Houses Limited,420.00, 02-Jul-2014
97,Revenue,CCHD,Bed and Breakfast,Bed & Breakfast,Ashley Guest Houses Limited,420.00, 09-Jul-2014
98,Revenue,CCHD,Bed purchasing - Under 65s PWLD - North,Permanent Residential,Aspects 2 Limited,6358.44, 08-Jul-2014
99,Revenue,CCHD,Supporting People Programme,Grants to Voluntary Bodies,Aspects and Milestones Trust,3219.58, 01-Jul-2014
100,Revenue,CCHD,Supporting People Programme,Grants to Voluntary Bodies,Aspects and Milestones Trust,1614.17, 01-Jul-2014
101,Revenue,CCHD,Supporting People Programme,Grants to Voluntary Bodies,Aspects and Milestones Trust,2450.08, 01-Jul-2014
102,Revenue,CCHD,Purchase of Non-Res Care - South,Private & Voluntary Day Care,Aspirations Support Bristol Limited,3124.35, 25-Jul-2014
103,Revenue,CCHD,Supported Living - South,Private & Voluntary Home Care,Aspirations Support Bristol Limited,515.84, 25-Jul-2014
104,Revenue,CCHD,Research & Conferences,Membership Fees,Assoc of Directors of Adult Social Services,1661.00, 10-Jul-2014
105,Revenue,CCHD,Bed Purchasing - Under 65s PWLD - South,Permanent Residential,Autism Specialised Care Homes,5611.16, 08-Jul-2014
106,Revenue,CCHD,Younger Adult Mental Health,Health Services (Third Party Payments),Avon & Wiltshire Mental Health,5000.00, 02-Jul-2014
107,Revenue,CCHD,Woodleaze,Premises Maintenance by Contractor,Avon Armour Limited,955.00, 10-Jul-2014
108,Revenue,CCHD,Purchase of Non-Res Care - North,Private & Voluntary Day Care,Avon Autistic Foundation Limited,2877.00, 28-Jul-2014
109,Revenue,CCHD,Purchase of Non-Res Care - North,Private & Voluntary Day Care,Avon Autistic Foundation Limited,4222.55, 28-Jul-2014
110,Revenue,CCHD,S75 CCG Interim Beds,Permanent Nursing,Avon Lodge Care Centre,9471.42, 15-Jul-2014
111,Revenue,CCHD,s256 - Additional Support Funding,Other Supplies & Services,Avon Telecare Ltd,5622.50, 08-Jul-2014
112,Revenue,CCHD,Day Care - North,Private & Voluntary Day Care,Avonedge Limited,1200.00, 07-Jul-2014
113,Revenue,CCHD,Younger Adult Mental Health,Health Services (Third Party Payments),Bath & North East Somerset Dist Council,6055.76, 09-Jul-2014
114,Revenue,CCHD,Bed Purchasing - Frenchay Hospital,Permanent Nursing,Bayview Nursing & Residential Home,1482.40, 08-Jul-2014
115,Revenue,CCHD,South Glos Users in South Glos Homes,Permanent Nursing,Beaufort Grange Care Home,1108.90, 08-Jul-2014
116,Revenue,CCHD,South Glos Users in South Glos Homes,Permanent Nursing,Beaufort Grange Care Home,1188.11, 08-Jul-2014
117,Revenue,CCHD,Bed Purchasing - Elderly - North,Permanent Nursing,Beaufort Grange Care Home,1528.20, 08-Jul-2014
118,Revenue,CCHD,Bed Purchasing - Elderly - North,Respite Planned - Nursing,Beaufort Grange Care Home,940.21, 08-Jul-2014
119,Revenue,CCHD,Bed Purchasing - Elderly - North,Permanent Residential,Beaufort House,1900.32, 08-Jul-2014
120,Revenue,CCHD,Bed Purchasing - Elderly - North,Permanent Residential,Beaufort House,1375.07, 08-Jul-2014
121,Revenue,CCHD,Bed Purchasing - Elderly - North,Permanent Residential,Beaufort House,2996.90, 08-Jul-2014
122,Revenue,CCHD,Bed Purchasing - Elderly - North,Permanent Residential,Beaufort House,1824.20, 08-Jul-2014
123,Revenue,CCHD,Bed purchasing - Elderly MH - North,Permanent Residential,Beaufort House,1537.92, 08-Jul-2014
124,Revenue,CCHD,Bed Purchasing - Elderly - North,Permanent Residential,Beaufort House,1390.40, 08-Jul-2014
125,Revenue,CCHD,Bed purchasing - Elderly MH - North,Permanent Residential,Beaufort House,1396.12, 08-Jul-2014
126,Revenue,CCHD,Bed Purchasing - Southmead Hospital,Permanent Residential,Beaufort House,3811.43, 08-Jul-2014
127,Revenue,CCHD,Bed Purchasing - Southmead Hospital,Permanent Residential,Beaufort House,2320.00, 08-Jul-2014
128,Revenue,CCHD,Bed Purchasing - Elderly - North,Permanent Residential,Beaufort House,1860.64, 08-Jul-2014
129,Revenue,CCHD,Bed Purchasing - Elderly - North,Permanent Residential,Beaufort House,1755.08, 08-Jul-2014
130,Revenue,CCHD,Bed purchasing - Elderly MH - North,Permanent Residential,Beaufort House,1706.44, 08-Jul-2014
131,Revenue,CCHD,Bed purchasing - Elderly PWLD - South,Permanent Residential,Bedrock Lodge,2949.44, 08-Jul-2014
132,Revenue,CCHD,Section 117 Placements MH Younger,Permanent Residential,Bedrock Lodge,1864.88, 08-Jul-2014
133,Revenue,CCHD,Bed Purchasing - Elderly - North,Permanent Nursing,Beech House,2378.48, 08-Jul-2014
134,Revenue,CCHD,Bed Purchasing - Southmead Hospital,Permanent Nursing,Beech House,1660.64, 08-Jul-2014
135,Revenue,CCHD,Bed Purchasing - Elderly - North,Respite Planned - Residential,Beech House,815.29, 08-Jul-2014
136,Revenue,CCHD,Bed purchasing - Elderly MH - North,Permanent Nursing,Beech House,1653.80, 08-Jul-2014
137,Revenue,CCHD,Bed Purchasing - Elderly - North,Permanent Nursing,Beech House,2540.84, 08-Jul-2014
138,Revenue,CCHD,South Glos Users in South Glos Homes,Permanent Nursing,Beech House,4140.65, 08-Jul-2014
139,Revenue,CCHD,South Glos Users in South Glos Homes,Permanent Nursing,Beech House,1314.84, 08-Jul-2014
140,Revenue,CCHD,Bed Purchasing - Elderly - North,Permanent Residential,Beech House,1900.00, 08-Jul-2014
141,Revenue,CCHD,Bed Purchasing - Elderly - North,Permanent Nursing,Beech House,2127.20, 08-Jul-2014
142,Revenue,CCHD,Bed Purchasing - Elderly - North,Permanent Nursing,Beech House,720.44, 08-Jul-2014
143,Revenue,CCHD,Bed Purchasing - Elderly - North,Permanent Residential,Beech House,1394.08, 08-Jul-2014
144,Revenue,CCHD,Bed Purchasing - Elderly - North,Permanent Nursing,Beech House,1699.12, 08-Jul-2014
145,Revenue,CCHD,Bed Purchasing - Elderly - North,Permanent Nursing,Blossom Field,1859.76, 08-Jul-2014
146,Revenue,CCHD,Bed Purchasing - Elderly S117- North,Permanent Nursing,Blossom Field,1992.00, 08-Jul-2014
147,Revenue,CCHD,South Glos Users in South Glos Homes,Permanent Nursing,Blossom Field,5724.76, 08-Jul-2014
148,Revenue,CCHD,Bed Purchasing - Elderly - North,Permanent Nursing,Blossom Field,1935.64, 08-Jul-2014
149,Revenue,CCHD,Bed Purchasing - Elderly - North,Permanent Nursing,Blossom Field,2337.00, 08-Jul-2014
150,Revenue,CCHD,Bed purchasing - Elderly MH - North,Permanent Nursing,Blossom Field,1420.72, 08-Jul-2014
151,Revenue,CCHD,Bed Purchasing - Elderly - South,Permanent Nursing,Blossom Field,1909.84, 08-Jul-2014
152,Revenue,CCHD,Bed Purchasing - Southmead Hospital,Permanent Nursing,Blossom Fields,3032.52, 08-Jul-2014
153,Revenue,CCHD,Bed Purchasing - Elderly - North,Permanent Nursing,Blossom Fields,1386.94, 08-Jul-2014
154,Revenue,CCHD,Bed Purchasing - Elderly - North,Permanent Nursing,Blossom Fields,1407.96, 08-Jul-2014
155,Revenue,CCHD,Bed Purchasing - Elderly - North,Permanent Nursing,Blossom Fields,2588.96, 08-Jul-2014
156,Revenue,CCHD,Bed Purchasing - Elderly - North,Permanent Nursing,Blossom Fields,1440.44, 08-Jul-2014
157,Revenue,CCHD,DAT Treatment,Other Supplies & Services,Boots UK Ltd,675.00, 10-Jul-2014
158,Revenue,CCHD,Bed purchasing - Under 65s PWLD - North,Permanent Residential,Bradbury House,8760.16, 08-Jul-2014
159,Revenue,CCHD,Bed Purchasing - Elderly - North,Permanent Residential,Bradley House,1533.80, 08-Jul-2014
160,Revenue,CCHD,Home Care - Elderly - North,Other Small Contracts,Bradley House Home Care Services,1332.24, 07-Jul-2014
161,Revenue,CCHD,Day Care - North,Private & Voluntary Day Care,Bradley House Home Care Services,102.48, 07-Jul-2014
162,Revenue,CCHD,Home Care - Elderly - North,Other Small Contracts,Bradley House Home Care Services,1336.51, 07-Jul-2014
163,Revenue,CCHD,Day Care - North,Private & Voluntary Day Care,Bradley House Home Care Services,102.48, 07-Jul-2014
164,Revenue,CCHD,Woodleaze,"Provisions (Food, etc)",Brake Bros,491.50, 25-Jul-2014
165,Revenue,CCHD,Bed Purchasing - Under 65s PWLD - South,Permanent Nursing,Brandon Trust,39020.41, 08-Jul-2014
166,Revenue,CCHD,Bed Purchasing - Under 65s PWLD - South,Permanent Nursing,Brandon Trust,5036.84, 08-Jul-2014
167,Revenue,CCHD,Bed Purchasing - S28A - Over 65- North,Permanent Residential,Brandon Trust,3097.08, 08-Jul-2014
168,Revenue,CCHD,Bed Purchasing - Under 65s PWLD - South,Permanent Residential,Brandon Trust,10268.44, 08-Jul-2014
169,Revenue,CCHD,Bed Purchasing - Under 65s PWLD - South,Permanent Residential,Brandon Trust,4036.12, 08-Jul-2014
170,Revenue,CCHD,Bed purchasing - Elderly PWLD - South,Permanent Residential,Brandon Trust,3459.92, 08-Jul-2014
171,Revenue,CCHD,Bed Purchasing - LD S28A- Over 65- South,Permanent Nursing,Brandon Trust,4860.44, 08-Jul-2014
172,Revenue,CCHD,Bed Purchasing - Under 65s PWLD - South,Permanent Nursing,Brandon Trust,5036.84, 08-Jul-2014
173,Revenue,CCHD,Bed purchasing - S28A Under 65 - South,Permanent Nursing,Brandon Trust,5359.12, 08-Jul-2014
174,Revenue,CCHD,Bed purchasing - S28A Under 65 - South,Permanent Residential,Brandon Trust,4901.16, 08-Jul-2014
175,Revenue,CCHD,Bed purchasing - S28A Under 65 - South,Permanent Nursing,Brandon Trust,5359.12, 08-Jul-2014
176,Revenue,CCHD,Bed Purchasing - LD S28A- Over 65- South,Permanent Nursing,Brandon Trust,5182.72, 08-Jul-2014
177,Revenue,CCHD,Bed Purchasing - LD S28A- Over 65- South,Permanent Nursing,Brandon Trust,4849.76, 08-Jul-2014
178,Revenue,CCHD,Bed Purchasing - Under 65s PWLD - South,Permanent Residential,Brandon Trust,3273.48, 08-Jul-2014
179,Revenue,CCHD,Bed Purchasing - S28A - Over 65- North,Permanent Nursing,Brandon Trust,4810.28, 08-Jul-2014
180,Revenue,CCHD,Bed purchasing - S28A Under 65 - South,Permanent Residential,Brandon Trust,5202.76, 08-Jul-2014
181,Revenue,CCHD,Bed purchasing - S28A Under 65 - South,Permanent Residential,Brandon Trust,5258.44, 08-Jul-2014
182,Revenue,CCHD,Bed Purchasing - S28A - Over 65- North,Permanent Residential,Brandon Trust,10996.28, 08-Jul-2014
183,Revenue,CCHD,Bed purchasing - S28A Under 65 - South,Permanent Nursing,Brandon Trust,5399.12, 08-Jul-2014
184,Revenue,CCHD,Bed purchasing - S28A Under 65 - South,Permanent Nursing,Brandon Trust,5359.12, 08-Jul-2014
185,Revenue,CCHD,Bed purchasing -S28A  Under 65 - North,Permanent Nursing,Brandon Trust,4783.16, 08-Jul-2014
186,Revenue,CCHD,Bed purchasing - S28A Under 65 - South,Permanent Residential,Brandon Trust,5258.44, 08-Jul-2014
187,Revenue,CCHD,Bed Purchasing - LD S28A- Over 65- South,Permanent Residential,Brandon Trust,4748.20, 08-Jul-2014
188,Revenue,CCHD,Bed Purchasing - Under 65s PWLD - South,Permanent Residential,Brandon Trust,4006.72, 08-Jul-2014
189,Revenue,CCHD,Bed Purchasing - Elderly - North,Permanent Residential,Bridge House Care Home,812.19, 08-Jul-2014
190,Revenue,CCHD,Bed Purchasing - Elderly - North,Permanent Residential,Bridge House Care Home,1167.32, 08-Jul-2014
191,Revenue,CCHD,Bed Purchasing - Elderly - South,Permanent Residential,Bridge House Care Home,4509.73, 08-Jul-2014
192,Revenue,CCHD,Bed Purchasing - Elderly MH - South,Permanent Residential,Brightbow,2095.28, 08-Jul-2014
193,Revenue,CCHD,MH Purchasing - Younger,Permanent Residential,Brightbow,1493.96, 08-Jul-2014
194,Revenue,CCHD,Older People's Commissioned Se,Grants to Voluntary Bodies,Bristol Area Stroke Foundation,5000.00, 01-Jul-2014
195,Revenue,CCHD,Supported Living - North,Private & Voluntary Home Care,Bristol Houses UK Limited,1056.60, 23-Jul-2014
196,Revenue,CCHD,Day Care - North,Private & Voluntary Day Care,Bristol Houses UK Limited,1514.46, 23-Jul-2014
197,Revenue,CCHD,Day Care - North,Private & Voluntary Day Care,Bristol Houses UK Limited,1796.22, 23-Jul-2014
198,Revenue,CCHD,Supported Living - North,Private & Voluntary Home Care,Bristol Houses UK Limited,605.60, 23-Jul-2014
199,Revenue,CCHD,Supported Living - North,Private & Voluntary Home Care,Bristol Houses UK Limited,968.96, 23-Jul-2014
200,Revenue,CCHD,Day Care - North,Private & Voluntary Day Care,Bristol Houses UK Limited,605.60, 23-Jul-2014
201,Revenue,CCHD,Bed and Breakfast,Bed & Breakfast,Bristol Housing & Support Limited,1400.00, 17-Jul-2014
202,Revenue,CCHD,Bed and Breakfast,Bed & Breakfast,Bristol Housing & Support Limited,1400.00, 28-Jul-2014
203,Revenue,CCHD,Bed and Breakfast,Bed & Breakfast,Bristol Housing & Support Limited,1160.00, 28-Jul-2014
204,Revenue,CCHD,Bed and Breakfast,Bed & Breakfast,Bristol Housing & Support Limited,1000.00, 28-Jul-2014
205,Revenue,CCHD,Day Care - South,Private & Voluntary Day Care,Britannia House,914.88, 08-Jul-2014
206,Revenue,CCHD,Day Care - South,Private & Voluntary Day Care,Britannia House,686.16, 08-Jul-2014
207,Revenue,CCHD,Day Care - North,Private & Voluntary Day Care,Britannia House,914.88, 08-Jul-2014
208,Revenue,CCHD,Day Care - South,Private & Voluntary Day Care,Britannia House,686.16, 08-Jul-2014
209,Revenue,CCHD,Day Care - North,Private & Voluntary Day Care,Britannia House,914.88, 08-Jul-2014
210,Revenue,CCHD,Day Care - South,Private & Voluntary Day Care,Britannia House,571.80, 08-Jul-2014
211,Revenue,CCHD,Day Care - South,Private & Voluntary Day Care,Britannia House,1143.60, 08-Jul-2014
212,Revenue,CCHD,Home Care - Elderly - South,Other Small Contracts,Britannia House,686.16, 08-Jul-2014
213,Revenue,CCHD,Day Care - South,Private & Voluntary Day Care,Britannia House,686.16, 08-Jul-2014
214,Revenue,CCHD,Day Care - South,Private & Voluntary Day Care,Britannia House,686.16, 08-Jul-2014
215,Revenue,CCHD,Complaints and FOI,Membership Fees,British Standards Institution,1868.00, 25-Jul-2014
216,Revenue,CCHD,Supporting People Programme,Grants to Voluntary Bodies,Bromford Housing Group,14050.25, 01-Jul-2014
217,Revenue,CCHD,Home Care - Elderly - North,Private & Voluntary Home Care,Brunelcare,23160.00, 07-Jul-2014
218,Revenue,CCHD,Home Care - Elderly - North,Private & Voluntary Home Care,Brunelcare,23160.00, 14-Jul-2014
219,Revenue,CCHD,Home Care - Elderly - North,Private & Voluntary Home Care,Brunelcare,23160.00, 21-Jul-2014
220,Revenue,CCHD,Home Care - Elderly - North,Private & Voluntary Home Care,Brunelcare,23160.00, 28-Jul-2014
221,Revenue,CCHD,Home Care - Elderly - South,Other Small Contracts,Brunelcare,3186.48, 17-Jul-2014
222,Revenue,CCHD,Home Care - Elderly - North,Other Small Contracts,Brunelcare,4383.21, 17-Jul-2014
223,Revenue,CCHD,Day Care - South,Private & Voluntary Day Care,Brunelcare,24.48, 17-Jul-2014
224,Revenue,CCHD,Day Care - North,Private & Voluntary Day Care,Brunelcare,48.96, 17-Jul-2014
225,Revenue,CCHD,Home Care - Elderly - South,Other Small Contracts,Brunelcare,3280.32, 30-Jul-2014
226,Revenue,CCHD,Home Care - Elderly - North,Other Small Contracts,Brunelcare,3696.48, 30-Jul-2014
227,Revenue,CCHD,Day Care - South,Private & Voluntary Day Care,Brunelcare,24.48, 30-Jul-2014
228,Revenue,CCHD,Day Care - North,Private & Voluntary Day Care,Brunelcare,48.96, 30-Jul-2014
229,Revenue,CCHD,Home Care - Elderly - South,Other Small Contracts,Brunelcare,3259.92, 30-Jul-2014
230,Revenue,CCHD,Home Care - Elderly - North,Other Small Contracts,Brunelcare,3541.44, 30-Jul-2014
231,Revenue,CCHD,Day Care - South,Private & Voluntary Day Care,Brunelcare,28.56, 30-Jul-2014
232,Revenue,CCHD,Day Care - North,Private & Voluntary Day Care,Brunelcare,48.96, 30-Jul-2014
233,Revenue,CCHD,Home Care - Elderly - South,Other Small Contracts,Brunelcare,3100.80, 30-Jul-2014
234,Revenue,CCHD,Home Care - Elderly - North,Other Small Contracts,Brunelcare,3488.40, 30-Jul-2014
235,Revenue,CCHD,Day Care - South,Private & Voluntary Day Care,Brunelcare,24.48, 30-Jul-2014
236,Revenue,CCHD,Day Care - North,Private & Voluntary Day Care,Brunelcare,48.96, 30-Jul-2014
237,Revenue,CCHD,Home Care - Elderly - South,Other Small Contracts,Brunelcare,3210.96, 30-Jul-2014
238,Revenue,CCHD,Home Care - Elderly - North,Other Small Contracts,Brunelcare,3439.44, 30-Jul-2014
239,Revenue,CCHD,Day Care - South,Private & Voluntary Day Care,Brunelcare,28.56, 30-Jul-2014
240,Revenue,CCHD,Day Care - North,Private & Voluntary Day Care,Brunelcare,48.96, 30-Jul-2014
241,Revenue,CCHD,Home Care - Elderly - South,Other Small Contracts,Brunelcare,3190.56, 30-Jul-2014
242,Revenue,CCHD,Home Care - Elderly - North,Other Small Contracts,Brunelcare,3227.28, 30-Jul-2014
243,Revenue,CCHD,Day Care - South,Private & Voluntary Day Care,Brunelcare,28.56, 30-Jul-2014
244,Revenue,CCHD,Day Care - North,Private & Voluntary Day Care,Brunelcare,48.96, 30-Jul-2014
245,Revenue,CCHD,Information Systems - Software,Computer Equipment - Purchase,BT Global Services Solutions,983.59, 09-Jul-2014
246,Revenue,CCHD,Bed Purchasing - Southmead Hospital,Permanent Nursing,Bupa Care Services  Bridge House,3804.80, 08-Jul-2014
247,Revenue,CCHD,Bed Purchasing - Southmead Hospital,Permanent Nursing,Bupa Care Services  Bridge House,3454.24, 08-Jul-2014
248,Revenue,CCHD,Bed purchasing - Phys Dis - North,Permanent Nursing,Bupa Care Services  Bridge House,5938.28, 08-Jul-2014
249,Revenue,CCHD,South Glos Users in South Glos Homes,Permanent Nursing,Bupa Care Services  Bridge House,610.44, 08-Jul-2014
250,Revenue,CCHD,Bed purchasing - Elderly MH - North,Permanent Residential,Bupa Care Services  Bridge House,1987.24, 08-Jul-2014
251,Revenue,CCHD,Supported Living - North,Private & Voluntary Home Care,Camphill Communities Thornbury Limited,2358.76, 02-Jul-2014
252,Revenue,CCHD,Supported Living - North,Private & Voluntary Home Care,Camphill Communities Thornbury Limited,2110.40, 02-Jul-2014
253,Revenue,CCHD,Supported Living - North,Private & Voluntary Home Care,Camphill Communities Thornbury Limited,2076.16, 02-Jul-2014
254,Revenue,CCHD,Supported Living - North,Private & Voluntary Home Care,Camphill Communities Thornbury Limited,2644.43, 11-Jul-2014
255,Revenue,CCHD,Supported Living - North,Private & Voluntary Home Care,Camphill Communities Thornbury Limited,2203.93, 11-Jul-2014
256,Revenue,CCHD,Supported Living - North,Private & Voluntary Home Care,Camphill Communities Thornbury Limited,2532.59, 11-Jul-2014
257,Revenue,CCHD,Supported Living - North,Private & Voluntary Home Care,Camphill Communities Thornbury Limited,2561.93, 11-Jul-2014
258,Revenue,CCHD,Supported Living - North,Private & Voluntary Home Care,Camphill Communities Thornbury Limited,2311.84, 11-Jul-2014
259,Revenue,CCHD,Supported Living - North,Private & Voluntary Home Care,Camphill Communities Thornbury Limited,1852.63, 11-Jul-2014
260,Revenue,CCHD,Supported Living - North,Private & Voluntary Home Care,Camphill Communities Thornbury Limited,2379.76, 11-Jul-2014
261,Revenue,CCHD,Supported Living - North,Private & Voluntary Home Care,Camphill Communities Thornbury Limited,2276.43, 10-Jul-2014
262,Revenue,CCHD,Supported Living - North,Private & Voluntary Home Care,Camphill Communities Thornbury Limited,2897.20, 17-Jul-2014
263,Revenue,CCHD,Supported Living - North,Private & Voluntary Home Care,Camphill Communities Thornbury Limited,2535.76, 23-Jul-2014
264,Revenue,CCHD,Supported Living - North,Private & Voluntary Home Care,Camphill Communities Thornbury Limited,2635.92, 23-Jul-2014
265,Revenue,CCHD,Supported Living - North,Private & Voluntary Home Care,Camphill Communities Thornbury Limited,1849.20, 25-Jul-2014
266,Revenue,CCHD,Supported Living - North,Private & Voluntary Home Care,Camphill Communities Thornbury Limited,2324.84, 30-Jul-2014
267,Revenue,CCHD,Supported Living - North,Private & Voluntary Home Care,Camphill Communities Thornbury Limited,2080.08, 30-Jul-2014
268,Revenue,CCHD,Supported Living - North,Private & Voluntary Home Care,Camphill Communities Thornbury Limited,2046.32, 30-Jul-2014
269,Revenue,CCHD,Bed Purchasing - Elderly S117- North,Permanent Residential,Canjayor,2334.04, 08-Jul-2014
270,Revenue,CCHD,Home Care - Elderly - South,Other Small Contracts,Care 1st Homecare,5107.20, 01-Jul-2014
271,Revenue,CCHD,Home Care - Elderly - North,Other Small Contracts,Care 1st Homecare,2738.40, 01-Jul-2014
272,Revenue,CCHD,Home care - Elderly MH - North,Other Small Contracts,Care 1st Homecare,54.60, 01-Jul-2014
273,Revenue,CCHD,Home Care - Elderly - South,Other Small Contracts,Care 1st Homecare,4956.00, 17-Jul-2014
274,Revenue,CCHD,Home Care - Elderly - North,Other Small Contracts,Care 1st Homecare,2935.80, 17-Jul-2014
275,Revenue,CCHD,Home care - Elderly MH - North,Other Small Contracts,Care 1st Homecare,67.20, 17-Jul-2014
276,Revenue,CCHD,Home Care - Elderly - South,Other Small Contracts,Care 1st Homecare,4846.80, 01-Jul-2014
277,Revenue,CCHD,Home Care - Elderly - North,Other Small Contracts,Care 1st Homecare,2935.80, 01-Jul-2014
278,Revenue,CCHD,Home care - Elderly MH - North,Other Small Contracts,Care 1st Homecare,50.40, 01-Jul-2014
279,Revenue,CCHD,Home Care - Elderly - South,Other Small Contracts,Care 1st Homecare,4695.60, 01-Jul-2014
280,Revenue,CCHD,Home Care - Elderly - North,Other Small Contracts,Care 1st Homecare,2923.20, 01-Jul-2014
281,Revenue,CCHD,Home care - Elderly MH - North,Other Small Contracts,Care 1st Homecare,46.20, 01-Jul-2014
282,Revenue,CCHD,Bed Purchasing - PWLD S 117 Placements,Permanent Residential,Care Community Ltd,7647.92, 08-Jul-2014
283,Revenue,CCHD,Home Care - Elderly - North,Other Small Contracts,Care Horizons Limited,2148.51, 17-Jul-2014
284,Revenue,CCHD,Day Care - South,Private & Voluntary Day Care,Care Horizons Limited,244.75, 17-Jul-2014
285,Revenue,CCHD,Home Care - Elderly - North,Other Small Contracts,Care Horizons Limited,2148.55, 23-Jul-2014
286,Revenue,CCHD,Day Care - South,Private & Voluntary Day Care,Care Horizons Limited,249.20, 23-Jul-2014
287,Revenue,CCHD,Home Care - Elderly - North,Other Small Contracts,Care Horizons Limited,2142.24, 23-Jul-2014
288,Revenue,CCHD,Day Care - South,Private & Voluntary Day Care,Care Horizons Limited,253.65, 23-Jul-2014
289,Revenue,CCHD,Home Care - Elderly - North,Other Small Contracts,Care Horizons Limited,2145.39, 23-Jul-2014
290,Revenue,CCHD,Day Care - South,Private & Voluntary Day Care,Care Horizons Limited,249.20, 23-Jul-2014
291,Revenue,CCHD,Purchase of Non-Res Care - North,Private & Voluntary Day Care,Care Horizons Limited,5453.31, 18-Jul-2014
292,Revenue,CCHD,Supported Living - North,Private & Voluntary Home Care,Care Horizons Limited,5652.26, 28-Jul-2014
293,Revenue,CCHD,Purchase of Non-Res Care - North,Private & Voluntary Day Care,Care Horizons Limited,1080.31, 28-Jul-2014
294,Revenue,CCHD,Purchase of Non-Res Care - North,Private & Voluntary Day Care,Care Horizons Limited,1716.73, 28-Jul-2014
295,Revenue,CCHD,Electronic Home Care Monitoring,Other Supplies & Services,Care Monitoring 2000 Limited,8198.87, 22-Jul-2014
296,Revenue,CCHD,Electronic Home Care Monitoring,Other Supplies & Services,Care Monitoring 2000 Limited,8673.24, 31-Jul-2014
297,Revenue,CCHD,Electronic Home Care Monitoring,Other Supplies & Services,Care Monitoring 2000 Limited,2680.00, 28-Jul-2014
298,Revenue,CCHD,Home Care - Elderly - South,Private & Voluntary Day Care,Care UK,196.00, 07-Jul-2014
299,Revenue,CCHD,Home Care - Elderly - South,Other Small Contracts,Care UK,5127.36, 07-Jul-2014
300,Revenue,CCHD,Home Care - Elderly - North,Other Small Contracts,Care UK,1888.07, 07-Jul-2014
301,Revenue,CCHD,Day Care - North,Private & Voluntary Day Care,Care UK,419.44, 07-Jul-2014
302,Revenue,CCHD,Home care - Elderly MH - North,Other Small Contracts,Care UK,603.68, 07-Jul-2014
303,Revenue,CCHD,Elderly MH Day Care North,Private & Voluntary Day Care,Care UK,145.04, 07-Jul-2014
304,Revenue,CCHD,Home Care - Elderly - South,Private & Voluntary Day Care,Care UK,196.00, 07-Jul-2014
305,Revenue,CCHD,Home Care - Elderly - South,Other Small Contracts,Care UK,5205.76, 07-Jul-2014
306,Revenue,CCHD,Home Care - Elderly - North,Other Small Contracts,Care UK,2076.24, 07-Jul-2014
307,Revenue,CCHD,Day Care - North,Private & Voluntary Day Care,Care UK,427.28, 07-Jul-2014
308,Revenue,CCHD,Home care - Elderly MH - North,Other Small Contracts,Care UK,611.52, 07-Jul-2014
309,Revenue,CCHD,Elderly MH Day Care North,Private & Voluntary Day Care,Care UK,141.12, 07-Jul-2014
310,Revenue,CCHD,Home Care - Elderly - South,Private & Voluntary Day Care,Care UK,258.72, 10-Jul-2014
311,Revenue,CCHD,Home Care - Elderly - South,Other Small Contracts,Care UK,5268.48, 10-Jul-2014
312,Revenue,CCHD,Home Care - Elderly - North,Other Small Contracts,Care UK,1826.72, 10-Jul-2014
313,Revenue,CCHD,Day Care - North,Private & Voluntary Day Care,Care UK,348.88, 10-Jul-2014
314,Revenue,CCHD,Home care - Elderly MH - North,Other Small Contracts,Care UK,607.60, 10-Jul-2014
315,Revenue,CCHD,Elderly MH Day Care North,Private & Voluntary Day Care,Care UK,141.12, 10-Jul-2014
316,Revenue,CCHD,Home Care - Elderly - South,Private & Voluntary Day Care,Care UK,196.00, 17-Jul-2014
317,Revenue,CCHD,Home Care - Elderly - South,Other Small Contracts,Care UK,5269.57, 17-Jul-2014
318,Revenue,CCHD,Home Care - Elderly - North,Other Small Contracts,Care UK,1858.08, 17-Jul-2014
319,Revenue,CCHD,Day Care - North,Private & Voluntary Day Care,Care UK,344.96, 17-Jul-2014
320,Revenue,CCHD,Home care - Elderly MH - North,Other Small Contracts,Care UK,611.52, 17-Jul-2014
321,Revenue,CCHD,Elderly MH Day Care North,Private & Voluntary Day Care,Care UK,141.12, 17-Jul-2014
322,Revenue,CCHD,Home Care - Elderly - South,Private & Voluntary Day Care,Care UK,188.16, 18-Jul-2014
323,Revenue,CCHD,Home Care - Elderly - South,Other Small Contracts,Care UK,5221.44, 18-Jul-2014
324,Revenue,CCHD,Home Care - Elderly - North,Other Small Contracts,Care UK,1821.43, 18-Jul-2014
325,Revenue,CCHD,Day Care - North,Private & Voluntary Day Care,Care UK,344.96, 18-Jul-2014
326,Revenue,CCHD,Home care - Elderly MH - North,Other Small Contracts,Care UK,615.44, 18-Jul-2014
327,Revenue,CCHD,Elderly MH Day Care North,Private & Voluntary Day Care,Care UK,141.12, 18-Jul-2014
328,Revenue,CCHD,Home Care - Elderly - South,Private & Voluntary Day Care,Care UK,196.00, 28-Jul-2014
329,Revenue,CCHD,Home Care - Elderly - South,Other Small Contracts,Care UK,5335.12, 28-Jul-2014
330,Revenue,CCHD,Home Care - Elderly - North,Other Small Contracts,Care UK,1332.80, 28-Jul-2014
331,Revenue,CCHD,Day Care - North,Private & Voluntary Day Care,Care UK,348.88, 28-Jul-2014
332,Revenue,CCHD,Home care - Elderly MH - North,Other Small Contracts,Care UK,599.76, 28-Jul-2014
333,Revenue,CCHD,Elderly MH Day Care North,Private & Voluntary Day Care,Care UK,141.12, 28-Jul-2014
334,Revenue,CCHD,Home Care - Elderly - South,Other Small Contracts,Carers R Us (Bristol) Limited,251.37, 08-Jul-2014
335,Revenue,CCHD,Home Care - Elderly - North,Other Small Contracts,Carers R Us (Bristol) Limited,1029.42, 08-Jul-2014
336,Revenue,CCHD,Home Care - Elderly - South,Other Small Contracts,Carers R Us (Bristol) Limited,247.38, 08-Jul-2014
337,Revenue,CCHD,Home Care - Elderly - North,Other Small Contracts,Carers R Us (Bristol) Limited,1013.46, 08-Jul-2014
338,Revenue,CCHD,Home Care - Elderly - South,Other Small Contracts,Carers R Us (Bristol) Limited,243.39, 08-Jul-2014
339,Revenue,CCHD,Home Care - Elderly - North,Other Small Contracts,Carers R Us (Bristol) Limited,1033.41, 08-Jul-2014
340,Revenue,CCHD,Home Care - Elderly - South,Other Small Contracts,Carers R Us (Bristol) Limited,247.38, 31-Jul-2014
341,Revenue,CCHD,Home Care - Elderly - North,Other Small Contracts,Carers R Us (Bristol) Limited,1025.43, 31-Jul-2014
342,Revenue,CCHD,Home Care - Elderly - South,Other Small Contracts,Carers R Us (Bristol) Limited,255.36, 31-Jul-2014
343,Revenue,CCHD,Home Care - Elderly - North,Other Small Contracts,Carers R Us (Bristol) Limited,1033.41, 31-Jul-2014
344,Revenue,CCHD,Home Care - Elderly - South,Other Small Contracts,Carers R Us (Bristol) Limited,255.36, 31-Jul-2014
345,Revenue,CCHD,Home Care - Elderly - North,Other Small Contracts,Carers R Us (Bristol) Limited,1025.43, 31-Jul-2014
346,Revenue,CCHD,SLA Grants - Support Serv,Grants to Voluntary Bodies,Carers Support Centre,500.00, 01-Jul-2014
347,Revenue,CCHD,SLA Grants - Support Serv,Grants to Voluntary Bodies,Carers Support Centre,500.00, 01-Jul-2014
348,Revenue,CCHD,SLA Grants - Support Serv,Grants to Voluntary Bodies,Carers Support Centre,500.00, 01-Jul-2014
349,Revenue,CCHD,SLA Grants - Support Serv,Grants to Voluntary Bodies,Carers Support Centre,500.00, 01-Jul-2014
350,Revenue,CCHD,Learning Difficulties Development Fund,Other Supplies & Services,Carers Support Centre,5393.00, 10-Jul-2014
351,Revenue,CCHD,Home Care - Elderly - South,Other Small Contracts,Carewatch (Bristol),977.50, 01-Jul-2014
352,Revenue,CCHD,Home Care - Elderly - North,Other Small Contracts,Carewatch (Bristol),1368.50, 01-Jul-2014
353,Revenue,CCHD,Home Care - Elderly - South,Other Small Contracts,Carewatch (Bristol),858.50, 01-Jul-2014
354,Revenue,CCHD,Home Care - Elderly - North,Other Small Contracts,Carewatch (Bristol),1351.50, 01-Jul-2014
355,Revenue,CCHD,Home Care - Elderly - South,Other Small Contracts,Carewatch (Bristol),862.75, 17-Jul-2014
356,Revenue,CCHD,Home Care - Elderly - North,Other Small Contracts,Carewatch (Bristol),1351.50, 17-Jul-2014
357,Revenue,CCHD,Home Care - Elderly - South,Other Small Contracts,Carewatch (Bristol),824.50, 17-Jul-2014
358,Revenue,CCHD,Home Care - Elderly - North,Other Small Contracts,Carewatch (Bristol),1270.75, 17-Jul-2014
359,Revenue,CCHD,Home Care - Elderly - South,Other Small Contracts,Carewatch (Bristol),561.00, 17-Jul-2014
360,Revenue,CCHD,Home Care - Elderly - North,Other Small Contracts,Carewatch (Bristol),1449.25, 17-Jul-2014
361,Revenue,CCHD,Social Lettings Agency,Fees - General,Individual,10.10, 01-Jul-2014
362,Revenue,CCHD,Social Lettings Agency,Fees & Charges Income - General,Individual,504.79, 01-Jul-2014
363,Revenue,CCHD,Bed Purchasing - Elderly - South,Permanent Residential,Cepen Lodge Care Home,2208.48, 08-Jul-2014
364,Revenue,CCHD,Home Care - Elderly - South,Other Small Contracts,Cherish Able Care Limited,6246.66, 04-Jul-2014
365,Revenue,CCHD,Home Care - Elderly - North,Other Small Contracts,Cherish Able Care Limited,162.63, 04-Jul-2014
366,Revenue,CCHD,Home Care - Elderly - South,Other Small Contracts,Cherish Able Care Limited,6263.34, 17-Jul-2014
367,Revenue,CCHD,Home Care - Elderly - North,Other Small Contracts,Cherish Able Care Limited,300.24, 17-Jul-2014
368,Revenue,CCHD,Home Care - Elderly - South,Other Small Contracts,Cherish Able Care Limited,6192.45, 17-Jul-2014
369,Revenue,CCHD,Home Care - Elderly - North,Other Small Contracts,Cherish Able Care Limited,375.30, 17-Jul-2014
370,Revenue,CCHD,Home Care - Elderly - South,Other Small Contracts,Cherish Able Care Limited,6146.58, 25-Jul-2014
371,Revenue,CCHD,Home Care - Elderly - North,Other Small Contracts,Cherish Able Care Limited,366.96, 25-Jul-2014
372,Revenue,CCHD,Home Care - Elderly - South,Other Small Contracts,Cherish Able Care Limited,6175.77, 31-Jul-2014
373,Revenue,CCHD,Home Care - Elderly - North,Other Small Contracts,Cherish Able Care Limited,241.86, 31-Jul-2014
374,Revenue,CCHD,Bed purchasing -S28A  Under 65 - North,Permanent Residential,Chescombe Lodge,8697.00, 08-Jul-2014
375,Revenue,CCHD,Training - Adult Services,Training Expenses,Chris Garnier,625.00, 30-Jul-2014
376,Revenue,CCHD,Bed purchasing - Under 65s PWLD - North,Permanent Residential,Church House,10507.68, 08-Jul-2014
377,Revenue,CCHD,Bed purchasing - Under 65s PWLD - North,Permanent Residential,Church House,5863.56, 08-Jul-2014
378,Revenue,CCHD,Section 117 Placements MH Younger,Permanent Residential,Church House,7247.92, 08-Jul-2014
379,Revenue,CCHD,Section 117 Placements MH Younger,Permanent Residential,Church House,7307.08, 08-Jul-2014
380,Revenue,CCHD,Learning Difficulties,Premises Hire,Circadian Trust,585.00, 23-Jul-2014
381,Revenue,CCHD,Bed Purchasing - Under 65s PWLD - South,Permanent Residential,Citibase Watford,7012.00, 08-Jul-2014
382,Revenue,CCHD,Bed Purchasing - PWLD S 117 Placements,Permanent Residential,Citibase Watford,8932.12, 08-Jul-2014
383,Revenue,CCHD,Bed Purchasing - Under 65s PWLD - South,Permanent Residential,Citibase Watford,5454.64, 08-Jul-2014
384,Revenue,CCHD,Home Care - Elderly - South,Other Small Contracts,Cleeve Care Group,511.00, 04-Jul-2014
385,Revenue,CCHD,Home Care - Elderly - North,Other Small Contracts,Cleeve Care Group,490.00, 04-Jul-2014
386,Revenue,CCHD,Home Care - Elderly - South,Other Small Contracts,Cleeve Care Group,577.50, 29-Jul-2014
387,Revenue,CCHD,Home Care - Elderly - North,Other Small Contracts,Cleeve Care Group,455.00, 29-Jul-2014
388,Revenue,CCHD,Home Care - Elderly - South,Other Small Contracts,Cleeve Care Group,532.00, 29-Jul-2014
389,Revenue,CCHD,Home Care - Elderly - North,Other Small Contracts,Cleeve Care Group,465.50, 29-Jul-2014
390,Revenue,CCHD,Home Care - Elderly - South,Other Small Contracts,Cleeve Care Group,486.50, 29-Jul-2014
391,Revenue,CCHD,Home Care - Elderly - North,Other Small Contracts,Cleeve Care Group,315.00, 29-Jul-2014
392,Revenue,CCHD,Bed Purchasing - Southmead Hospital,Permanent Residential,Cleeve Lodge,1457.16, 08-Jul-2014
393,Revenue,CCHD,Bed Purchasing - Elderly - North,Permanent Nursing,Cleeve Lodge,1874.24, 08-Jul-2014
394,Revenue,CCHD,Bed Purchasing - Elderly - North,Respite Planned - Residential,Cleeve Lodge,600.00, 08-Jul-2014
395,Revenue,CCHD,Bed Purchasing - Elderly - South,Permanent Residential,Cleeve Lodge,4953.96, 08-Jul-2014
396,Revenue,CCHD,Bed Purchasing - Elderly - South,Permanent Residential,Cleeve Lodge,1801.44, 08-Jul-2014
397,Revenue,CCHD,Bed Purchasing - Elderly - South,Permanent Residential,Cleeve Lodge,2291.88, 08-Jul-2014
398,Revenue,CCHD,Bed Purchasing - Elderly - North,Permanent Residential,Cleeve Lodge,1393.60, 08-Jul-2014
399,Revenue,CCHD,Bed Purchasing - Elderly - South,Permanent Residential,Cleeve Lodge,1806.32, 08-Jul-2014
400,Revenue,CCHD,Bed Purchasing - Elderly - South,Permanent Residential,Collingwood Residential Home,3656.84, 08-Jul-2014
401,Revenue,CCHD,Bed Purchasing - Elderly - South,Permanent Residential,Collingwood Residential Home,1329.76, 08-Jul-2014
402,Revenue,CCHD,Bed Purchasing - Elderly - South,Permanent Residential,Collingwood Residential Home,1427.48, 08-Jul-2014
403,Revenue,CCHD,Bed Purchasing - Elderly - South,Permanent Residential,Collingwood Residential Home,1448.60, 08-Jul-2014
404,Revenue,CCHD,Bed Purchasing - Elderly MH - South,Permanent Residential,Collingwood Residential Home,1323.04, 08-Jul-2014
405,Revenue,CCHD,Bed Purchasing - Elderly - South,Permanent Residential,Collingwood Residential Home,1199.84, 08-Jul-2014
406,Revenue,CCHD,Bed Purchasing - Elderly - South,Permanent Residential,Collingwood Residential Home,1280.20, 08-Jul-2014
407,Revenue,CCHD,Bed and Breakfast,Bed & Breakfast,Connolly & Callaghan Limited,648.90, 21-Jul-2014
408,Revenue,CCHD,Bed and Breakfast,Bed & Breakfast,Connolly & Callaghan Limited,459.90, 21-Jul-2014
409,Revenue,CCHD,Bed and Breakfast,Bed & Breakfast,Connolly & Callaghan Limited,585.90, 21-Jul-2014
410,Revenue,CCHD,Bed and Breakfast,Bed & Breakfast,Connolly & Callaghan Limited,428.40, 21-Jul-2014
411,Revenue,CCHD,Bed and Breakfast,Bed & Breakfast,Connolly & Callaghan Limited,585.90, 21-Jul-2014
412,Revenue,CCHD,Bed and Breakfast,Bed & Breakfast,Connolly & Callaghan Limited,617.40, 24-Jul-2014
413,Revenue,CCHD,Bed and Breakfast,Bed & Breakfast,Connolly & Callaghan Limited,648.90, 21-Jul-2014
414,Revenue,CCHD,Bed and Breakfast,Bed & Breakfast,Connolly & Callaghan Limited,585.90, 21-Jul-2014
415,Revenue,CCHD,Bed and Breakfast,Bed & Breakfast,Connolly & Callaghan Limited,428.40, 21-Jul-2014
416,Revenue,CCHD,Bed and Breakfast,Bed & Breakfast,Connolly & Callaghan Limited,585.90, 21-Jul-2014
417,Revenue,CCHD,Bed and Breakfast,Bed & Breakfast,Connolly & Callaghan Limited,617.40, 21-Jul-2014
418,Revenue,CCHD,Bed and Breakfast,Bed & Breakfast,Connolly & Callaghan Limited,648.90, 29-Jul-2014
419,Revenue,CCHD,Bed and Breakfast,Bed & Breakfast,Connolly & Callaghan Limited,585.90, 21-Jul-2014
420,Revenue,CCHD,Bed and Breakfast,Bed & Breakfast,Connolly & Callaghan Limited,428.40, 21-Jul-2014
421,Revenue,CCHD,Bed and Breakfast,Bed & Breakfast,Connolly & Callaghan Limited,540.00, 21-Jul-2014
422,Revenue,CCHD,Bed and Breakfast,Bed & Breakfast,Connolly & Callaghan Limited,585.90, 21-Jul-2014
423,Revenue,CCHD,Bed and Breakfast,Bed & Breakfast,Connolly & Callaghan Limited,459.90, 21-Jul-2014
424,Revenue,CCHD,Bed and Breakfast,Bed & Breakfast,Connolly & Callaghan Limited,617.40, 21-Jul-2014
425,Revenue,CCHD,Bed Purchasing - Frenchay Hospital,Permanent Residential,Coombs Wood House,965.00, 08-Jul-2014
426,Revenue,CCHD,Bed Purchasing - S28A - Over 65- North,Permanent Residential,Cream Ii Ltd  Longrun House,8039.76, 08-Jul-2014
427,Revenue,CCHD,Bed Purchasing - Under 65s PWLD - South,Permanent Residential,Cream Ii Ltd  Longrun House,5628.52, 08-Jul-2014
428,Revenue,CCHD,Bed purchasing -S28A  Under 65 - North,Permanent Residential,Creedy Court,34854.00, 08-Jul-2014
429,Revenue,CCHD,Bed Purchasing - S28A - Over 65- North,Permanent Residential,Creedy Court,7726.88, 08-Jul-2014
430,Revenue,CCHD,Bed purchasing - Under 65s PWLD - North,Permanent Residential,Creedy Court,12580.08, 04-Jul-2014
431,Revenue,CCHD,Brokerage and Information Service,Grants to Voluntary Bodies,D H I,13961.00, 01-Jul-2014
432,Revenue,CCHD,Purchase of Non-Res Care - South,Private & Voluntary Day Care,Daneswood,1472.68, 14-Jul-2014
433,Revenue,CCHD,Bed Purchasing - Under 65s PWLD - South,Permanent Residential,Daneswood,11009.48, 08-Jul-2014
434,Revenue,CCHD,Bed purchasing - Under 65s PWLD - North,Permanent Residential,Daneswood,9114.88, 08-Jul-2014
435,Revenue,CCHD,Bed Purchasing - PWLD S 117 Placements,Permanent Nursing,Danshell Healthcare Group,11529.00, 08-Jul-2014
436,Revenue,CCHD,Learning Difficulties PSL,Other Supplies & Services,Individual,2016.44, 22-Jul-2014
437,Revenue,CCHD,General EPH budgets,Other Supplies & Services,Derek Browne & Associates,1572.00, 03-Jul-2014
438,Revenue,CCHD,Purchase of Non-Res Care - North,Private & Voluntary Day Care,Design 4 Life Ltd,1422.30, 17-Jul-2014
439,Revenue,CCHD,Purchase of Non-Res Care - North,Private & Voluntary Day Care,Design 4 Life Ltd,1293.00, 17-Jul-2014
440,Revenue,CCHD,Bed Purchasing - Under 65s PWLD - South,Permanent Residential,Devon & Cornwall Autistic Community Trus,8796.92, 08-Jul-2014
441,Revenue,CCHD,Home Care - Elderly - South,Other Small Contracts,Dhek Bhal,459.80, 07-Jul-2014
442,Revenue,CCHD,Home Care - Elderly - North,Other Small Contracts,Dhek Bhal,193.60, 07-Jul-2014
443,Revenue,CCHD,Home Care - Elderly - South,Other Small Contracts,Dhek Bhal,464.64, 21-Jul-2014
444,Revenue,CCHD,Home Care - Elderly - North,Other Small Contracts,Dhek Bhal,193.60, 21-Jul-2014
445,Revenue,CCHD,Home Care - Elderly - South,Other Small Contracts,Dhek Bhal,464.64, 21-Jul-2014
446,Revenue,CCHD,Home Care - Elderly - North,Other Small Contracts,Dhek Bhal,222.64, 21-Jul-2014
447,Revenue,CCHD,Home Care - Elderly - South,Other Small Contracts,Dhek Bhal,469.48, 31-Jul-2014
448,Revenue,CCHD,Home Care - Elderly - North,Other Small Contracts,Dhek Bhal,193.60, 31-Jul-2014
449,Revenue,CCHD,SLA Grants - Support Serv,Grants to Voluntary Bodies,Dhek Bhal,500.00, 03-Jul-2014
450,Revenue,CCHD,Bed Purchasing - Under 65s PWLD - South,Permanent Residential,Dimensions (Uk),4880.00, 08-Jul-2014
451,Revenue,CCHD,Supported Living - South,Private & Voluntary Home Care,Dimensions (UK) Ltd,7748.40, 25-Jul-2014
452,Revenue,CCHD,Home Care - Elderly - South,Other Small Contracts,DoCare Ltd,4080.25, 01-Jul-2014
453,Revenue,CCHD,Home Care - Elderly - North,One-off Planned Direct Payment,DoCare Ltd,114.00, 01-Jul-2014
454,Revenue,CCHD,Home Care - Elderly - North,Other Small Contracts,DoCare Ltd,8098.75, 01-Jul-2014
455,Revenue,CCHD,Day Care - North,Private & Voluntary Day Care,DoCare Ltd,76.00, 01-Jul-2014
456,Revenue,CCHD,Home Care - Elderly - South,Other Small Contracts,DoCare Ltd,4161.01, 01-Jul-2014
457,Revenue,CCHD,Home Care - Elderly - North,One-off Planned Direct Payment,DoCare Ltd,109.25, 01-Jul-2014
458,Revenue,CCHD,Home Care - Elderly - North,Other Small Contracts,DoCare Ltd,8208.00, 01-Jul-2014
459,Revenue,CCHD,Day Care - North,Private & Voluntary Day Care,DoCare Ltd,76.00, 01-Jul-2014
460,Revenue,CCHD,Home Care - Elderly - South,Other Small Contracts,DoCare Ltd,4108.75, 21-Jul-2014
461,Revenue,CCHD,Home Care - Elderly - North,One-off Planned Direct Payment,DoCare Ltd,104.50, 21-Jul-2014
462,Revenue,CCHD,Home Care - Elderly - North,Other Small Contracts,DoCare Ltd,8265.00, 21-Jul-2014
463,Revenue,CCHD,Day Care - North,Private & Voluntary Day Care,DoCare Ltd,76.00, 21-Jul-2014
464,Revenue,CCHD,Home Care - Elderly - South,Other Small Contracts,DoCare Ltd,4108.76, 23-Jul-2014
465,Revenue,CCHD,Home Care - Elderly - North,One-off Planned Direct Payment,DoCare Ltd,104.50, 23-Jul-2014
466,Revenue,CCHD,Home Care - Elderly - North,Other Small Contracts,DoCare Ltd,8165.25, 23-Jul-2014
467,Revenue,CCHD,Day Care - North,Private & Voluntary Day Care,DoCare Ltd,76.00, 23-Jul-2014
468,Revenue,CCHD,Home Care - Elderly - South,Other Small Contracts,DoCare Ltd,4146.75, 24-Jul-2014
469,Revenue,CCHD,Home Care - Elderly - North,One-off Planned Direct Payment,DoCare Ltd,109.25, 24-Jul-2014
470,Revenue,CCHD,Home Care - Elderly - North,Other Small Contracts,DoCare Ltd,7647.50, 24-Jul-2014
471,Revenue,CCHD,Day Care - North,Private & Voluntary Day Care,DoCare Ltd,76.00, 24-Jul-2014
472,Revenue,CCHD,Home Care - Elderly - South,Other Small Contracts,DoCare Ltd,4037.51, 24-Jul-2014
473,Revenue,CCHD,Home Care - Elderly - North,One-off Planned Direct Payment,DoCare Ltd,104.50, 24-Jul-2014
474,Revenue,CCHD,Home Care - Elderly - North,Other Small Contracts,DoCare Ltd,7889.75, 24-Jul-2014
475,Revenue,CCHD,Day Care - North,Private & Voluntary Day Care,DoCare Ltd,76.00, 24-Jul-2014
476,Revenue,CCHD,Home Care - Elderly - South,Other Small Contracts,DoCare Ltd,3933.00, 24-Jul-2014
477,Revenue,CCHD,Home Care - Elderly - North,One-off Planned Direct Payment,DoCare Ltd,104.50, 24-Jul-2014
478,Revenue,CCHD,Home Care - Elderly - North,Other Small Contracts,DoCare Ltd,8108.25, 24-Jul-2014
479,Revenue,CCHD,Day Care - North,Private & Voluntary Day Care,DoCare Ltd,76.00, 24-Jul-2014
480,Revenue,CCHD,Home Care - Elderly - South,Other Small Contracts,DoCare Ltd,4161.01, 24-Jul-2014
481,Revenue,CCHD,Home Care - Elderly - North,One-off Planned Direct Payment,DoCare Ltd,133.00, 24-Jul-2014
482,Revenue,CCHD,Home Care - Elderly - North,Other Small Contracts,DoCare Ltd,8227.00, 24-Jul-2014
483,Revenue,CCHD,Day Care - North,Private & Voluntary Day Care,DoCare Ltd,76.00, 24-Jul-2014
484,Revenue,CCHD,Home Care - Elderly - South,Other Small Contracts,DoCare Ltd,3790.50, 24-Jul-2014
485,Revenue,CCHD,Home Care - Elderly - North,One-off Planned Direct Payment,DoCare Ltd,104.50, 24-Jul-2014
486,Revenue,CCHD,Home Care - Elderly - North,Other Small Contracts,DoCare Ltd,8151.00, 24-Jul-2014
487,Revenue,CCHD,Day Care - North,Private & Voluntary Day Care,DoCare Ltd,76.00, 24-Jul-2014
488,Revenue,CCHD,Cambrian Green Day Service,"Provisions (Food, etc)",Douglas Liddell,560.00, 07-Jul-2014
489,Revenue,CCHD,Cambrian Green Day Service,"Provisions (Food, etc)",Douglas Liddell,555.00, 10-Jul-2014
490,Revenue,CCHD,Cambrian Green Day Service,"Provisions (Food, etc)",Douglas Liddell,535.00, 17-Jul-2014
491,Revenue,CCHD,Cambrian Green Day Service,"Provisions (Food, etc)",Douglas Liddell,510.00, 25-Jul-2014
492,Revenue,CCHD,Cambrian Green Day Service,"Provisions (Food, etc)",Douglas Liddell,555.00, 31-Jul-2014
493,Revenue,CCHD,MH Purchasing - Younger,Permanent Residential,Dunraven House,1854.32, 08-Jul-2014
494,Revenue,CCHD,Bed and Breakfast,Storage & Removal,Dynamic Storage Limited,785.79, 31-Jul-2014
495,Revenue,CCHD,Bed and Breakfast,Bed & Breakfast,E J Bartlett,651.00, 01-Jul-2014
496,Revenue,CCHD,Bed and Breakfast,Bed & Breakfast,E J Bartlett,651.00, 01-Jul-2014
497,Revenue,CCHD,Bed and Breakfast,Bed & Breakfast,E J Bartlett,434.00, 01-Jul-2014
498,Revenue,CCHD,Bed and Breakfast,Bed & Breakfast,E J Bartlett,490.00, 01-Jul-2014
499,Revenue,CCHD,Bed and Breakfast,Bed & Breakfast,E J Bartlett,651.00, 17-Jul-2014
500,Revenue,CCHD,Bed and Breakfast,Bed & Breakfast,E J Bartlett,651.00, 17-Jul-2014
501,Revenue,CCHD,Bed and Breakfast,Bed & Breakfast,E J Bartlett,434.00, 17-Jul-2014
502,Revenue,CCHD,Bed and Breakfast,Bed & Breakfast,E J Bartlett,490.00, 17-Jul-2014
503,Revenue,CCHD,Bed and Breakfast,Bed & Breakfast,E J Bartlett,651.00, 21-Jul-2014
504,Revenue,CCHD,Bed and Breakfast,Bed & Breakfast,E J Bartlett,651.00, 21-Jul-2014
505,Revenue,CCHD,Bed and Breakfast,Bed & Breakfast,E J Bartlett,434.00, 21-Jul-2014
506,Revenue,CCHD,Bed and Breakfast,Bed & Breakfast,E J Bartlett,651.00, 23-Jul-2014
507,Revenue,CCHD,Bed and Breakfast,Bed & Breakfast,E J Bartlett,434.00, 23-Jul-2014
508,Revenue,CCHD,Bed and Breakfast,Bed & Breakfast,E J Bartlett,651.00, 23-Jul-2014
509,Revenue,CCHD,Bed and Breakfast,Bed & Breakfast,E J Bartlett,434.00, 23-Jul-2014
510,Revenue,CCHD,Bed and Breakfast,Bed & Breakfast,E J Bartlett,651.00, 30-Jul-2014
511,Revenue,CCHD,Bed and Breakfast,Bed & Breakfast,E J Bartlett,434.00, 30-Jul-2014
512,Revenue,CCHD,Bed and Breakfast,Bed & Breakfast,E J Bartlett,651.00, 30-Jul-2014
513,Revenue,CCHD,Bed and Breakfast,Bed & Breakfast,E J Bartlett,434.00, 30-Jul-2014
514,Revenue,CCHD,Bed purchasing - Under 65s PWLD - North,Permanent Residential,East Court,2213.44, 08-Jul-2014
515,Revenue,CCHD,Minor Adaptations Service,Operational Equipment,Eastman & Co (Timber) Limited,945.73, 22-Jul-2014
516,Revenue,CCHD,Day Care - South,Private & Voluntary Day Care,Easton Community Centre,520.56, 08-Jul-2014
517,Revenue,CCHD,Day Care - South,Private & Voluntary Day Care,Easton Community Centre,520.56, 08-Jul-2014
518,Revenue,CCHD,Younger MH non-res purchasing,Private & Voluntary Day Care,Easton Community Centre,520.56, 08-Jul-2014
519,Revenue,CCHD,Day Care - South,Private & Voluntary Day Care,Easton Community Centre,520.56, 08-Jul-2014
520,Revenue,CCHD,Bed purchasing - Under 65s PWLD - North,Permanent Residential,Eclipse Office Park,2653.24, 08-Jul-2014
521,Revenue,CCHD,Bed Purchasing - Elderly - South,Permanent Residential,Eclipse Office Park,1429.36, 08-Jul-2014
522,Revenue,CCHD,Bed Purchasing - Under 65s PWLD - South,Permanent Residential,Eclipse Office Park,5681.84, 08-Jul-2014
523,Revenue,CCHD,Bed purchasing - Elderly PWLD - North,Permanent Residential,Eclipse Office Park,3435.28, 08-Jul-2014
524,Revenue,CCHD,Bed Purchasing - Under 65s PWLD - South,Permanent Residential,Eclipse Office Park,4867.92, 08-Jul-2014
525,Revenue,CCHD,Bed Purchasing - Under 65s PWLD - South,Permanent Residential,Eclipse Office Park,5442.48, 08-Jul-2014
526,Revenue,CCHD,Bed Purchasing - Under 65s PWLD - South,Permanent Nursing,Eclipse Office Park,7535.44, 08-Jul-2014
527,Revenue,CCHD,Bed Purchasing - Under 65s PWLD - South,Permanent Nursing,Eclipse Office Park,2740.16, 08-Jul-2014
528,Revenue,CCHD,Bed purchasing - Elderly MH - North,Permanent Nursing,Eclipse Office Park,1447.24, 08-Jul-2014
529,Revenue,CCHD,Bed Purchasing - Elderly MH - South,Permanent Residential,Eclipse Office Park,3605.96, 08-Jul-2014
530,Revenue,CCHD,Bed purchasing - Elderly S117 - South,Permanent Nursing,Eclipse Office Park,1992.00, 08-Jul-2014
531,Revenue,CCHD,Section 117 Placements MH Younger,Permanent Residential,Eclipse Office Park,1356.00, 08-Jul-2014
532,Revenue,CCHD,Bed purchasing - Elderly S117 - South,Permanent Nursing,Eclipse Office Park,1992.00, 08-Jul-2014
533,Revenue,CCHD,Bed Purchasing - Elderly - South,Permanent Nursing,Eclipse Office Park,1431.72, 08-Jul-2014
534,Revenue,CCHD,Bed Purchasing - Elderly - South,Permanent Nursing,Eclipse Office Park,3114.10, 08-Jul-2014
535,Revenue,CCHD,Bed Purchasing - Elderly - South,Permanent Nursing,Eclipse Office Park,2548.15, 08-Jul-2014
536,Revenue,CCHD,Bed Purchasing - Elderly - South,Permanent Nursing,Eclipse Office Park,1197.41, 08-Jul-2014
537,Revenue,CCHD,Swift Dump Code,Permanent Residential,Eclipse Office Park,1098.51, 08-Jul-2014
538,Revenue,CCHD,Bed Purchasing - Elderly - South,Permanent Nursing,Eclipse Office Park,1342.44, 08-Jul-2014
539,Revenue,CCHD,Bed Purchasing - Elderly - North,Permanent Nursing,Eclipse Office Park,1421.72, 08-Jul-2014
540,Revenue,CCHD,Bed purchasing - Elderly PWLD - South,Permanent Residential,Eclipse Office Park,4125.12, 08-Jul-2014
541,Revenue,CCHD,Bed purchasing -S28A  Under 65 - North,Permanent Nursing,Eclipse Office Park,5411.96, 08-Jul-2014
542,Revenue,CCHD,Bed purchasing -S28A  Under 65 - North,Permanent Residential,Eclipse Office Park,5334.12, 08-Jul-2014
543,Revenue,CCHD,Bed purchasing - S28A Under 65 - South,Permanent Residential,Eclipse Office Park,5527.88, 08-Jul-2014
544,Revenue,CCHD,Bed Purchasing - Elderly MH - South,Permanent Residential,Eclipse Office Park,1302.92, 08-Jul-2014
545,Revenue,CCHD,Bed Purchasing - Under 65s PWLD - South,Permanent Residential,Eclipse Office Park,5018.44, 08-Jul-2014
546,Revenue,CCHD,Bed Purchasing - Under 65s PWLD - South,Permanent Residential,Eclipse Office Park,5534.96, 08-Jul-2014
547,Revenue,CCHD,Bed purchasing - S28A Under 65 - South,Permanent Nursing,Eclipse Office Park,7294.32, 08-Jul-2014
548,Revenue,CCHD,MH Purchasing - Younger,Permanent Residential,Eclipse Office Park,860.20, 08-Jul-2014
549,Revenue,CCHD,Bed purchasing - Elderly PWLD - South,Permanent Residential,Eclipse Office Park,5124.60, 08-Jul-2014
550,Revenue,CCHD,Bed purchasing - Elderly PWLD - South,Permanent Residential,Eclipse Office Park,3877.68, 08-Jul-2014
551,Revenue,CCHD,Bed purchasing - Elderly PWLD - North,Permanent Residential,Eclipse Office Park,11352.19, 08-Jul-2014
552,Revenue,CCHD,Bed purchasing -S28A  Under 65 - North,Permanent Residential,Eclipse Office Park,5258.04, 08-Jul-2014
553,Revenue,CCHD,Bed purchasing -S28A  Under 65 - North,Permanent Residential,Eclipse Office Park,7058.72, 08-Jul-2014
554,Revenue,CCHD,Bed purchasing -S28A  Under 65 - North,Permanent Nursing,Eclipse Office Park,6244.88, 08-Jul-2014
555,Revenue,CCHD,Bed Purchasing - Under 65s PWLD - South,Permanent Residential,Eclipse Office Park,4515.52, 08-Jul-2014
556,Revenue,CCHD,Bed Purchasing - Elderly - South,Permanent Residential,Eclipse Office Park,3210.16, 08-Jul-2014
557,Revenue,CCHD,Bed purchasing -S28A  Under 65 - North,Permanent Residential,Eclipse Office Park,6755.12, 08-Jul-2014
558,Revenue,CCHD,Bed purchasing - S28A Under 65 - South,Permanent Residential,Eclipse Office Park,4525.88, 08-Jul-2014
559,Revenue,CCHD,Bed Purchasing - S28A - Over 65- North,Permanent Residential,Eclipse Office Park,6604.52, 08-Jul-2014
560,Revenue,CCHD,Bed Purchasing - LD S28A- Over 65- South,Permanent Residential,Eclipse Office Park,4176.64, 08-Jul-2014
561,Revenue,CCHD,Bed purchasing -S28A  Under 65 - North,Permanent Residential,Eclipse Office Park,7114.72, 08-Jul-2014
562,Revenue,CCHD,Bed purchasing -S28A  Under 65 - North,Permanent Residential,Eclipse Office Park,7058.72, 08-Jul-2014
563,Revenue,CCHD,Bed Purchasing - LD S28A- Over 65- South,Permanent Residential,Eclipse Office Park,4098.32, 08-Jul-2014
564,Revenue,CCHD,Bed purchasing - S28A Under 65 - South,Permanent Residential,Eclipse Office Park,4867.92, 08-Jul-2014
565,Revenue,CCHD,Bed purchasing - S28A Under 65 - South,Permanent Residential,Eclipse Office Park,4761.36, 08-Jul-2014
566,Revenue,CCHD,Bed purchasing - S28A Under 65 - South,Permanent Residential,Eclipse Office Park,3663.96, 08-Jul-2014
567,Revenue,CCHD,Bed Purchasing - LD S28A- Over 65- South,Permanent Residential,Eclipse Office Park,5091.12, 08-Jul-2014
568,Revenue,CCHD,Bed Purchasing - LD S28A- Over 65- South,Permanent Residential,Eclipse Office Park,5031.12, 08-Jul-2014
569,Revenue,CCHD,Bed Purchasing - LD S28A- Over 65- South,Permanent Residential,Eclipse Office Park,5187.16, 08-Jul-2014
570,Revenue,CCHD,Bed Purchasing - LD S28A- Over 65- South,Permanent Residential,Eclipse Office Park,4353.28, 08-Jul-2014
571,Revenue,CCHD,Bed Purchasing - LD S28A- Over 65- South,Permanent Residential,Eclipse Office Park,5170.20, 08-Jul-2014
572,Revenue,CCHD,Bed purchasing -S28A  Under 65 - North,Permanent Nursing,Eclipse Office Park,6328.12, 08-Jul-2014
573,Revenue,CCHD,Bed Purchasing - S28A - Over 65- North,Permanent Residential,Eclipse Office Park,2875.08, 08-Jul-2014
574,Revenue,CCHD,Section 117 Placements MH Younger,Permanent Residential,Eclipse Office Park,1356.00, 08-Jul-2014
575,Revenue,CCHD,Bed purchasing - Elderly MH - North,Permanent Residential,Eclipse Office Park,860.20, 08-Jul-2014
576,Revenue,CCHD,Bed purchasing - S28A Under 65 - South,Permanent Residential,Eclipse Office Park,5415.92, 08-Jul-2014
577,Revenue,CCHD,Bed purchasing - Elderly PWLD - North,Permanent Residential,Eclipse Office Park,4307.44, 08-Jul-2014
578,Revenue,CCHD,Bed purchasing - Elderly MH - North,Permanent Nursing,Eclipse Office Park,1104.48, 08-Jul-2014
579,Revenue,CCHD,Bed Purchasing - Under 65s PWLD - South,Permanent Residential,Eclipse Office Park,4271.52, 08-Jul-2014
580,Revenue,CCHD,Bed purchasing -S28A  Under 65 - North,Permanent Residential,Eclipse Office Park,5675.56, 08-Jul-2014
581,Revenue,CCHD,Bed Purchasing - S28A - Over 65- North,Permanent Residential,Eclipse Office Park,3599.08, 08-Jul-2014
582,Revenue,CCHD,Bed Purchasing - Elderly S117- North,Permanent Residential,Eclipse Office Park,1756.00, 08-Jul-2014
583,Revenue,CCHD,MH Purchasing - Younger,Permanent Residential,Eclipse Office Park,1036.60, 08-Jul-2014
584,Revenue,CCHD,Bed Purchasing - S28A - Over 65- North,Permanent Residential,Eclipse Office Park,3214.56, 08-Jul-2014
585,Revenue,CCHD,Bed Purchasing - LD S28A- Over 65- South,Permanent Residential,Eclipse Office Park,3882.08, 08-Jul-2014
586,Revenue,CCHD,Bed purchasing - S28A Under 65 - South,Permanent Residential,Eclipse Office Park,5471.56, 08-Jul-2014
587,Revenue,CCHD,Bed purchasing - S28A Under 65 - South,Permanent Nursing,Eclipse Office Park,5364.24, 08-Jul-2014
588,Revenue,CCHD,Bed Purchasing - LD S28A- Over 65- South,Permanent Nursing,Eclipse Office Park,5225.52, 08-Jul-2014
589,Revenue,CCHD,Bed Purchasing - LD S28A- Over 65- South,Permanent Residential,Eclipse Office Park,4802.88, 08-Jul-2014
590,Revenue,CCHD,Bed Purchasing - LD S28A- Over 65- South,Permanent Residential,Eclipse Office Park,4524.76, 08-Jul-2014
591,Revenue,CCHD,Bed Purchasing - LD S28A- Over 65- South,Permanent Residential,Eclipse Office Park,4599.84, 08-Jul-2014
592,Revenue,CCHD,Bed purchasing - S28A Under 65 - South,Permanent Residential,Eclipse Office Park,6053.44, 08-Jul-2014
593,Revenue,CCHD,Bed Purchasing - LD S28A- Over 65- South,Permanent Residential,Eclipse Office Park,4667.16, 08-Jul-2014
594,Revenue,CCHD,Bed Purchasing - S28A - Over 65- North,Permanent Residential,Eclipse Office Park,4750.44, 08-Jul-2014
595,Revenue,CCHD,Bed Purchasing - Elderly S117- North,Permanent Nursing,Eclipse Office Park,1816.00, 08-Jul-2014
596,Revenue,CCHD,Bed Purchasing - S28A - Over 65- North,Permanent Residential,Eclipse Office Park,4588.52, 08-Jul-2014
597,Revenue,CCHD,Bed Purchasing - S28A - Over 65- North,Permanent Residential,Eclipse Office Park,4759.28, 08-Jul-2014
598,Revenue,CCHD,Bed purchasing - S28A Under 65 - South,Permanent Residential,Eclipse Office Park,4756.28, 08-Jul-2014
599,Revenue,CCHD,Bed Purchasing - S28A - Over 65- North,Permanent Residential,Eclipse Office Park,4503.16, 08-Jul-2014
600,Revenue,CCHD,Bed purchasing -S28A  Under 65 - North,Permanent Residential,Eclipse Office Park,7058.72, 08-Jul-2014
601,Revenue,CCHD,Bed purchasing -S28A  Under 65 - North,Permanent Residential,Eclipse Office Park,2968.28, 08-Jul-2014
602,Revenue,CCHD,Bed Purchasing - S28A - Over 65- North,Permanent Residential,Eclipse Office Park,3133.72, 08-Jul-2014
603,Revenue,CCHD,Bed Purchasing - S28A - Over 65- North,Permanent Residential,Eclipse Office Park,3266.96, 08-Jul-2014
604,Revenue,CCHD,Bed purchasing - Under 65s PWLD - North,Permanent Residential,Eclipse Office Park,6773.16, 08-Jul-2014
605,Revenue,CCHD,Bed Purchasing - Elderly - South,Permanent Residential,Eclipse Office Park,1318.68, 08-Jul-2014
606,Revenue,CCHD,MH Purchasing - Younger,Permanent Nursing,Eclipse Office Park,937.76, 08-Jul-2014
607,Revenue,CCHD,MH Purchasing - Younger,Permanent Nursing,Eclipse Office Park,952.20, 08-Jul-2014
608,Revenue,CCHD,Bed purchasing - Elderly PWLD - South,Permanent Residential,Eclipse Office Park,3254.24, 08-Jul-2014
609,Revenue,CCHD,Bed purchasing - S28A Under 65 - South,Permanent Residential,Eclipse Office Park,5919.12, 08-Jul-2014
610,Revenue,CCHD,Bed purchasing - S28A Under 65 - South,Permanent Residential,Eclipse Office Park,6010.16, 08-Jul-2014
611,Revenue,CCHD,Bed Purchasing - LD S28A- Over 65- South,Permanent Residential,Eclipse Office Park,4353.28, 08-Jul-2014
612,Revenue,CCHD,Bed Purchasing - Under 65s PWLD - South,Permanent Residential,Eclipse Office Park,5919.52, 08-Jul-2014
613,Revenue,CCHD,Bed Purchasing - LD S28A- Over 65- South,Permanent Nursing,Eclipse Office Park,4528.36, 08-Jul-2014
614,Revenue,CCHD,Bed Purchasing - LD S28A- Over 65- South,Permanent Nursing,Eclipse Office Park,5225.52, 08-Jul-2014
615,Revenue,CCHD,Bed Purchasing - LD S28A- Over 65- South,Permanent Residential,Eclipse Office Park,3609.44, 08-Jul-2014
616,Revenue,CCHD,Bed Purchasing - LD S28A- Over 65- South,Permanent Residential,Eclipse Office Park,4343.36, 08-Jul-2014
617,Revenue,CCHD,Bed Purchasing - Elderly MH - South,Permanent Residential,Eclipse Office Park,1224.16, 08-Jul-2014
618,Revenue,CCHD,Bed purchasing -S28A  Under 65 - North,Permanent Nursing,Eclipse Office Park,7675.92, 08-Jul-2014
619,Revenue,CCHD,Bed Purchasing - Frenchay Hospital,Permanent Nursing,Eclipse Office Park,1348.48, 08-Jul-2014
620,Revenue,CCHD,Bed Purchasing - Under 65s PWLD - South,Permanent Residential,Eclipse Office Park,5398.35, 08-Jul-2014
621,Revenue,CCHD,Bed Purchasing - Elderly S117- North,Permanent Nursing,Eclipse Office Park,1992.00, 08-Jul-2014
622,Revenue,CCHD,Section 117 Placements MH Younger,Permanent Residential,Eclipse Office Park,1356.00, 08-Jul-2014
623,Revenue,CCHD,Bed purchasing - Elderly PWLD - South,Permanent Nursing,Eclipse Office Park,3389.36, 08-Jul-2014
624,Revenue,CCHD,Bed Purchasing - Elderly - South,Permanent Residential,Eclipse Office Park,3389.48, 08-Jul-2014
625,Revenue,CCHD,Bed Purchasing - LD S28A- Over 65- South,Permanent Nursing,Eclipse Office Park,2981.68, 08-Jul-2014
626,Revenue,CCHD,Bed Purchasing - LD S28A- Over 65- South,Permanent Nursing,Eclipse Office Park,2767.44, 08-Jul-2014
627,Revenue,CCHD,Bed Purchasing - S28A - Over 65- North,Permanent Nursing,Eclipse Office Park,3692.72, 08-Jul-2014
628,Revenue,CCHD,Bed Purchasing - S28A - Over 65- North,Permanent Nursing,Eclipse Office Park,3684.72, 08-Jul-2014
629,Revenue,CCHD,MH Purchasing - Younger,Respite Planned - Residential,Eclipse Office Park,3734.48, 08-Jul-2014
630,Revenue,CCHD,Bed Purchasing - Elderly - South,Permanent Residential,Edgecumbe Lodge,1533.80, 08-Jul-2014
631,Revenue,CCHD,Bed Purchasing - Southmead Hospital,Permanent Residential,Edgecumbe Lodge,1260.20, 08-Jul-2014
632,Revenue,CCHD,Bed Purchasing - Elderly - South,Permanent Residential,Edgecumbe Lodge,1056.36, 08-Jul-2014
633,Revenue,CCHD,Bed Purchasing - Elderly - South,Permanent Residential,Edgecumbe Lodge,1453.32, 08-Jul-2014
634,Revenue,CCHD,Bed Purchasing - Southmead Hospital,Permanent Residential,Edgecumbe Lodge,2131.08, 08-Jul-2014
635,Revenue,CCHD,Bed Purchasing - Elderly - South,Permanent Residential,Edgecumbe Lodge,1427.00, 08-Jul-2014
636,Revenue,CCHD,Bed Purchasing - Southmead Hospital,Permanent Residential,Edgecumbe Lodge,1533.80, 08-Jul-2014
637,Revenue,CCHD,Bed Purchasing - Elderly - South,Permanent Residential,Edgecumbe Lodge,1141.04, 08-Jul-2014
638,Revenue,CCHD,Bed Purchasing - Elderly - South,Permanent Residential,Edgecumbe Lodge,1286.84, 08-Jul-2014
639,Revenue,CCHD,Bed Purchasing - Elderly - South,Permanent Residential,Edgecumbe Lodge,1231.12, 08-Jul-2014
640,Revenue,CCHD,Bed purchasing - Elderly MH - North,Permanent Residential,Edgecumbe Lodge,1372.64, 08-Jul-2014
641,Revenue,CCHD,Bed Purchasing - Southmead Hospital,Permanent Residential,Edgemont House Ltd,1432.20, 08-Jul-2014
642,Revenue,CCHD,Bed Purchasing - Elderly - South,Permanent Residential,Edgemont House Ltd,1472.92, 08-Jul-2014
643,Revenue,CCHD,Bed Purchasing - Elderly - South,Permanent Residential,Edgemont House Ltd,1260.20, 08-Jul-2014
644,Revenue,CCHD,Bed Purchasing - Elderly - South,Permanent Residential,Edgemont House Ltd,1260.20, 08-Jul-2014
645,Revenue,CCHD,Bed Purchasing - Elderly - South,Respite Planned - Residential,Edgemont House Ltd,1108.57, 08-Jul-2014
646,Revenue,CCHD,Bed Purchasing - Elderly - South,Permanent Residential,Edgemont House Ltd,1430.32, 08-Jul-2014
647,Revenue,CCHD,Bed Purchasing - Elderly - South,Permanent Residential,Edgemont House Ltd,1286.96, 08-Jul-2014
648,Revenue,CCHD,Bed Purchasing - Elderly - North,Permanent Nursing,Edgemont View Nursing Home,1217.24, 08-Jul-2014
649,Revenue,CCHD,Bed Purchasing - Elderly - South,Permanent Nursing,Edgemont View Nursing Home,1445.88, 08-Jul-2014
650,Revenue,CCHD,Bed Purchasing - Frenchay Hospital,Permanent Nursing,Edgemont View Nursing Home,9934.97, 08-Jul-2014
651,Revenue,CCHD,Bed Purchasing - Frenchay Hospital,Permanent Nursing,Edgemont View Nursing Home,1275.80, 08-Jul-2014
652,Revenue,CCHD,Bed Purchasing - Elderly - South,Permanent Nursing,Edgemont View Nursing Home,1320.36, 08-Jul-2014
653,Revenue,CCHD,Bed Purchasing - Elderly - South,Permanent Nursing,Edgemont View Nursing Home,1634.80, 08-Jul-2014
654,Revenue,CCHD,Bed Purchasing - Elderly - South,Permanent Nursing,Edgemont View Nursing Home,1196.68, 08-Jul-2014
655,Revenue,CCHD,Supporting People Programme,Grants to Voluntary Bodies,Elim Housing Association Limited,5018.50, 01-Jul-2014
656,Revenue,CCHD,Home Care - Elderly - South,Other Small Contracts,Elite Home Care Ltd,4719.60, 18-Jul-2014
657,Revenue,CCHD,Home Care - Elderly - North,Other Small Contracts,Elite Home Care Ltd,332.12, 18-Jul-2014
658,Revenue,CCHD,Home Care - Elderly - South,Other Small Contracts,Elite Home Care Ltd,5213.41, 18-Jul-2014
659,Revenue,CCHD,Home Care - Elderly - North,Other Small Contracts,Elite Home Care Ltd,332.12, 18-Jul-2014
660,Revenue,CCHD,Home Care - Elderly - South,Other Small Contracts,Elite Home Care Ltd,4435.55, 18-Jul-2014
661,Revenue,CCHD,Home Care - Elderly - North,Other Small Contracts,Elite Home Care Ltd,323.38, 18-Jul-2014
662,Revenue,CCHD,Home Care - Elderly - South,Other Small Contracts,Elite Home Care Ltd,4968.69, 18-Jul-2014
663,Revenue,CCHD,Home Care - Elderly - North,Other Small Contracts,Elite Home Care Ltd,332.12, 18-Jul-2014
664,Revenue,CCHD,Bed Purchasing - Elderly - South,Permanent Residential,Elmbridge Residential Home Ltd,1338.08, 08-Jul-2014
665,Revenue,CCHD,Day Care - South,Private & Voluntary Day Care,Enham,638.72, 11-Jul-2014
666,Revenue,CCHD,Home Care - Elderly - South,Other Small Contracts,Everycare (Bristol) Ltd,4747.25, 24-Jul-2014
667,Revenue,CCHD,Home Care - Elderly - North,Other Small Contracts,Everycare (Bristol) Ltd,2575.50, 24-Jul-2014
668,Revenue,CCHD,Day Care - South,Private & Voluntary Day Care,Everycare (Bristol) Ltd,89.25, 24-Jul-2014
669,Revenue,CCHD,Under 65s -MH  Home Care Purch,Other Small Contracts,Everycare (Bristol) Ltd,85.00, 24-Jul-2014
670,Revenue,CCHD,Home Care - Elderly - South,Other Small Contracts,Everycare (Bristol) Ltd,4662.25, 28-Jul-2014
671,Revenue,CCHD,Home Care - Elderly - North,Other Small Contracts,Everycare (Bristol) Ltd,2864.50, 28-Jul-2014
672,Revenue,CCHD,Day Care - South,Private & Voluntary Day Care,Everycare (Bristol) Ltd,102.00, 28-Jul-2014
673,Revenue,CCHD,Under 65s -MH  Home Care Purch,Other Small Contracts,Everycare (Bristol) Ltd,85.00, 28-Jul-2014
674,Revenue,CCHD,Home Care - Elderly - South,Private & Voluntary Day Care,Everycare (Bristol) Ltd,29.75, 31-Jul-2014
675,Revenue,CCHD,Home Care - Elderly - South,Other Small Contracts,Everycare (Bristol) Ltd,4271.25, 31-Jul-2014
676,Revenue,CCHD,Home Care - Elderly - North,Other Small Contracts,Everycare (Bristol) Ltd,2788.00, 31-Jul-2014
677,Revenue,CCHD,Day Care - South,Private & Voluntary Day Care,Everycare (Bristol) Ltd,59.50, 31-Jul-2014
678,Revenue,CCHD,Under 65s -MH  Home Care Purch,Other Small Contracts,Everycare (Bristol) Ltd,85.00, 31-Jul-2014
679,Revenue,CCHD,Home Care - Elderly - South,Other Small Contracts,Everycare (Bristol) Ltd,4207.50, 31-Jul-2014
680,Revenue,CCHD,Home Care - Elderly - North,Other Small Contracts,Everycare (Bristol) Ltd,2847.50, 31-Jul-2014
681,Revenue,CCHD,Day Care - South,Private & Voluntary Day Care,Everycare (Bristol) Ltd,63.75, 31-Jul-2014
682,Revenue,CCHD,Under 65s -MH  Home Care Purch,Other Small Contracts,Everycare (Bristol) Ltd,85.00, 31-Jul-2014
683,Revenue,CCHD,Bed Purchasing - Elderly MH - South,Permanent Residential,Exmouth House,1420.84, 08-Jul-2014
684,Revenue,CCHD,Bed Purchasing - Southmead Hospital,Permanent Residential,Fairfield House Care Home,1474.96, 08-Jul-2014
685,Revenue,CCHD,Bed Purchasing - Elderly - South,Permanent Nursing,Fairview Court,1186.56, 08-Jul-2014
686,Revenue,CCHD,Bed Purchasing - Elderly MH - South,Permanent Nursing,Fairview Court,1880.16, 08-Jul-2014
687,Revenue,CCHD,Bed Purchasing - Frenchay Hospital,Permanent Nursing,Fairview Court,1879.96, 08-Jul-2014
688,Revenue,CCHD,Bed Purchasing - Frenchay Hospital,Permanent Nursing,Fairview Court,1611.39, 08-Jul-2014
689,Revenue,CCHD,Bed Purchasing - Elderly MH - South,Permanent Nursing,Fairview Court,1962.56, 08-Jul-2014
690,Revenue,CCHD,Bed Purchasing - Elderly MH - South,Permanent Residential,Fairview Court,1432.20, 08-Jul-2014
691,Revenue,CCHD,Bed Purchasing - Elderly - South,Permanent Nursing,Fairview Court,3626.15, 08-Jul-2014
692,Revenue,CCHD,Bed Purchasing - Elderly - South,Permanent Nursing,Fairview Court,1646.60, 08-Jul-2014
693,Revenue,CCHD,Swift Dump Code,Permanent Residential,Fairview Court,632.57, 08-Jul-2014
694,Revenue,CCHD,Bed Purchasing - Elderly - South,Permanent Nursing,Fairview Court,1774.64, 08-Jul-2014
695,Revenue,CCHD,Bed Purchasing - Elderly - South,Permanent Residential,Fairview Court,2687.76, 08-Jul-2014
696,Revenue,CCHD,Bed Purchasing - Elderly MH - South,Permanent Nursing,Fairview Court,2001.48, 08-Jul-2014
697,Revenue,CCHD,Bed Purchasing - Elderly - South,Permanent Nursing,Fairview Court,1858.80, 08-Jul-2014
698,Revenue,CCHD,Bed Purchasing - Frenchay Hospital,Permanent Nursing,Fairview Court,1860.64, 08-Jul-2014
699,Revenue,CCHD,Bed Purchasing - Elderly - South,Permanent Nursing,Fairview Court,2739.96, 08-Jul-2014
700,Revenue,CCHD,Bed Purchasing - Elderly - South,Permanent Residential,Fairview Court,1723.28, 08-Jul-2014
701,Revenue,CCHD,Bed Purchasing - Elderly MH - South,Permanent Nursing,Fairview Court,1951.44, 08-Jul-2014
702,Revenue,CCHD,Bed purchasing - Elderly MH - North,Permanent Nursing,Fairview Court,1713.92, 08-Jul-2014
703,Revenue,CCHD,Bed Purchasing - Elderly - South,Permanent Nursing,Fairview Court Care Home,1126.41, 08-Jul-2014
704,Revenue,CCHD,Bed Purchasing - Elderly MH - South,Permanent Nursing,Fairview Court Care Home,985.15, 08-Jul-2014
705,Revenue,CCHD,Bed purchasing - Phys Dis - North,Permanent Nursing,Fairview Court Care Home,1991.06, 08-Jul-2014
706,Revenue,CCHD,Bed Purchasing - Elderly MH - South,Permanent Nursing,Fairview Court Care Home,1997.10, 08-Jul-2014
707,Revenue,CCHD,Bed Purchasing - Frenchay Hospital,Permanent Nursing,Fairview Court Care Home,1521.17, 08-Jul-2014
708,Revenue,CCHD,Bed purchasing - Elderly S117 - South,Permanent Nursing,Fairview Court Care Home,2528.31, 08-Jul-2014
709,Revenue,CCHD,S75 CCG Interim Beds,Permanent Nursing,Fairview Court Care Home,6757.20, 14-Jul-2014
710,Revenue,CCHD,Bed Purchasing - Elderly - South,Permanent Residential,Fairview House,872.32, 08-Jul-2014
711,Revenue,CCHD,Bed Purchasing - Elderly - South,Permanent Residential,Fairview House,1287.28, 08-Jul-2014
712,Revenue,CCHD,Bed Purchasing - Elderly - South,Permanent Residential,Fairview House,936.60, 08-Jul-2014
713,Revenue,CCHD,Bed purchasing - Elderly S117 - South,Permanent Residential,Fairview House,1916.84, 08-Jul-2014
714,Revenue,CCHD,Bed Purchasing - Elderly - South,Permanent Residential,Fairview House,721.24, 08-Jul-2014
715,Revenue,CCHD,Bed Purchasing - Elderly - South,Permanent Residential,Fairview House,1260.20, 08-Jul-2014
716,Revenue,CCHD,Bed Purchasing - Elderly - South,Permanent Residential,Fairview House,1192.92, 08-Jul-2014
717,Revenue,CCHD,Bed Purchasing - Southmead Hospital,Permanent Residential,Fairview House,1130.96, 08-Jul-2014
718,Revenue,CCHD,Bed Purchasing - Elderly MH - South,Permanent Residential,Fairview House,1117.92, 08-Jul-2014
719,Revenue,CCHD,Bed Purchasing - Frenchay Hospital,Permanent Residential,Fairview House,1260.20, 08-Jul-2014
720,Revenue,CCHD,Bed Purchasing - Southmead Hospital,Permanent Residential,Fairview House,1077.32, 08-Jul-2014
721,Revenue,CCHD,Bed Purchasing - Elderly MH - South,Permanent Residential,Fairview House,1039.60, 08-Jul-2014
722,Revenue,CCHD,Bed Purchasing - Elderly - North,Permanent Residential,Faith House,1421.89, 08-Jul-2014
723,Revenue,CCHD,Bed Purchasing - Frenchay Hospital,Permanent Residential,Faith House,1223.28, 08-Jul-2014
724,Revenue,CCHD,Bed purchasing - Under 65s PWLD - North,Permanent Residential,Fernbank,7706.00, 08-Jul-2014
725,Revenue,CCHD,Home Care - Elderly - South,Other Small Contracts,Firstpoint Homecare Ltd,1079.04, 08-Jul-2014
726,Revenue,CCHD,Home Care - Elderly - North,Private & Voluntary Day Care,Firstpoint Homecare Ltd,49.92, 08-Jul-2014
727,Revenue,CCHD,Home Care - Elderly - North,Other Small Contracts,Firstpoint Homecare Ltd,1159.68, 08-Jul-2014
728,Revenue,CCHD,Day Care - South,Private & Voluntary Day Care,Firstpoint Homecare Ltd,149.76, 08-Jul-2014
729,Revenue,CCHD,Under 65s -MH  Home Care Purch,Other Small Contracts,Firstpoint Homecare Ltd,46.08, 08-Jul-2014
730,Revenue,CCHD,Home care - Elderly MH - North,Other Small Contracts,Firstpoint Homecare Ltd,34.56, 08-Jul-2014
731,Revenue,CCHD,Home Care - Elderly - South,Other Small Contracts,Firstpoint Homecare Ltd,1117.44, 08-Jul-2014
732,Revenue,CCHD,Home Care - Elderly - North,Other Small Contracts,Firstpoint Homecare Ltd,1274.88, 08-Jul-2014
733,Revenue,CCHD,Day Care - South,Private & Voluntary Day Care,Firstpoint Homecare Ltd,157.44, 08-Jul-2014
734,Revenue,CCHD,Under 65s -MH  Home Care Purch,Other Small Contracts,Firstpoint Homecare Ltd,46.08, 08-Jul-2014
735,Revenue,CCHD,Home care - Elderly MH - North,Other Small Contracts,Firstpoint Homecare Ltd,34.56, 08-Jul-2014
736,Revenue,CCHD,Home Care - Elderly - South,Other Small Contracts,Firstpoint Homecare Ltd,1294.08, 24-Jul-2014
737,Revenue,CCHD,Home Care - Elderly - North,Other Small Contracts,Firstpoint Homecare Ltd,1313.28, 24-Jul-2014
738,Revenue,CCHD,Day Care - South,Private & Voluntary Day Care,Firstpoint Homecare Ltd,153.60, 24-Jul-2014
739,Revenue,CCHD,Home care - Elderly MH - North,Other Small Contracts,Firstpoint Homecare Ltd,49.92, 24-Jul-2014
740,Revenue,CCHD,Home Care - Elderly - South,Other Small Contracts,Firstpoint Homecare Ltd,1539.84, 28-Jul-2014
741,Revenue,CCHD,Home Care - Elderly - North,Other Small Contracts,Firstpoint Homecare Ltd,1635.84, 28-Jul-2014
742,Revenue,CCHD,Day Care - South,Private & Voluntary Day Care,Firstpoint Homecare Ltd,122.88, 28-Jul-2014
743,Revenue,CCHD,Under 65s -MH  Home Care Purch,Other Small Contracts,Firstpoint Homecare Ltd,46.08, 28-Jul-2014
744,Revenue,CCHD,Home care - Elderly MH - North,Other Small Contracts,Firstpoint Homecare Ltd,46.08, 28-Jul-2014
745,Revenue,CCHD,Learning Difficulties Development Fund,Other Supplies & Services,Forest of Avon Trust,2500.00, 10-Jul-2014
746,Revenue,CCHD,Bed Purchasing - Elderly - South,Permanent Nursing,Four Seasons Health Care,1196.88, 08-Jul-2014
747,Revenue,CCHD,Bed Purchasing - Elderly S117- North,Permanent Residential,Four Seasons Health Care,2060.40, 08-Jul-2014
748,Revenue,CCHD,Bed Purchasing - Frenchay Hospital,Permanent Residential,Four Seasons Health Care,1550.64, 08-Jul-2014
749,Revenue,CCHD,Freeways,Permanent Residential,Freeways Trust Limited,3611.80, 11-Jul-2014
750,Revenue,CCHD,Freeways,Permanent Residential,Freeways Trust Limited,2269.08, 11-Jul-2014
751,Revenue,CCHD,Freeways,Permanent Residential,Freeways Trust Limited,2346.88, 11-Jul-2014
752,Revenue,CCHD,Freeways,Permanent Residential,Freeways Trust Limited,2993.72, 11-Jul-2014
753,Revenue,CCHD,Freeways,Permanent Residential,Freeways Trust Limited,2346.88, 11-Jul-2014
754,Revenue,CCHD,Freeways,Permanent Residential,Freeways Trust Limited,3357.44, 11-Jul-2014
755,Revenue,CCHD,Freeways,Permanent Residential,Freeways Trust Limited,3242.64, 11-Jul-2014
756,Revenue,CCHD,Freeways,Permanent Residential,Freeways Trust Limited,3522.28, 11-Jul-2014
757,Revenue,CCHD,Freeways,Permanent Residential,Freeways Trust Limited,3077.48, 11-Jul-2014
758,Revenue,CCHD,Freeways,Permanent Residential,Freeways Trust Limited,2870.20, 11-Jul-2014
759,Revenue,CCHD,Freeways,Permanent Residential,Freeways Trust Limited,3211.48, 11-Jul-2014
760,Revenue,CCHD,Freeways,Permanent Residential,Freeways Trust Limited,3077.36, 11-Jul-2014
761,Revenue,CCHD,Freeways,Permanent Residential,Freeways Trust Limited,3573.72, 11-Jul-2014
762,Revenue,CCHD,Freeways,Permanent Residential,Freeways Trust Limited,2435.12, 11-Jul-2014
763,Revenue,CCHD,Freeways,Permanent Residential,Freeways Trust Limited,2425.52, 11-Jul-2014
764,Revenue,CCHD,Freeways,Permanent Residential,Freeways Trust Limited,2425.52, 11-Jul-2014
765,Revenue,CCHD,Supported Living - South,Private & Voluntary Home Care,Freeways Trust Limited,1168.92, 11-Jul-2014
766,Revenue,CCHD,Bed purchasing - Under 65s PWLD - North,Permanent Residential,Freeways Trust Ltd,2860.04, 08-Jul-2014
767,Revenue,CCHD,Bed purchasing - S28A Under 65 - South,Permanent Residential,Freeways Trust Ltd,2924.48, 08-Jul-2014
768,Revenue,CCHD,Bed purchasing - Under 65s PWLD - North,Permanent Residential,Freeways Trust Ltd,3129.84, 08-Jul-2014
769,Revenue,CCHD,Bed purchasing - Under 65s PWLD - North,Permanent Residential,Freeways Trust Ltd,2286.96, 08-Jul-2014
770,Revenue,CCHD,Bed purchasing - Under 65s PWLD - North,Permanent Residential,Freeways Trust Ltd,2731.36, 08-Jul-2014
771,Revenue,CCHD,Bed Purchasing - Under 65s PWLD - South,Permanent Residential,Freeways Trust Ltd,3338.76, 08-Jul-2014
772,Revenue,CCHD,Bed purchasing - Elderly PWLD - North,Permanent Residential,Freeways Trust Ltd,2266.40, 08-Jul-2014
773,Revenue,CCHD,Bed Purchasing - Under 65s PWLD - South,Permanent Residential,Freeways Trust Ltd,2384.34, 08-Jul-2014
774,Revenue,CCHD,Bed purchasing - Under 65s PWLD - North,Permanent Residential,Freeways Trust Ltd,2731.36, 08-Jul-2014
775,Revenue,CCHD,Bed purchasing - Elderly PWLD - North,Permanent Residential,Freeways Trust Ltd,3155.72, 08-Jul-2014
776,Revenue,CCHD,Section 117 Placements MH Younger,Permanent Residential,Freeways Trust Ltd,3373.20, 08-Jul-2014
777,Revenue,CCHD,Bed purchasing - Under 65s PWLD - North,Permanent Residential,Freeways Trust Ltd,3901.68, 08-Jul-2014
778,Revenue,CCHD,Bed Purchasing - Under 65s PWLD - South,Permanent Residential,Freeways Trust Ltd,7906.56, 08-Jul-2014
779,Revenue,CCHD,Bed Purchasing - Frenchay Hospital,Permanent Nursing,Frenchay Park Nursing Home,1010.00, 08-Jul-2014
780,Revenue,CCHD,Bed Purchasing - Elderly - South,Permanent Nursing,Frenchay Park Nursing Home,1328.20, 08-Jul-2014
781,Revenue,CCHD,Bed Purchasing - Elderly - South,Permanent Nursing,Fshc  1St Floor,896.16, 08-Jul-2014
782,Revenue,CCHD,Bed Purchasing - Frenchay Hospital,Permanent Residential,Fshc  1St Floor,894.12, 08-Jul-2014
783,Revenue,CCHD,Bed Purchasing - Southmead Hospital,Permanent Nursing,Fshc  1St Floor,795.20, 08-Jul-2014
784,Revenue,CCHD,Bed Purchasing - Frenchay Hospital,Permanent Residential,Fshc  1St Floor,1260.20, 08-Jul-2014
785,Revenue,CCHD,Bed Purchasing - Frenchay Hospital,Permanent Nursing,Fshc  1St Floor,1388.20, 08-Jul-2014
786,Revenue,CCHD,Bed Purchasing - Elderly - South,Permanent Nursing,Fshc  1St Floor,779.12, 08-Jul-2014
787,Revenue,CCHD,Bed Purchasing - Southmead Hospital,Permanent Nursing,Fshc  1St Floor,1388.20, 08-Jul-2014
788,Revenue,CCHD,Bed Purchasing - Southmead Hospital,Permanent Nursing,Fshc  1St Floor,774.40, 08-Jul-2014
789,Revenue,CCHD,Bed Purchasing - Frenchay Hospital,Permanent Nursing,Fshc  1St Floor,1388.20, 08-Jul-2014
790,Revenue,CCHD,Bed Purchasing - Elderly - South,Permanent Residential,Fshc  1St Floor,1216.24, 08-Jul-2014
791,Revenue,CCHD,Bed Purchasing - Elderly - South,Permanent Nursing,Fshc  1St Floor,1012.92, 08-Jul-2014
792,Revenue,CCHD,Bed Purchasing - Southmead Hospital,Permanent Nursing,Fshc  1St Floor,1388.20, 08-Jul-2014
793,Revenue,CCHD,Swift Dump Code,Permanent Residential,Fshc  1St Floor,1928.55, 08-Jul-2014
794,Revenue,CCHD,Bed Purchasing - Elderly - South,Permanent Nursing,Fshc  1St Floor,1115.96, 08-Jul-2014
795,Revenue,CCHD,Bed Purchasing - Elderly - South,Permanent Nursing,Fshc  1St Floor,1226.68, 08-Jul-2014
796,Revenue,CCHD,Bed Purchasing - Elderly - South,Permanent Nursing,Fshc  1St Floor,659.08, 08-Jul-2014
797,Revenue,CCHD,Bed Purchasing - Southmead Hospital,Permanent Nursing,Fshc  1St Floor,2417.38, 08-Jul-2014
798,Revenue,CCHD,Bed Purchasing - Southmead Hospital,Permanent Nursing,Fshc  1St Floor,1024.23, 08-Jul-2014
799,Revenue,CCHD,Bed Purchasing - Elderly - South,Permanent Nursing,Fshc  1St Floor,1324.48, 08-Jul-2014
800,Revenue,CCHD,Bed Purchasing - Southmead Hospital,Permanent Nursing,Fshc  1St Floor,1388.20, 08-Jul-2014
801,Revenue,CCHD,Bed Purchasing - Frenchay Hospital,Permanent Nursing,Fshc  1St Floor,774.40, 08-Jul-2014
802,Revenue,CCHD,Bed Purchasing - Elderly - North,Permanent Nursing,Fshc  1St Floor,1388.20, 08-Jul-2014
803,Revenue,CCHD,Bed Purchasing - Frenchay Hospital,Permanent Nursing,Fshc  1St Floor,1884.00, 08-Jul-2014
804,Revenue,CCHD,Bed Purchasing - Elderly - North,Permanent Nursing,Fshc  1St Floor,1884.00, 08-Jul-2014
805,Revenue,CCHD,Bed Purchasing - Frenchay Hospital,Permanent Nursing,Fshc  1St Floor,1204.12, 08-Jul-2014
806,Revenue,CCHD,Bed Purchasing - Elderly - South,Permanent Nursing,Fshc  1St Floor,1388.20, 08-Jul-2014
807,Revenue,CCHD,Bed Purchasing - Elderly - South,Permanent Nursing,Fshc  1St Floor,1337.12, 08-Jul-2014
808,Revenue,CCHD,Bed Purchasing - Elderly - South,Permanent Nursing,Fshc  1St Floor,1372.20, 08-Jul-2014
809,Revenue,CCHD,Bed Purchasing - Frenchay Hospital,Permanent Nursing,Fshc  1St Floor,1096.60, 08-Jul-2014
810,Revenue,CCHD,Bed Purchasing - Elderly MH - South,Permanent Residential,Fshc  1St Floor,1131.72, 08-Jul-2014
811,Revenue,CCHD,Bed Purchasing - Frenchay Hospital,Permanent Nursing,Fshc  1St Floor,2029.67, 08-Jul-2014
812,Revenue,CCHD,Bed Purchasing - Elderly - South,Permanent Nursing,Fshc  1St Floor,1352.20, 08-Jul-2014
813,Revenue,CCHD,Bed Purchasing - Southmead Hospital,Permanent Nursing,Fshc  1St Floor,1388.20, 08-Jul-2014
814,Revenue,CCHD,Bed Purchasing - Elderly MH - South,Permanent Nursing,Fshc  1St Floor,1229.44, 08-Jul-2014
815,Revenue,CCHD,Bed Purchasing - Southmead Hospital,Permanent Nursing,Fshc  1St Floor,1354.16, 08-Jul-2014
816,Revenue,CCHD,Bed purchasing - Elderly MH - North,Permanent Nursing,Fshc  1St Floor,781.44, 08-Jul-2014
817,Revenue,CCHD,Bed Purchasing - Elderly - South,Permanent Nursing,Fshc  1St Floor,993.48, 08-Jul-2014
818,Revenue,CCHD,Bed Purchasing - Elderly - North,Permanent Nursing,Fshc  1St Floor,1137.44, 08-Jul-2014
819,Revenue,CCHD,Bed Purchasing - Elderly - North,Permanent Nursing,Fshc  1St Floor,985.88, 08-Jul-2014
820,Revenue,CCHD,Bed Purchasing - Frenchay Hospital,Permanent Nursing,Fshc  1St Floor,944.48, 08-Jul-2014
821,Revenue,CCHD,Bed Purchasing - Elderly - North,Permanent Nursing,Fshc  1St Floor,1290.68, 08-Jul-2014
822,Revenue,CCHD,Bed Purchasing - Frenchay Hospital,Permanent Nursing,Fshc  1St Floor,1564.20, 08-Jul-2014
823,Revenue,CCHD,Bed Purchasing - Frenchay Hospital,Permanent Residential,Fshc  1St Floor,1142.92, 08-Jul-2014
824,Revenue,CCHD,Bed Purchasing - Elderly - North,Permanent Nursing,Fshc  1St Floor,1347.08, 08-Jul-2014
825,Revenue,CCHD,Bed Purchasing - Southmead Hospital,Permanent Nursing,Fshc  1St Floor,838.48, 08-Jul-2014
826,Revenue,CCHD,Bed Purchasing - Elderly - North,Permanent Nursing,Fshc  1St Floor,1039.60, 08-Jul-2014
827,Revenue,CCHD,Bed Purchasing - Southmead Hospital,Permanent Nursing,Fshc  1St Floor,1220.20, 08-Jul-2014
828,Revenue,CCHD,Bed Purchasing - Elderly - North,Permanent Residential,Fshc  1St Floor,1077.00, 08-Jul-2014
829,Revenue,CCHD,Bed Purchasing - Elderly - North,Permanent Residential,Fshc  1St Floor,1367.48, 08-Jul-2014
830,Revenue,CCHD,Bed Purchasing - Frenchay Hospital,Permanent Nursing,Fshc  1St Floor,931.84, 08-Jul-2014
831,Revenue,CCHD,Bed Purchasing - Frenchay Hospital,Permanent Nursing,Fshc  1St Floor,1104.08, 08-Jul-2014
832,Revenue,CCHD,Bed Purchasing - Frenchay Hospital,Permanent Nursing,Fshc  1St Floor,1129.00, 08-Jul-2014
833,Revenue,CCHD,Bed purchasing - Elderly MH - North,Permanent Nursing,Fshc  1St Floor,1031.68, 08-Jul-2014
834,Revenue,CCHD,Bed Purchasing - Southmead Hospital,Permanent Nursing,Fshc  1St Floor,1289.20, 08-Jul-2014
835,Revenue,CCHD,Bed Purchasing - Elderly - North,Permanent Nursing,Fshc  1St Floor,1220.16, 08-Jul-2014
836,Revenue,CCHD,Bed Purchasing - Frenchay Hospital,Permanent Nursing,Fshc  1St Floor,1128.80, 08-Jul-2014
837,Revenue,CCHD,Bed Purchasing - Frenchay Hospital,Permanent Nursing,Fshc  1St Floor,1588.20, 08-Jul-2014
838,Revenue,CCHD,Bed Purchasing - Elderly - South,Permanent Residential,Fshc  1St Floor,1132.60, 08-Jul-2014
839,Revenue,CCHD,Bed Purchasing - Frenchay Hospital,Permanent Nursing,Fshc  1St Floor,2060.00, 08-Jul-2014
840,Revenue,CCHD,Bed Purchasing - Frenchay Hospital,Permanent Nursing,Fshc  1St Floor,1375.60, 08-Jul-2014
841,Revenue,CCHD,Bed Purchasing - Southmead Hospital,Permanent Nursing,Fshc  1St Floor,1388.20, 08-Jul-2014
842,Revenue,CCHD,Bed Purchasing - Elderly - North,Permanent Nursing,Fshc  1St Floor,574.28, 08-Jul-2014
843,Revenue,CCHD,Bed purchasing - Elderly MH - North,Permanent Nursing,Fshc  1St Floor,1489.72, 08-Jul-2014
844,Revenue,CCHD,Bed Purchasing - Elderly - North,Permanent Nursing,Fshc  1St Floor,1289.20, 08-Jul-2014
845,Revenue,CCHD,Swift Dump Code,Permanent Residential,Fshc  1St Floor,2119.88, 08-Jul-2014
846,Revenue,CCHD,Bed Purchasing - Southmead Hospital,Permanent Nursing,Fshc  1St Floor,1211.36, 08-Jul-2014
847,Revenue,CCHD,Bed Purchasing - Frenchay Hospital,Permanent Nursing,Fshc  1St Floor,1029.80, 08-Jul-2014
848,Revenue,CCHD,Bed Purchasing - Frenchay Hospital,Permanent Residential,Fshc  1St Floor,621.36, 08-Jul-2014
849,Revenue,CCHD,Bed Purchasing - Frenchay Hospital,Permanent Nursing,Fshc  1St Floor,1294.72, 08-Jul-2014
850,Revenue,CCHD,Bed Purchasing - Frenchay Hospital,Permanent Nursing,Fshc  1St Floor,1372.56, 08-Jul-2014
851,Revenue,CCHD,Bed Purchasing - Elderly - North,Permanent Nursing,Fshc  1St Floor,1312.76, 08-Jul-2014
852,Revenue,CCHD,Bed Purchasing - Elderly - North,Permanent Residential,Fshc  1St Floor,779.72, 08-Jul-2014
853,Revenue,CCHD,Bed Purchasing - Southmead Hospital,Permanent Nursing,Fshc  1St Floor,1475.48, 08-Jul-2014
854,Revenue,CCHD,Bed Purchasing - Southmead Hospital,Permanent Nursing,Fshc  1St Floor,1564.20, 08-Jul-2014
855,Revenue,CCHD,Bed Purchasing - Elderly MH - South,Permanent Nursing,Fshc  1St Floor,1338.84, 08-Jul-2014
856,Revenue,CCHD,Bed Purchasing - Elderly - North,Permanent Nursing,Fshc  1St Floor,1471.32, 08-Jul-2014
857,Revenue,CCHD,Bed Purchasing - Elderly MH - South,Permanent Nursing,Fshc  1St Floor,1309.96, 08-Jul-2014
858,Revenue,CCHD,Bed purchasing - Elderly MH - North,Permanent Residential,Fshc  1St Floor,1456.20, 08-Jul-2014
859,Revenue,CCHD,Bed Purchasing - Elderly - North,Permanent Nursing,Fshc  1St Floor,1552.64, 08-Jul-2014
860,Revenue,CCHD,Bed purchasing - Elderly S117 - South,Permanent Nursing,Fshc  1St Floor,1884.00, 08-Jul-2014
861,Revenue,CCHD,Bed purchasing - Elderly MH - North,Permanent Residential,Fshc  1St Floor,1263.96, 08-Jul-2014
862,Revenue,CCHD,Bed Purchasing - Southmead Hospital,Permanent Residential,Fshc  1St Floor,1260.20, 08-Jul-2014
863,Revenue,CCHD,Bed Purchasing - Elderly - North,Permanent Residential,Fshc  1St Floor,1171.36, 08-Jul-2014
864,Revenue,CCHD,Bed Purchasing - Elderly - South,Permanent Nursing,Fshc  1St Floor,1564.20, 08-Jul-2014
865,Revenue,CCHD,Bed purchasing - Elderly MH - North,Permanent Residential,Fshc  1St Floor,1401.92, 08-Jul-2014
866,Revenue,CCHD,Bed Purchasing - Southmead Hospital,Permanent Residential,Fshc  1St Floor,1484.20, 08-Jul-2014
867,Revenue,CCHD,Bed Purchasing - Elderly - North,Permanent Nursing,Fshc  1St Floor,1388.20, 08-Jul-2014
868,Revenue,CCHD,Bed Purchasing - Elderly - North,Permanent Residential,Fshc  1St Floor,1260.20, 08-Jul-2014
869,Revenue,CCHD,Bed Purchasing - Elderly - North,Permanent Nursing,Fshc  1St Floor,1153.32, 08-Jul-2014
870,Revenue,CCHD,Bed Purchasing - Southmead Hospital,Permanent Nursing,Fshc  1St Floor,772.94, 08-Jul-2014
871,Revenue,CCHD,Bed Purchasing - Frenchay Hospital,Permanent Residential,Fshc  1St Floor,1260.20, 08-Jul-2014
872,Revenue,CCHD,Bed Purchasing - Elderly - North,Permanent Nursing,Fshc  1St Floor,587.40, 08-Jul-2014
873,Revenue,CCHD,Bed Purchasing - Southmead Hospital,Permanent Nursing,Fshc  1St Floor,1388.20, 08-Jul-2014
874,Revenue,CCHD,Bed Purchasing - Elderly - North,Respite Planned - Nursing,Fshc  1St Floor,1345.71, 08-Jul-2014
875,Revenue,CCHD,Swift Dump Code,Permanent Residential,Fshc  1St Floor,3130.16, 08-Jul-2014
876,Revenue,CCHD,Bed Purchasing - Elderly - North,Permanent Nursing,Fshc  1St Floor,738.40, 08-Jul-2014
877,Revenue,CCHD,Bed Purchasing - Frenchay Hospital,Permanent Nursing,Fshc  1St Floor,1328.04, 08-Jul-2014
878,Revenue,CCHD,Bed Purchasing - Elderly - North,Permanent Nursing,Fshc  1St Floor,903.52, 08-Jul-2014
879,Revenue,CCHD,Bed Purchasing - Elderly - North,Permanent Nursing,Fshc  1St Floor,1017.20, 08-Jul-2014
880,Revenue,CCHD,Bed Purchasing - Southmead Hospital,Permanent Nursing,Fshc  1St Floor,1024.92, 08-Jul-2014
881,Revenue,CCHD,Bed Purchasing - Frenchay Hospital,Permanent Nursing,Fshc  1St Floor,1388.20, 08-Jul-2014
882,Revenue,CCHD,Bed Purchasing - Elderly - South,Permanent Nursing,Fshc  1St Floor,1394.12, 08-Jul-2014
883,Revenue,CCHD,Bed Purchasing - Frenchay Hospital,Permanent Nursing,Fshc  1St Floor,1321.92, 08-Jul-2014
884,Revenue,CCHD,Bed Purchasing - Frenchay Hospital,Permanent Nursing,Fshc  1St Floor,1388.20, 08-Jul-2014
885,Revenue,CCHD,Bed Purchasing - Southmead Hospital,Permanent Nursing,Fshc  1St Floor,586.56, 08-Jul-2014
886,Revenue,CCHD,Bed Purchasing - Elderly - North,Permanent Nursing,Fshc  1St Floor,1083.08, 08-Jul-2014
887,Revenue,CCHD,Bed Purchasing - Southmead Hospital,Permanent Nursing,Fshc  1St Floor,762.08, 08-Jul-2014
888,Revenue,CCHD,Bed Purchasing - Frenchay Hospital,Permanent Nursing,Fshc  1St Floor,873.88, 08-Jul-2014
889,Revenue,CCHD,Bed Purchasing - Southmead Hospital,Permanent Nursing,Fshc  1St Floor,1312.68, 08-Jul-2014
890,Revenue,CCHD,Bed Purchasing - Elderly - North,Permanent Nursing,Fshc  1St Floor,1270.20, 08-Jul-2014
891,Revenue,CCHD,Bed Purchasing - Elderly - South,Permanent Nursing,Fshc  1St Floor,794.40, 08-Jul-2014
892,Revenue,CCHD,Bed Purchasing - Southmead Hospital,Permanent Nursing,Fshc  1St Floor,1360.32, 08-Jul-2014
893,Revenue,CCHD,Bed Purchasing - Southmead Hospital,Permanent Nursing,Fshc  1St Floor,1822.56, 08-Jul-2014
894,Revenue,CCHD,Bed Purchasing - Elderly - North,Permanent Residential,Fshc  1St Floor,3000.64, 08-Jul-2014
895,Revenue,CCHD,Bed purchasing - Phys Dis - North,Permanent Nursing,Fshc  1St Floor,1394.04, 08-Jul-2014
896,Revenue,CCHD,Bed Purchasing - Elderly - South,Permanent Nursing,Fshc  1St Floor,1242.76, 08-Jul-2014
897,Revenue,CCHD,Bed Purchasing - Southmead Hospital,Permanent Nursing,Fshc  1St Floor,1388.20, 08-Jul-2014
898,Revenue,CCHD,Bed Purchasing - Southmead Hospital,Permanent Nursing,Fshc  1St Floor,1319.28, 08-Jul-2014
899,Revenue,CCHD,Bed Purchasing - Elderly MH - South,Permanent Residential,Fshc  1St Floor,1952.00, 08-Jul-2014
900,Revenue,CCHD,Bed Purchasing - Frenchay Hospital,Permanent Nursing,Fshc  1St Floor,1381.00, 08-Jul-2014
901,Revenue,CCHD,Bed Purchasing - Southmead Hospital,Permanent Residential,Fshc  1St Floor,1484.20, 08-Jul-2014
902,Revenue,CCHD,Bed Purchasing - Elderly - South,Permanent Residential,Fshc  1St Floor,1424.40, 08-Jul-2014
903,Revenue,CCHD,Bed Purchasing - Elderly - North,Permanent Residential,Fshc  1St Floor,1167.12, 08-Jul-2014
904,Revenue,CCHD,Bed Purchasing - Elderly - North,Permanent Nursing,Fshc  1St Floor,1143.32, 08-Jul-2014
905,Revenue,CCHD,Bed Purchasing - Frenchay Hospital,Permanent Nursing,Fshc  1St Floor,1248.96, 08-Jul-2014
906,Revenue,CCHD,Bed Purchasing - Elderly - North,Permanent Nursing,Fshc  1St Floor,1884.00, 08-Jul-2014
907,Revenue,CCHD,Bed purchasing - Elderly MH - North,Permanent Residential,Fshc  1St Floor,1456.20, 08-Jul-2014
908,Revenue,CCHD,Bed Purchasing - Southmead Hospital,Permanent Nursing,Fshc  1St Floor,1203.24, 08-Jul-2014
909,Revenue,CCHD,Bed Purchasing - Southmead Hospital,Permanent Nursing,Fshc  1St Floor,1384.20, 08-Jul-2014
910,Revenue,CCHD,Bed Purchasing - Elderly - South,Permanent Residential,Fshc  1St Floor,901.60, 08-Jul-2014
911,Revenue,CCHD,Bed purchasing - Elderly PWLD - South,Permanent Residential,Fshc  1St Floor,1260.20, 08-Jul-2014
912,Revenue,CCHD,Bed Purchasing - Frenchay Hospital,Permanent Nursing,Fshc  1St Floor,1388.20, 08-Jul-2014
913,Revenue,CCHD,Bed Purchasing - Elderly - North,Permanent Residential,Fshc  1St Floor,3303.52, 08-Jul-2014
914,Revenue,CCHD,Bed Purchasing - Elderly - North,Permanent Residential,Fshc  1St Floor,1201.28, 08-Jul-2014
915,Revenue,CCHD,Bed Purchasing - Frenchay Hospital,Permanent Nursing,Fshc  1St Floor,728.56, 08-Jul-2014
916,Revenue,CCHD,Bed Purchasing - Frenchay Hospital,Permanent Nursing,Fshc  1St Floor,1388.20, 08-Jul-2014
917,Revenue,CCHD,Bed Purchasing - Southmead Hospital,Permanent Nursing,Fshc  1St Floor,1094.12, 08-Jul-2014
918,Revenue,CCHD,Bed Purchasing - Southmead Hospital,Permanent Residential,Fshc  1St Floor,1475.64, 08-Jul-2014
919,Revenue,CCHD,Bed Purchasing - Elderly - South,Permanent Nursing,Fshc  1St Floor,1227.24, 08-Jul-2014
920,Revenue,CCHD,Bed Purchasing - Elderly - South,Permanent Nursing,Fshc  1St Floor,816.76, 08-Jul-2014
921,Revenue,CCHD,Bed purchasing - Elderly S117 - South,Permanent Nursing,Fshc  1St Floor,1884.00, 08-Jul-2014
922,Revenue,CCHD,Bed Purchasing - Frenchay Hospital,Permanent Residential,Fshc  1St Floor,1122.08, 08-Jul-2014
923,Revenue,CCHD,Bed Purchasing - Elderly - North,Permanent Nursing,Fshc  1St Floor,1327.84, 08-Jul-2014
924,Revenue,CCHD,Bed Purchasing - Elderly - South,Permanent Residential,Fshc  1St Floor,1371.40, 08-Jul-2014
925,Revenue,CCHD,Bed Purchasing - Frenchay Hospital,Permanent Nursing,Fshc  1St Floor,777.80, 08-Jul-2014
926,Revenue,CCHD,Bed Purchasing - Elderly - North,Permanent Residential,Fshc  1St Floor,1216.92, 08-Jul-2014
927,Revenue,CCHD,Bed Purchasing - Elderly - South,Permanent Nursing,Fshc  1St Floor,1388.20, 08-Jul-2014
928,Revenue,CCHD,Bed Purchasing - Elderly - South,Permanent Nursing,Fshc  1St Floor,1304.72, 08-Jul-2014
929,Revenue,CCHD,Bed Purchasing - Elderly - South,Permanent Nursing,Fshc  1St Floor,1668.40, 08-Jul-2014
930,Revenue,CCHD,Bed Purchasing - Southmead Hospital,Permanent Nursing,Fshc  1St Floor,1884.00, 08-Jul-2014
931,Revenue,CCHD,Bed Purchasing - Frenchay Hospital,Permanent Nursing,Fshc  1St Floor,1116.56, 08-Jul-2014
932,Revenue,CCHD,Bed Purchasing - Southmead Hospital,Permanent Nursing,Fshc  1St Floor,1121.72, 08-Jul-2014
933,Revenue,CCHD,Bed Purchasing - Frenchay Hospital,Permanent Nursing,Fshc  1St Floor,958.64, 08-Jul-2014
934,Revenue,CCHD,Bed Purchasing - Frenchay Hospital,Permanent Nursing,Fshc  1St Floor,1549.00, 08-Jul-2014
935,Revenue,CCHD,Bed Purchasing - Southmead Hospital,Permanent Nursing,Fshc  1St Floor,1317.24, 08-Jul-2014
936,Revenue,CCHD,Bed Purchasing - Southmead Hospital,Permanent Nursing,Fshc  1St Floor,1365.08, 08-Jul-2014
937,Revenue,CCHD,Bed Purchasing - Frenchay Hospital,Permanent Nursing,Fshc  1St Floor,1388.20, 08-Jul-2014
938,Revenue,CCHD,Bed Purchasing - Southmead Hospital,Permanent Nursing,Fshc  1St Floor,881.80, 08-Jul-2014
939,Revenue,CCHD,Bed Purchasing - Elderly - North,Permanent Nursing,Fshc  1St Floor,1346.88, 08-Jul-2014
940,Revenue,CCHD,Bed purchasing - Phys Dis - North,Permanent Nursing,Fshc  1St Floor,775.72, 08-Jul-2014
941,Revenue,CCHD,Bed Purchasing - Elderly - North,Permanent Nursing,Fshc  1St Floor,1496.20, 08-Jul-2014
942,Revenue,CCHD,Bed Purchasing - Elderly - North,Respite Emergency - Residential,Fshc  1St Floor,1297.14, 08-Jul-2014
943,Revenue,CCHD,Bed Purchasing - Elderly - North,Permanent Nursing,Fshc  1St Floor,1229.36, 08-Jul-2014
944,Revenue,CCHD,Bed Purchasing - Frenchay Hospital,Permanent Nursing,Fshc  1St Floor,1344.20, 08-Jul-2014
945,Revenue,CCHD,Bed Purchasing - Elderly - South,Respite Emergency - Residential,Fshc  1St Floor,1209.43, 08-Jul-2014
946,Revenue,CCHD,Bed Purchasing - Elderly - South,Respite Emergency - Residential,Fshc  1St Floor,782.57, 08-Jul-2014
947,Revenue,CCHD,Bed purchasing - Elderly MH - North,Permanent Nursing,Fshc  1St Floor,857.04, 08-Jul-2014
948,Revenue,CCHD,Bed Purchasing - Southmead Hospital,Permanent Nursing,Fshc  1St Floor,1496.20, 08-Jul-2014
949,Revenue,CCHD,Bed Purchasing - Elderly - North,Permanent Nursing,Fshc  1St Floor,1368.56, 08-Jul-2014
950,Revenue,CCHD,Bed Purchasing - Frenchay Hospital,Permanent Nursing,Fshc  1St Floor,1376.68, 08-Jul-2014
951,Revenue,CCHD,Bed Purchasing - Frenchay Hospital,Permanent Residential,Fshc  1St Floor,1233.08, 08-Jul-2014
952,Revenue,CCHD,Bed Purchasing - Southmead Hospital,Permanent Nursing,Fshc  1St Floor,1307.20, 08-Jul-2014
953,Revenue,CCHD,Bed Purchasing - Southmead Hospital,Permanent Nursing,Fshc  1St Floor,1263.24, 08-Jul-2014
954,Revenue,CCHD,Bed Purchasing - Southmead Hospital,Permanent Nursing,Fshc  1St Floor,1467.24, 08-Jul-2014
955,Revenue,CCHD,Bed purchasing - Elderly S117 - South,Permanent Nursing,Fshc  1St Floor,1992.00, 08-Jul-2014
956,Revenue,CCHD,Bed Purchasing - Frenchay Hospital,Permanent Nursing,Fshc  1St Floor,950.68, 08-Jul-2014
957,Revenue,CCHD,Bed Purchasing - Elderly S117- North,Permanent Nursing,Fshc  1St Floor,1992.00, 08-Jul-2014
958,Revenue,CCHD,Bed Purchasing - Elderly - North,Permanent Residential,Fshc  1St Floor,1400.20, 08-Jul-2014
959,Revenue,CCHD,Bed Purchasing - Elderly - North,Permanent Residential,Fshc  1St Floor,700.10, 08-Jul-2014
960,Revenue,CCHD,Bed Purchasing - Elderly - North,Permanent Residential,Fshc  1St Floor,1432.20, 08-Jul-2014
961,Revenue,CCHD,Bed Purchasing - Frenchay Hospital,Permanent Nursing,Fshc  1St Floor,1100.44, 08-Jul-2014
962,Revenue,CCHD,Bed Purchasing - Elderly - South,Permanent Residential,Fshc  1St Floor,1361.00, 08-Jul-2014
963,Revenue,CCHD,Bed Purchasing - Southmead Hospital,Permanent Residential,FSHC 1st Floor,806.60, 08-Jul-2014
964,Revenue,CCHD,Section 117 Placements MH Younger,Permanent Residential,Gladstone House,2762.16, 08-Jul-2014
965,Revenue,CCHD,Bed Purchasing - Under 65s PWLD - South,Permanent Residential,Glasallt Fawr,4615.60, 08-Jul-2014
966,Revenue,CCHD,Bed purchasing - Elderly MH - North,Permanent Residential,Glebe House Nursing Home,1807.40, 08-Jul-2014
967,Revenue,CCHD,Bed Purchasing - Frenchay Hospital,Permanent Residential,Glebe House Nursing Home,1201.93, 08-Jul-2014
968,Revenue,CCHD,Bed purchasing - Elderly MH - North,Permanent Residential,Glebe House Nursing Home,2044.08, 08-Jul-2014
969,Revenue,CCHD,Bed Purchasing - Elderly - North,Permanent Nursing,Glebe House Nursing Home,1395.84, 08-Jul-2014
970,Revenue,CCHD,Bed Purchasing - Elderly - North,Permanent Residential,Glebe House Nursing Home,1173.84, 08-Jul-2014
971,Revenue,CCHD,Bed Purchasing - Elderly - North,Permanent Residential,Glebe House Nursing Home,921.24, 08-Jul-2014
972,Revenue,CCHD,Bed Purchasing - Elderly - North,Permanent Nursing,Glebe House Nursing Home,1832.52, 08-Jul-2014
973,Revenue,CCHD,Bed Purchasing - Elderly - North,Permanent Nursing,Glebe House Nursing Home,2165.56, 08-Jul-2014
974,Revenue,CCHD,Bed Purchasing - Elderly - North,Permanent Residential,Glebe House Nursing Home,2593.00, 08-Jul-2014
975,Revenue,CCHD,Bed Purchasing - Under 65s PWLD - South,Permanent Residential,Gordena Care Home,2113.64, 08-Jul-2014
976,Revenue,CCHD,Bed purchasing - Elderly PWLD - South,Permanent Residential,Gordena Care Home,4799.84, 08-Jul-2014
977,Revenue,CCHD,Bed purchasing - Elderly PWLD - South,Permanent Residential,Gordena Care Home,3159.76, 08-Jul-2014
978,Revenue,CCHD,Bed purchasing - Elderly PWLD - South,Permanent Residential,Gordena Care Home,2968.16, 08-Jul-2014
979,Revenue,CCHD,Bed Purchasing - Under 65s PWLD - South,Permanent Residential,Gordena Care Home,1933.24, 08-Jul-2014
980,Revenue,CCHD,Bed Purchasing - Under 65s PWLD - South,Permanent Residential,Gordena Care Limited,4217.76, 08-Jul-2014
981,Revenue,CCHD,Bed purchasing - S28A Under 65 - South,Permanent Residential,Gordena Care Limited,4116.00, 08-Jul-2014
982,Revenue,CCHD,Bed purchasing - Under 65s PWLD - North,Permanent Residential,Gordena Care Limited,4218.96, 08-Jul-2014
983,Revenue,CCHD,S75 CCG Interim Beds,Permanent Nursing,Gracefields Nursing Home,41800.00, 14-Jul-2014
984,Revenue,CCHD,Bed Purchasing - Elderly - North,Permanent Residential,Greensleeves,1331.92, 08-Jul-2014
985,Revenue,CCHD,Bed Purchasing - Elderly - South,Respite Planned - Residential,Grove Care,797.14, 08-Jul-2014
986,Revenue,CCHD,s256 - Additional Support Funding,Other Supplies & Services,Growing Support CIC,4333.75, 29-Jul-2014
987,Revenue,CCHD,Bed Purchasing - Elderly - North,Permanent Residential,Gwendoline House,2509.32, 08-Jul-2014
988,Revenue,CCHD,Bed Purchasing - Elderly - South,Permanent Residential,Gwendoline House,1510.00, 08-Jul-2014
989,Revenue,CCHD,Bed Purchasing - Elderly - North,Permanent Residential,Gwendoline House,1661.96, 08-Jul-2014
990,Revenue,CCHD,Bed Purchasing - Elderly MH - South,Permanent Residential,Gwendoline House,1288.20, 08-Jul-2014
991,Revenue,CCHD,Bed Purchasing - Elderly - South,Permanent Residential,Gwendoline House,1143.56, 08-Jul-2014
992,Revenue,CCHD,Supporting People Programme,Grants to Voluntary Bodies,Habinteg Housing Association,1358.58, 01-Jul-2014
993,Revenue,CCHD,Social Lettings Agency,Fees - General,Individual,15.78, 25-Jul-2014
994,Revenue,CCHD,Social Lettings Agency,Other Supplies & Services,Individual,536.55, 25-Jul-2014
995,Revenue,CCHD,Bed Purchasing - Elderly - South,Permanent Residential,Harefield Hall,1347.12, 08-Jul-2014
996,Revenue,CCHD,Bed Purchasing - Elderly - South,Permanent Residential,Harefield Hall,2000.12, 08-Jul-2014
997,Revenue,CCHD,Bed Purchasing - Elderly - South,Permanent Residential,Harefield Hall,1038.28, 08-Jul-2014
998,Revenue,CCHD,Bed Purchasing - Elderly - South,Respite Planned - Residential,Harefield Hall,1021.43, 08-Jul-2014
999,Revenue,CCHD,Bed Purchasing - Elderly MH - South,Permanent Residential,Harefield Hall,1036.40, 08-Jul-2014
1000,Revenue,CCHD,Bed Purchasing - Elderly - South,Permanent Residential,Harefield Hall,1304.48, 08-Jul-2014
1001,Revenue,CCHD,Bed Purchasing - Elderly - South,Permanent Residential,Harefield Hall,666.40, 08-Jul-2014
1002,Revenue,CCHD,Tenancy Start Up Scheme,Other Supplies & Services,Individual,1262.48, 03-Jul-2014
1003,Revenue,CCHD,Bed Purchasing - Southmead Hospital,Permanent Nursing,Hc-One Ltd,1634.80, 08-Jul-2014
1004,Revenue,CCHD,Bed Purchasing - Elderly - North,Permanent Nursing,Hc-One Ltd,1492.36, 08-Jul-2014
1005,Revenue,CCHD,Bed Purchasing - Elderly - North,Permanent Nursing,Hc-One Ltd,1533.56, 08-Jul-2014
1006,Revenue,CCHD,Bed Purchasing - Elderly S117- North,Permanent Nursing,Hc-One Ltd,5730.58, 08-Jul-2014
1007,Revenue,CCHD,Bed Purchasing - Elderly - North,Permanent Residential,Hc-One Ltd,1006.84, 08-Jul-2014
1008,Revenue,CCHD,Bed Purchasing - Elderly - North,Permanent Nursing,Hc-One Ltd,1518.60, 08-Jul-2014
1009,Revenue,CCHD,Bed purchasing - Elderly PWLD - South,Permanent Nursing,Hc-One Ltd,1955.92, 08-Jul-2014
1010,Revenue,CCHD,Bed Purchasing - Elderly - North,Permanent Nursing,Hc-One Ltd,1496.20, 08-Jul-2014
1011,Revenue,CCHD,Bed purchasing - Elderly MH - North,Permanent Nursing,Hc-One Ltd,1496.20, 08-Jul-2014
1012,Revenue,CCHD,Bed purchasing - Elderly MH - North,Permanent Nursing,Hc-One Ltd,1239.28, 08-Jul-2014
1013,Revenue,CCHD,Bed Purchasing - Elderly - South,Permanent Nursing,Hc-One Ltd,1152.48, 08-Jul-2014
1014,Revenue,CCHD,Bed purchasing - Elderly MH - North,Permanent Nursing,Hc-One Ltd,1197.44, 08-Jul-2014
1015,Revenue,CCHD,Bed Purchasing - Elderly S117- North,Permanent Nursing,Hc-One Ltd,1976.56, 08-Jul-2014
1016,Revenue,CCHD,Bed Purchasing - Elderly - South,Permanent Residential,Heathwood Rest Home,1308.54, 21-Jul-2014
1017,Revenue,CCHD,Bed Purchasing - Frenchay Hospital,Permanent Residential,Heathwood Rest Home,1332.67, 21-Jul-2014
1018,Revenue,CCHD,Home Care - Elderly - South,Other Small Contracts,Helping Hands Homecare,457.47, 10-Jul-2014
1019,Revenue,CCHD,Home Care - Elderly - North,Other Small Contracts,Helping Hands Homecare,1739.95, 10-Jul-2014
1020,Revenue,CCHD,Day Care - North,Private & Voluntary Day Care,Helping Hands Homecare,93.84, 10-Jul-2014
1021,Revenue,CCHD,Under 65s -MH  Home Care Purch,Other Small Contracts,Helping Hands Homecare,31.28, 10-Jul-2014
1022,Revenue,CCHD,Home care - Elderly MH - North,Other Small Contracts,Helping Hands Homecare,66.47, 10-Jul-2014
1023,Revenue,CCHD,Home Care - Elderly - South,Other Small Contracts,Helping Hands Homecare,801.55, 30-Jul-2014
1024,Revenue,CCHD,Home Care - Elderly - North,Other Small Contracts,Helping Hands Homecare,1876.80, 30-Jul-2014
1025,Revenue,CCHD,Day Care - North,Private & Voluntary Day Care,Helping Hands Homecare,97.75, 30-Jul-2014
1026,Revenue,CCHD,Under 65s -MH  Home Care Purch,Other Small Contracts,Helping Hands Homecare,31.28, 30-Jul-2014
1027,Revenue,CCHD,Home care - Elderly MH - North,Other Small Contracts,Helping Hands Homecare,62.56, 30-Jul-2014
1028,Revenue,CCHD,Home Care - Elderly - South,Other Small Contracts,Helping Hands Homecare,723.35, 30-Jul-2014
1029,Revenue,CCHD,Home Care - Elderly - North,Other Small Contracts,Helping Hands Homecare,2068.39, 30-Jul-2014
1030,Revenue,CCHD,Day Care - North,Private & Voluntary Day Care,Helping Hands Homecare,89.93, 30-Jul-2014
1031,Revenue,CCHD,Under 65s -MH  Home Care Purch,Other Small Contracts,Helping Hands Homecare,35.19, 30-Jul-2014
1032,Revenue,CCHD,Home care - Elderly MH - North,Other Small Contracts,Helping Hands Homecare,62.56, 30-Jul-2014
1033,Revenue,CCHD,Home Care - Elderly - South,Other Small Contracts,Helping Hands Homecare,699.89, 30-Jul-2014
1034,Revenue,CCHD,Home Care - Elderly - North,Other Small Contracts,Helping Hands Homecare,1927.63, 30-Jul-2014
1035,Revenue,CCHD,Day Care - North,Private & Voluntary Day Care,Helping Hands Homecare,93.84, 30-Jul-2014
1036,Revenue,CCHD,Under 65s -MH  Home Care Purch,Other Small Contracts,Helping Hands Homecare,31.28, 30-Jul-2014
1037,Revenue,CCHD,Home care - Elderly MH - North,Other Small Contracts,Helping Hands Homecare,62.56, 30-Jul-2014
1038,Revenue,CCHD,S117 Placements PCT,Permanent Residential,Hesley Hall,18209.52, 08-Jul-2014
1039,Revenue,CCHD,Bed Purchasing - Southmead Hospital,Permanent Residential,High Border Lodge,1442.96, 08-Jul-2014
1040,Revenue,CCHD,Bed Purchasing - Frenchay Hospital,Permanent Residential,Highfield House,1227.52, 08-Jul-2014
1041,Revenue,CCHD,Bed Purchasing - Southmead Hospital,Permanent Residential,Highgate Studios,1174.24, 08-Jul-2014
1042,Revenue,CCHD,Bed purchasing - Under 65s PWLD - North,Permanent Residential,Holmleigh Care Homes Ltd,4059.84, 08-Jul-2014
1043,Revenue,CCHD,Bed Purchasing - Under 65s PWLD - South,Permanent Residential,Holmleigh Care Homes Ltd,5102.60, 08-Jul-2014
1044,Revenue,CCHD,South Glos Users in South Glos Homes,Permanent Nursing,Holmwood House,6098.95, 08-Jul-2014
1045,Revenue,CCHD,Bed purchasing - Under 65s PWLD - North,Permanent Residential,Home Farm Trust Ltd  5-6 Brook Office Pa,2852.08, 08-Jul-2014
1046,Revenue,CCHD,Bed purchasing - Elderly PWLD - South,Permanent Residential,Home Farm Trust Ltd  5-6 Brook Office Pa,5114.40, 08-Jul-2014
1047,Revenue,CCHD,Bed purchasing - Under 65s PWLD - North,Permanent Residential,Home Farm Trust Ltd  5-6 Brook Office Pa,3442.72, 08-Jul-2014
1048,Revenue,CCHD,Bed Purchasing - Under 65s PWLD - South,Permanent Residential,Home Farm Trust Ltd  5-6 Brook Office Pa,4572.16, 08-Jul-2014
1049,Revenue,CCHD,Bed purchasing - Under 65s PWLD - North,Permanent Residential,Home From Home Care Ltd,8988.20, 08-Jul-2014
1050,Revenue,CCHD,Bed purchasing - Under 65s PWLD - North,Permanent Residential,Homes Caring For Autism Ltd  Churchill H,9940.79, 08-Jul-2014
1051,Revenue,CCHD,Bed Purchasing - Under 65s PWLD - South,Permanent Residential,Homes Caring For Autism Ltd  Churchill H,12903.72, 08-Jul-2014
1052,Revenue,CCHD,Bed Purchasing - Southmead Hospital,Permanent Nursing,Horfield Care Limited,1662.26, 23-Jul-2014
1053,Revenue,CCHD,Bed Purchasing - Frenchay Hospital,Respite Emergency - Nursing,Horfield Care Limited,2193.47, 23-Jul-2014
1054,Revenue,CCHD,Bed Purchasing - Frenchay Hospital,Permanent Nursing,Horfield Care Limited,1661.53, 23-Jul-2014
1055,Revenue,CCHD,Bed Purchasing - Frenchay Hospital,Permanent Nursing,Horfield Care Limited,1422.73, 23-Jul-2014
1056,Revenue,CCHD,Bed Purchasing - Southmead Hospital,Respite Emergency - Nursing,Horfield Care Limited,2193.47, 23-Jul-2014
1057,Revenue,CCHD,Bed Purchasing - Elderly - North,Permanent Nursing,Horfield Care Limited,1675.11, 23-Jul-2014
1058,Revenue,CCHD,Bed Purchasing - Southmead Hospital,Permanent Nursing,Horfield Care Limited,1851.26, 23-Jul-2014
1059,Revenue,CCHD,Bed Purchasing - Elderly - North,Permanent Nursing,Horfield Care Limited,1151.23, 23-Jul-2014
1060,Revenue,CCHD,Bed Purchasing - Elderly - South,Permanent Nursing,Horfield Care Limited,1313.31, 23-Jul-2014
1061,Revenue,CCHD,Bed Purchasing - Southmead Hospital,Permanent Nursing,Horfield Care Limited,869.06, 23-Jul-2014
1062,Revenue,CCHD,Bed Purchasing - Frenchay Hospital,Respite Emergency - Nursing,Horfield Care Limited,1181.79, 23-Jul-2014
1063,Revenue,CCHD,Bed Purchasing - Frenchay Hospital,Respite Emergency - Nursing,Horfield Care Limited,891.34, 23-Jul-2014
1064,Revenue,CCHD,Bed Purchasing - Elderly - South,Permanent Nursing,Horfield Care Limited,1614.72, 23-Jul-2014
1065,Revenue,CCHD,Supporting People Programme,Grants to Voluntary Bodies,Housing 21,616.42, 01-Jul-2014
1066,Revenue,CCHD,Supporting People Programme,Grants to Voluntary Bodies,Housing 21,935.00, 01-Jul-2014
1067,Revenue,CCHD,Home Care - Elderly - North,Private & Voluntary Home Care,Housing 21,37580.45, 10-Jul-2014
1068,Revenue,CCHD,Home Care - Elderly - South,Private & Voluntary Home Care,Housing 21,24011.00, 01-Jul-2014
1069,Revenue,CCHD,Social Lettings Agency,Fees - General,Individual,11.60, 11-Jul-2014
1070,Revenue,CCHD,Social Lettings Agency,Other Supplies & Services,Individual,655.41, 11-Jul-2014
1071,Revenue,CCHD,Homeless - Private Sector Leasing,Other Supplies & Services,Jill Collins,594.00, 15-Jul-2014
1072,Revenue,CCHD,Research & Conferences,Other Supplies & Services,Jo Cleary,13696.08, 10-Jul-2014
1073,Revenue,CCHD,Training - Adult Services,Training Expenses,Jo Williams,765.00, 28-Jul-2014
1074,Revenue,CCHD,Bed Purchasing - Under 65s PWLD - South,Permanent Residential,Julia Simone- Supp. Ind.,3960.52, 08-Jul-2014
1075,Revenue,CCHD,Bed purchasing -S28A  Under 65 - North,Permanent Residential,Julia Simone- Supp. Ind.,3494.52, 08-Jul-2014
1076,Revenue,CCHD,Bed Purchasing - Elderly - South,Permanent Residential,Karenza Ltd,1756.00, 08-Jul-2014
1077,Revenue,CCHD,Community Support - North,Preventative Assistance,KCC Cleaning Services Ltd,445.00, 04-Jul-2014
1078,Revenue,CCHD,Bed Purchasing - Elderly - South,Permanent Residential,Kenver House Residential Home,1568.68, 08-Jul-2014
1079,Revenue,CCHD,Bed Purchasing - Frenchay Hospital,Permanent Residential,Kenver House Residential Home,1119.36, 08-Jul-2014
1080,Revenue,CCHD,Bed Purchasing - Frenchay Hospital,Permanent Residential,Kenver House Residential Home,1643.72, 08-Jul-2014
1081,Revenue,CCHD,Bed Purchasing - Southmead Hospital,Permanent Residential,Kenver House Residential Home,1671.08, 08-Jul-2014
1082,Revenue,CCHD,Bed Purchasing - Elderly - South,Permanent Residential,Kenver House Residential Home,1527.68, 08-Jul-2014
1083,Revenue,CCHD,Bed Purchasing - Elderly - South,Permanent Residential,Kenver House Residential Home,1136.68, 08-Jul-2014
1084,Revenue,CCHD,Bed Purchasing - Elderly MH - South,Permanent Residential,Kenver House Residential Home,1370.92, 08-Jul-2014
1085,Revenue,CCHD,Bed Purchasing - Elderly - South,Permanent Residential,Kenver House Residential Home,1691.08, 08-Jul-2014
1086,Revenue,CCHD,Bed Purchasing - Elderly - South,Permanent Residential,Kenver House Residential Home,1209.32, 08-Jul-2014
1087,Revenue,CCHD,Bed Purchasing - Elderly - South,Permanent Residential,Kenver House Residential Home,2166.88, 08-Jul-2014
1088,Revenue,CCHD,Bed Purchasing - Elderly - South,Permanent Residential,Kenver House Residential Home,1603.00, 08-Jul-2014
1089,Revenue,CCHD,Bed Purchasing - Southmead Hospital,Permanent Residential,Kenver House Residential Home,1671.00, 08-Jul-2014
1090,Revenue,CCHD,Bed Purchasing - Elderly - South,Permanent Residential,Kenver House Residential Home,1414.64, 08-Jul-2014
1091,Revenue,CCHD,Bed Purchasing - Elderly - North,Respite Emergency - Residential,Kenver House Residential Home,1177.95, 08-Jul-2014
1092,Revenue,CCHD,Bed Purchasing - Frenchay Hospital,Permanent Residential,Kenver House Residential Home,1562.40, 08-Jul-2014
1093,Revenue,CCHD,Supporting People Programme,Grants to Voluntary Bodies,Keyring Living Support Networks,2917.00, 01-Jul-2014
1094,Revenue,CCHD,Bed Purchasing - Elderly - North,Permanent Nursing,Kingfisher Lodge Care Centre,2514.24, 08-Jul-2014
1095,Revenue,CCHD,Supporting People Programme,Grants to Voluntary Bodies,Kingswood Young Homeless Project,16943.67, 01-Jul-2014
1096,Revenue,CCHD,Bed purchasing - Under 65s PWLD - North,Permanent Residential,Kisimul Group,11388.88, 08-Jul-2014
1097,Revenue,CCHD,Supporting People Programme,Grants to Voluntary Bodies,Knightstone Housing Association Limited,13513.75, 01-Jul-2014
1098,Revenue,CCHD,Supporting People Programme,Grants to Voluntary Bodies,Knightstone Housing Association Limited,8537.92, 01-Jul-2014
1099,Revenue,CCHD,Supporting People Programme,Grants to Voluntary Bodies,Knightstone Housing Association Limited,7602.50, 01-Jul-2014
1100,Revenue,CCHD,Supporting People Programme,Grants to Voluntary Bodies,Knightstone Housing Association Limited,1789.75, 01-Jul-2014
1101,Revenue,CCHD,Supporting People Programme,Grants to Voluntary Bodies,Knightstone Housing Association Limited,2482.75, 01-Jul-2014
1102,Revenue,CCHD,Supporting People Programme,Grants to Voluntary Bodies,Knightstone Housing Association Limited,2483.33, 01-Jul-2014
1103,Revenue,CCHD,Supporting People Programme,Grants to Voluntary Bodies,Knightstone Housing Association Limited,844.58, 01-Jul-2014
1104,Revenue,CCHD,Home Care - Elderly - South,Other Small Contracts,Kumari Care Limited,3512.60, 01-Jul-2014
1105,Revenue,CCHD,Home Care - Elderly - North,Other Small Contracts,Kumari Care Limited,878.28, 01-Jul-2014
1106,Revenue,CCHD,Day Care - South,Private & Voluntary Day Care,Kumari Care Limited,92.64, 01-Jul-2014
1107,Revenue,CCHD,Under 65s -MH  Home Care Purch,Other Small Contracts,Kumari Care Limited,254.76, 01-Jul-2014
1108,Revenue,CCHD,Home Care - Elderly - South,Other Small Contracts,Kumari Care Limited,3516.46, 10-Jul-2014
1109,Revenue,CCHD,Home Care - Elderly - North,Other Small Contracts,Kumari Care Limited,861.72, 10-Jul-2014
1110,Revenue,CCHD,Day Care - South,Private & Voluntary Day Care,Kumari Care Limited,96.50, 10-Jul-2014
1111,Revenue,CCHD,Under 65s -MH  Home Care Purch,Other Small Contracts,Kumari Care Limited,258.62, 10-Jul-2014
1112,Revenue,CCHD,Home Care - Elderly - South,Other Small Contracts,Kumari Care Limited,3338.90, 24-Jul-2014
1113,Revenue,CCHD,Home Care - Elderly - North,Other Small Contracts,Kumari Care Limited,864.74, 24-Jul-2014
1114,Revenue,CCHD,Under 65s -MH  Home Care Purch,Other Small Contracts,Kumari Care Limited,250.90, 24-Jul-2014
1115,Revenue,CCHD,Home Care - Elderly - South,Other Small Contracts,Kumari Care Limited,3508.74, 29-Jul-2014
1116,Revenue,CCHD,Home Care - Elderly - North,Other Small Contracts,Kumari Care Limited,864.74, 29-Jul-2014
1117,Revenue,CCHD,Day Care - South,Private & Voluntary Day Care,Kumari Care Limited,96.50, 29-Jul-2014
1118,Revenue,CCHD,Under 65s -MH  Home Care Purch,Other Small Contracts,Kumari Care Limited,264.89, 29-Jul-2014
1119,Revenue,CCHD,Learning Difficulties Development Fund,Other Supplies & Services,L D Awareness,1577.63, 10-Jul-2014
1120,Revenue,CCHD,Bed purchasing - Phys Dis - North,Permanent Nursing,Leonard Cheshire  National Account Centr,5036.48, 08-Jul-2014
1121,Revenue,CCHD,Bed purchasing - Phys Dis - North,Permanent Residential,Leonard Cheshire  National Account Centr,2910.92, 08-Jul-2014
1122,Revenue,CCHD,Bed Purchasing - Under 65s PWLD - South,Permanent Residential,Leonard Cheshire  National Account Centr,3003.72, 08-Jul-2014
1123,Revenue,CCHD,Bed Purchasing - Elderly - North,Permanent Nursing,Leonard Cheshire  National Account Centr,3520.60, 08-Jul-2014
1124,Revenue,CCHD,Bed purchasing - Phys Dis - North,Permanent Nursing,Leonard Cheshire  National Account Centr,2764.56, 08-Jul-2014
1125,Revenue,CCHD,Bed Purchasing - Elderly - North,Permanent Residential,Leonard Cheshire  National Account Centr,3196.52, 08-Jul-2014
1126,Revenue,CCHD,Bed purchasing - Under 65s PWLD - North,Permanent Residential,Leonard Cheshire  National Account Centr,11918.96, 08-Jul-2014
1127,Revenue,CCHD,Bed purchasing - Under 65s PWLD - North,Permanent Residential,Leonard Cheshire  National Account Centr,11915.84, 08-Jul-2014
1128,Revenue,CCHD,Bed Purchasing - Elderly - South,Permanent Residential,Leonard Cheshire  National Account Centr,4492.08, 08-Jul-2014
1129,Revenue,CCHD,Bed purchasing - Phys Dis - North,Permanent Nursing,Leonard Cheshire  National Account Centr,2881.12, 08-Jul-2014
1130,Revenue,CCHD,Bed purchasing - Phys Dis - North,Permanent Nursing,Leonard Cheshire  National Account Centr,3869.32, 08-Jul-2014
1131,Revenue,CCHD,Bed purchasing - Phys Dis - North,Permanent Residential,Leonard Cheshire  National Account Centr,2932.64, 08-Jul-2014
1132,Revenue,CCHD,Bed purchasing - Phys Dis - North,Permanent Nursing,Leonard Cheshire  National Account Centr,4535.00, 08-Jul-2014
1133,Revenue,CCHD,Bed purchasing - Phys Dis - North,Permanent Nursing,Leonard Cheshire  National Account Centr,3271.52, 08-Jul-2014
1134,Revenue,CCHD,Bed purchasing - Phys Dis - North,Permanent Nursing,Leonard Cheshire  National Account Centr,5603.08, 08-Jul-2014
1135,Revenue,CCHD,Bed Purchasing - Elderly - South,Permanent Nursing,Leonard Cheshire  National Account Centr,2908.60, 08-Jul-2014
1136,Revenue,CCHD,Bed Purchasing - Southmead Hospital,Permanent Nursing,Leonard Cheshire  National Account Centr,3041.76, 08-Jul-2014
1137,Revenue,CCHD,South Glos Users in South Glos Homes,Permanent Nursing,Leonard Cheshire  National Account Centr,610.44, 08-Jul-2014
1138,Revenue,CCHD,Bed purchasing - Phys Dis - North,Permanent Nursing,Leonard Cheshire  National Account Centr,3358.64, 08-Jul-2014
1139,Revenue,CCHD,Bed purchasing - Phys Dis - North,Permanent Nursing,Leonard Cheshire  National Account Centr,4127.12, 08-Jul-2014
1140,Revenue,CCHD,Bed purchasing - Phys Dis - North,Respite Planned - Nursing,Leonard Cheshire  National Account Centr,1200.00, 08-Jul-2014
1141,Revenue,CCHD,Bed Purchasing - Elderly - South,Permanent Nursing,Leonard Cheshire  National Account Centr,4560.88, 08-Jul-2014
1142,Revenue,CCHD,Bed Purchasing - Elderly S117- North,Permanent Nursing,Leonard Elms Care Home,2891.00, 08-Jul-2014
1143,Revenue,CCHD,Bed Purchasing - Elderly - South,Permanent Nursing,Leonard Elms Care Home,1562.76, 08-Jul-2014
1144,Revenue,CCHD,Supported Living - North,Private & Voluntary Home Care,Lifeways Community Care (Gloucester) Ltd,11373.00, 17-Jul-2014
1145,Revenue,CCHD,Supported Living - North,Private & Voluntary Home Care,Lifeways Community Care (Gloucester) Ltd,11373.00, 18-Jul-2014
1146,Revenue,CCHD,Bed Purchasing - Frenchay Hospital,Permanent Residential,Little Croft,1268.20, 08-Jul-2014
1147,Revenue,CCHD,Bed Purchasing - Elderly - South,Permanent Residential,Little Croft,1570.60, 08-Jul-2014
1148,Revenue,CCHD,Bed Purchasing - Elderly - South,Permanent Residential,Little Croft,1602.64, 08-Jul-2014
1149,Revenue,CCHD,Bed Purchasing - Elderly - South,Respite Emergency - Residential,Little Croft,2200.00, 08-Jul-2014
1150,Revenue,CCHD,Bed Purchasing - Elderly - South,Permanent Residential,Little Croft,1466.70, 08-Jul-2014
1151,Revenue,CCHD,Bed Purchasing - Elderly - South,Permanent Residential,Little Croft,1314.92, 08-Jul-2014
1152,Revenue,CCHD,Bed Purchasing - Southmead Hospital,Permanent Residential,Little Croft,1748.76, 08-Jul-2014
1153,Revenue,CCHD,Bed Purchasing - Elderly - South,Permanent Residential,Little Croft,1883.48, 08-Jul-2014
1154,Revenue,CCHD,Bed Purchasing - Frenchay Hospital,Permanent Residential,Little Croft,1432.20, 08-Jul-2014
1155,Revenue,CCHD,Bed Purchasing - Frenchay Hospital,Permanent Residential,Little Croft,1189.72, 08-Jul-2014
1156,Revenue,CCHD,Bed Purchasing - Southmead Hospital,Permanent Residential,Little Croft,619.24, 08-Jul-2014
1157,Revenue,CCHD,Bed Purchasing - Elderly - South,Permanent Residential,Little Croft,1050.36, 08-Jul-2014
1158,Revenue,CCHD,Bed purchasing - Elderly MH - North,Permanent Residential,Little Croft,1405.08, 08-Jul-2014
1159,Revenue,CCHD,Bed Purchasing - Southmead Hospital,Permanent Residential,Little Croft,1260.20, 08-Jul-2014
1160,Revenue,CCHD,Bed Purchasing - Elderly - North,Permanent Residential,Little Croft,1367.56, 08-Jul-2014
1161,Revenue,CCHD,Bed Purchasing - Frenchay Hospital,Respite Planned - Residential,Little Croft,2232.56, 08-Jul-2014
1162,Revenue,CCHD,Bed Purchasing - Southmead Hospital,Permanent Residential,Little Croft,1260.20, 08-Jul-2014
1163,Revenue,CCHD,Bed purchasing - Under 65s PWLD - North,Permanent Residential,Littlecroft Residential Homes  Longcroft,6481.28, 08-Jul-2014
1164,Revenue,CCHD,Home Care - Elderly - North,Other Small Contracts,Lloyds TSB Commercial Finance Limited,5399.65, 07-Jul-2014
1165,Revenue,CCHD,Day Care - North,Private & Voluntary Day Care,Lloyds TSB Commercial Finance Limited,47.40, 07-Jul-2014
1166,Revenue,CCHD,Home Care - Elderly - North,Other Small Contracts,Lloyds TSB Commercial Finance Limited,5372.00, 28-Jul-2014
1167,Revenue,CCHD,Downend Day Centre,Storage & Removal,Lloyds TSB Commercial Finance Limited,1879.00, 07-Jul-2014
1168,Revenue,CCHD,Supported Living - South,Private & Voluntary Home Care,Lloyds TSB Commercial Finance Limited,9199.95, 18-Jul-2014
1169,Revenue,CCHD,Supported Living - South,Private & Voluntary Home Care,Lloyds TSB Commercial Finance Limited,10278.36, 18-Jul-2014
1170,Revenue,CCHD,Supported Living - South,Private & Voluntary Home Care,Lloyds TSB Commercial Finance Limited,3817.36, 18-Jul-2014
1171,Revenue,CCHD,Supported Living - South,Private & Voluntary Home Care,Lloyds TSB Commercial Finance Limited,3850.55, 18-Jul-2014
1172,Revenue,CCHD,Supported Living - South,Private & Voluntary Home Care,Lloyds TSB Commercial Finance Limited,3670.83, 25-Jul-2014
1173,Revenue,CCHD,Supported Living - South,Private & Voluntary Home Care,Lloyds TSB Commercial Finance Limited,3831.42, 25-Jul-2014
1174,Revenue,CCHD,Supported Living - South,Private & Voluntary Home Care,Lloyds TSB Commercial Finance Limited,7875.32, 25-Jul-2014
1175,Revenue,CCHD,Supported Living - South,Private & Voluntary Home Care,Lloyds TSB Commercial Finance Limited,3728.72, 18-Jul-2014
1176,Revenue,CCHD,Supported Living - North,Private & Voluntary Home Care,Lloyds TSB Commercial Finance Limited,9327.87, 24-Jul-2014
1177,Revenue,CCHD,Supported Living - South,Private & Voluntary Home Care,Lloyds TSB Commercial Finance Limited,3944.69, 18-Jul-2014
1178,Revenue,CCHD,Supported Living - South,Private & Voluntary Home Care,Lloyds TSB Commercial Finance Limited,3756.43, 18-Jul-2014
1179,Revenue,CCHD,Supported Living - South,Private & Voluntary Home Care,Lloyds TSB Commercial Finance Limited,3143.29, 25-Jul-2014
1180,Revenue,CCHD,Supported Living - South,Private & Voluntary Home Care,Lloyds TSB Commercial Finance Limited,5913.77, 25-Jul-2014
1181,Revenue,CCHD,Supported Living - South,Private & Voluntary Home Care,Lloyds TSB Commercial Finance Limited,3417.78, 25-Jul-2014
1182,Revenue,CCHD,Supported Living - South,Private & Voluntary Home Care,Lloyds TSB Commercial Finance Limited,3554.85, 25-Jul-2014
1183,Revenue,CCHD,Supported Living - North,Private & Voluntary Home Care,Lloyds TSB Commercial Finance Limited,8023.55, 24-Jul-2014
1184,Revenue,CCHD,Supported Living - South,Private & Voluntary Home Care,Lloyds TSB Commercial Finance Limited,3415.71, 25-Jul-2014
1185,Revenue,CCHD,Supported Living - South,Private & Voluntary Home Care,Loga Care Ltd (T/A Logacare),3672.90, 02-Jul-2014
1186,Revenue,CCHD,Social Lettings Agency,Fees - General,Individual,10.00, 01-Jul-2014
1187,Revenue,CCHD,Social Lettings Agency,Other Supplies & Services,Individual,565.00, 01-Jul-2014
1188,Revenue,CCHD,Day Care - North,Private & Voluntary Day Care,Lower Kilcott,1466.00, 08-Jul-2014
1189,Revenue,CCHD,Day Care - North,Private & Voluntary Day Care,Lower Kilcott,560.64, 08-Jul-2014
1190,Revenue,CCHD,Bed Purchasing - Southmead Hospital,Permanent Nursing,Majestic 3 Limited,1000.20, 08-Jul-2014
1191,Revenue,CCHD,Bed Purchasing - Southmead Hospital,Permanent Nursing,Mandeville Grange Nursing Home,1047.52, 08-Jul-2014
1192,Revenue,CCHD,Bed Purchasing - Frenchay Hospital,Permanent Residential,Manor Cottage,1032.52, 08-Jul-2014
1193,Revenue,CCHD,Bed Purchasing - Elderly - South,Permanent Residential,Manor Cottage,5462.25, 08-Jul-2014
1194,Revenue,CCHD,Bed Purchasing - Southmead Hospital,Permanent Residential,Manor Cottage,1260.20, 08-Jul-2014
1195,Revenue,CCHD,Bed Purchasing - Elderly - North,Permanent Residential,Manton Hall Residential Home,1521.60, 08-Jul-2014
1196,Revenue,CCHD,Supported Living - South,Private & Voluntary Home Care,Maples Community Care Limited,2941.20, 04-Jul-2014
1197,Revenue,CCHD,Section 117 Placements MH Younger,Private & Voluntary Day Care,Maples Community Care Limited,812.25, 04-Jul-2014
1198,Revenue,CCHD,Section 117 Placements MH Younger,Private & Voluntary Day Care,Maples Community Care Limited,2643.38, 04-Jul-2014
1199,Revenue,CCHD,Younger MH non-res purchasing,Private & Voluntary Day Care,Maples Community Care Limited,2643.38, 04-Jul-2014
1200,Revenue,CCHD,Section 117 Placements MH Younger,Private & Voluntary Day Care,Maples Community Care Limited,2643.38, 04-Jul-2014
1201,Revenue,CCHD,Supporting People Programme,Grants to Voluntary Bodies,Maples Community Housing Limited,2717.25, 01-Jul-2014
1202,Revenue,CCHD,Social Lettings Agency,Fees - General,Individual,11.60, 18-Jul-2014
1203,Revenue,CCHD,Social Lettings Agency,Other Supplies & Services,Individual,655.41, 18-Jul-2014
1204,Revenue,CCHD,Bed Purchasing - Under 65s PWLD - South,Permanent Residential,Marsden Healthcare Limited,913.72, 04-Jul-2014
1205,Revenue,CCHD,Bed purchasing - Elderly PWLD - South,Permanent Residential,Marsden Healthcare Limited,3247.80, 04-Jul-2014
1206,Revenue,CCHD,Bed purchasing - Elderly PWLD - South,Permanent Residential,Marsden Healthcare Limited,1525.64, 04-Jul-2014
1207,Revenue,CCHD,Bed Purchasing - Elderly - South,Respite Emergency - Residential,Meadow Care Home,5578.97, 08-Jul-2014
1208,Revenue,CCHD,Home Care - Elderly - South,Other Small Contracts,Mears Care,585.20, 01-Jul-2014
1209,Revenue,CCHD,Home Care - Elderly - North,Other Small Contracts,Mears Care,4546.85, 01-Jul-2014
1210,Revenue,CCHD,Day Care - North,Private & Voluntary Day Care,Mears Care,123.20, 01-Jul-2014
1211,Revenue,CCHD,Under 65s -MH  Home Care Purch,Other Small Contracts,Mears Care,119.35, 01-Jul-2014
1212,Revenue,CCHD,Home Care - Elderly LD - KH,Private & Voluntary Home Care,Mears Care,53.90, 01-Jul-2014
1213,Revenue,CCHD,Home Care - Elderly - South,Other Small Contracts,Mears Care,612.15, 01-Jul-2014
1214,Revenue,CCHD,Home Care - Elderly - North,Other Small Contracts,Mears Care,4519.90, 01-Jul-2014
1215,Revenue,CCHD,Day Care - North,Private & Voluntary Day Care,Mears Care,146.30, 01-Jul-2014
1216,Revenue,CCHD,Under 65s -MH  Home Care Purch,Other Small Contracts,Mears Care,115.50, 01-Jul-2014
1217,Revenue,CCHD,Home Care - Elderly LD - KH,Private & Voluntary Home Care,Mears Care,53.90, 01-Jul-2014
1218,Revenue,CCHD,Home Care - Elderly - South,Other Small Contracts,Mears Care,600.60, 17-Jul-2014
1219,Revenue,CCHD,Home Care - Elderly - North,Other Small Contracts,Mears Care,4304.30, 17-Jul-2014
1220,Revenue,CCHD,Day Care - North,Private & Voluntary Day Care,Mears Care,146.30, 17-Jul-2014
1221,Revenue,CCHD,Under 65s -MH  Home Care Purch,Other Small Contracts,Mears Care,115.50, 17-Jul-2014
1222,Revenue,CCHD,Home Care - Elderly LD - KH,Private & Voluntary Home Care,Mears Care,53.90, 17-Jul-2014
1223,Revenue,CCHD,Home Care - Elderly - South,Private & Voluntary Day Care,Mears Care,46.20, 23-Jul-2014
1224,Revenue,CCHD,Home Care - Elderly - South,Other Small Contracts,Mears Care,539.00, 23-Jul-2014
1225,Revenue,CCHD,Home Care - Elderly - North,Other Small Contracts,Mears Care,4115.65, 23-Jul-2014
1226,Revenue,CCHD,Day Care - North,Private & Voluntary Day Care,Mears Care,123.20, 23-Jul-2014
1227,Revenue,CCHD,Under 65s -MH  Home Care Purch,Other Small Contracts,Mears Care,115.50, 23-Jul-2014
1228,Revenue,CCHD,Home Care - Elderly LD - KH,Private & Voluntary Home Care,Mears Care,57.75, 23-Jul-2014
1229,Revenue,CCHD,Home Care - Elderly - South,Private & Voluntary Day Care,Mears Care,42.35, 23-Jul-2014
1230,Revenue,CCHD,Home Care - Elderly - South,Other Small Contracts,Mears Care,485.10, 23-Jul-2014
1231,Revenue,CCHD,Home Care - Elderly - North,Other Small Contracts,Mears Care,4200.35, 23-Jul-2014
1232,Revenue,CCHD,Day Care - North,Private & Voluntary Day Care,Mears Care,142.45, 23-Jul-2014
1233,Revenue,CCHD,Under 65s -MH  Home Care Purch,Other Small Contracts,Mears Care,115.50, 23-Jul-2014
1234,Revenue,CCHD,Home Care - Elderly LD - KH,Private & Voluntary Home Care,Mears Care,57.75, 23-Jul-2014
1235,Revenue,CCHD,Home Care - Elderly - South,Private & Voluntary Home Care,Mears Care,48544.00, 28-Jul-2014
1236,Revenue,CCHD,Home Care - Elderly - South,Other Small Contracts,Medacs Home Care,245.00, 07-Jul-2014
1237,Revenue,CCHD,Home Care - Elderly - North,Other Small Contracts,Medacs Home Care,601.70, 07-Jul-2014
1238,Revenue,CCHD,Home care - Elderly MH - North,Other Small Contracts,Medacs Home Care,84.00, 07-Jul-2014
1239,Revenue,CCHD,Home Care - Elderly - South,Other Small Contracts,Medacs Home Care,259.00, 08-Jul-2014
1240,Revenue,CCHD,Home Care - Elderly - North,Other Small Contracts,Medacs Home Care,615.80, 08-Jul-2014
1241,Revenue,CCHD,Home care - Elderly MH - North,Other Small Contracts,Medacs Home Care,108.50, 08-Jul-2014
1242,Revenue,CCHD,Bed Purchasing - Under 65s PWLD - South,Permanent Residential,Mencap,2252.48, 08-Jul-2014
1243,Revenue,CCHD,Supported Living (S28a) South,Private & Voluntary Home Care,Mencap - PS Central & Cymru,3786.86, 10-Jul-2014
1244,Revenue,CCHD,Supporting People Programme,Grants to Voluntary Bodies,Merlin Housing Society,14628.50, 01-Jul-2014
1245,Revenue,CCHD,Supporting People Programme,Grants to Voluntary Bodies,Merlin Housing Society,2458.92, 01-Jul-2014
1246,Revenue,CCHD,Supporting People Programme,Grants to Voluntary Bodies,Merlin Housing Society,47076.50, 01-Jul-2014
1247,Revenue,CCHD,Supporting People Programme,Grants to Voluntary Bodies,Merlin Housing Society,1041.83, 01-Jul-2014
1248,Revenue,CCHD,Intermediate Care Accommodation,Other Supplies & Services,Merlin Housing Society,491.12, 29-Jul-2014
1249,Revenue,CCHD,Home Care - Elderly - South,Other Small Contracts,MiHomecare,392.85, 17-Jul-2014
1250,Revenue,CCHD,Home Care - Elderly - North,Other Small Contracts,MiHomecare,1850.64, 17-Jul-2014
1251,Revenue,CCHD,Home Care - Elderly - South,Other Small Contracts,MiHomecare,372.60, 29-Jul-2014
1252,Revenue,CCHD,Home Care - Elderly - North,Other Small Contracts,MiHomecare,1797.99, 29-Jul-2014
1253,Revenue,CCHD,Home Care - Elderly - South,Other Small Contracts,MiHomecare,352.35, 29-Jul-2014
1254,Revenue,CCHD,Home Care - Elderly - North,Other Small Contracts,MiHomecare,591.30, 29-Jul-2014
1255,Revenue,CCHD,Home Care - Elderly - South,Other Small Contracts,MiHomecare,384.75, 29-Jul-2014
1256,Revenue,CCHD,Home Care - Elderly - North,Other Small Contracts,MiHomecare,749.25, 29-Jul-2014
1257,Revenue,CCHD,Bed Purchasing - Frenchay Hospital,Permanent Residential,Milburn Finance,1055.44, 08-Jul-2014
1258,Revenue,CCHD,Home Care - Elderly - South,Other Small Contracts,Milestones Homecare & Dementia Service,1385.16, 28-Jul-2014
1259,Revenue,CCHD,Home Care - Elderly - North,Other Small Contracts,Milestones Homecare & Dementia Service,2137.88, 28-Jul-2014
1260,Revenue,CCHD,Home care - Elderly MH - North,Other Small Contracts,Milestones Homecare & Dementia Service,54.32, 28-Jul-2014
1261,Revenue,CCHD,Home Care - Elderly - South,Other Small Contracts,Milestones Homecare & Dementia Service,1198.92, 29-Jul-2014
1262,Revenue,CCHD,Home Care - Elderly - North,Other Small Contracts,Milestones Homecare & Dementia Service,2165.04, 29-Jul-2014
1263,Revenue,CCHD,Home care - Elderly MH - North,Other Small Contracts,Milestones Homecare & Dementia Service,54.32, 29-Jul-2014
1264,Revenue,CCHD,Home Care - Elderly - South,Other Small Contracts,Milestones Homecare & Dementia Service,1365.76, 24-Jul-2014
1265,Revenue,CCHD,Home Care - Elderly - North,Other Small Contracts,Milestones Homecare & Dementia Service,2153.40, 24-Jul-2014
1266,Revenue,CCHD,Home care - Elderly MH - North,Other Small Contracts,Milestones Homecare & Dementia Service,54.32, 24-Jul-2014
1267,Revenue,CCHD,Home Care - Elderly - South,Other Small Contracts,Milestones Homecare & Dementia Service,1016.56, 24-Jul-2014
1268,Revenue,CCHD,Home Care - Elderly - North,Other Small Contracts,Milestones Homecare & Dementia Service,2246.52, 24-Jul-2014
1269,Revenue,CCHD,Home care - Elderly MH - North,Other Small Contracts,Milestones Homecare & Dementia Service,38.80, 24-Jul-2014
1270,Revenue,CCHD,Home Care - Elderly - South,Other Small Contracts,Milestones Homecare & Dementia Service,1082.52, 28-Jul-2014
1271,Revenue,CCHD,Home Care - Elderly - North,Other Small Contracts,Milestones Homecare & Dementia Service,2223.24, 28-Jul-2014
1272,Revenue,CCHD,Home care - Elderly MH - North,Other Small Contracts,Milestones Homecare & Dementia Service,46.56, 28-Jul-2014
1273,Revenue,CCHD,Home Care - Elderly - South,Other Small Contracts,Milestones Homecare & Dementia Service,1462.76, 30-Jul-2014
1274,Revenue,CCHD,Home Care - Elderly - North,Other Small Contracts,Milestones Homecare & Dementia Service,2300.84, 30-Jul-2014
1275,Revenue,CCHD,Home care - Elderly MH - North,Other Small Contracts,Milestones Homecare & Dementia Service,50.44, 30-Jul-2014
1276,Revenue,CCHD,Home Care - Elderly - South,Other Small Contracts,Milestones Homecare & Dementia Service,1420.08, 30-Jul-2014
1277,Revenue,CCHD,Home Care - Elderly - North,Other Small Contracts,Milestones Homecare & Dementia Service,1978.80, 30-Jul-2014
1278,Revenue,CCHD,Home care - Elderly MH - North,Other Small Contracts,Milestones Homecare & Dementia Service,54.32, 30-Jul-2014
1279,Revenue,CCHD,Home Care - Elderly - South,Other Small Contracts,Milestones Supported Living Services,3372.41, 28-Jul-2014
1280,Revenue,CCHD,Home Care - Elderly - North,Other Small Contracts,Milestones Supported Living Services,48.12, 28-Jul-2014
1281,Revenue,CCHD,Day Care - South,Private & Voluntary Day Care,Milestones Supported Living Services,64.16, 28-Jul-2014
1282,Revenue,CCHD,Day Care - North,Private & Voluntary Day Care,Milestones Supported Living Services,192.48, 28-Jul-2014
1283,Revenue,CCHD,Younger MH non-res purchasing,Private & Voluntary Day Care,Milestones Supported Living Services,32.08, 28-Jul-2014
1284,Revenue,CCHD,Home care - Elderly MH - North,Other Small Contracts,Milestones Supported Living Services,64.16, 28-Jul-2014
1285,Revenue,CCHD,Home Care - Elderly - South,Other Small Contracts,Milestones Supported Living Services,3099.73, 28-Jul-2014
1286,Revenue,CCHD,Home Care - Elderly - North,Other Small Contracts,Milestones Supported Living Services,48.12, 28-Jul-2014
1287,Revenue,CCHD,Day Care - South,Private & Voluntary Day Care,Milestones Supported Living Services,96.24, 28-Jul-2014
1288,Revenue,CCHD,Day Care - North,Private & Voluntary Day Care,Milestones Supported Living Services,248.14, 28-Jul-2014
1289,Revenue,CCHD,Younger MH non-res purchasing,Private & Voluntary Day Care,Milestones Supported Living Services,24.06, 28-Jul-2014
1290,Revenue,CCHD,Home care - Elderly MH - North,Other Small Contracts,Milestones Supported Living Services,60.15, 28-Jul-2014
1291,Revenue,CCHD,Home Care - Elderly - South,Other Small Contracts,Milestones Supported Living Services,3328.30, 28-Jul-2014
1292,Revenue,CCHD,Home Care - Elderly - North,Other Small Contracts,Milestones Supported Living Services,48.12, 28-Jul-2014
1293,Revenue,CCHD,Day Care - South,Private & Voluntary Day Care,Milestones Supported Living Services,100.25, 28-Jul-2014
1294,Revenue,CCHD,Day Care - North,Private & Voluntary Day Care,Milestones Supported Living Services,228.96, 28-Jul-2014
1295,Revenue,CCHD,Younger MH non-res purchasing,Private & Voluntary Day Care,Milestones Supported Living Services,20.05, 28-Jul-2014
1296,Revenue,CCHD,Home care - Elderly MH - North,Other Small Contracts,Milestones Supported Living Services,64.16, 28-Jul-2014
1297,Revenue,CCHD,Home Care - Elderly - South,Other Small Contracts,Milestones Supported Living Services,4306.74, 28-Jul-2014
1298,Revenue,CCHD,Home Care - Elderly - North,Other Small Contracts,Milestones Supported Living Services,48.12, 28-Jul-2014
1299,Revenue,CCHD,Day Care - South,Private & Voluntary Day Care,Milestones Supported Living Services,96.24, 28-Jul-2014
1300,Revenue,CCHD,Day Care - North,Private & Voluntary Day Care,Milestones Supported Living Services,229.35, 28-Jul-2014
1301,Revenue,CCHD,Younger MH non-res purchasing,Private & Voluntary Day Care,Milestones Supported Living Services,32.08, 28-Jul-2014
1302,Revenue,CCHD,Home care - Elderly MH - North,Other Small Contracts,Milestones Supported Living Services,64.16, 28-Jul-2014
1303,Revenue,CCHD,Supported Living (S28a) North,Private & Voluntary Home Care,Milestones Trust,5856.76, 28-Jul-2014
1304,Revenue,CCHD,Purchase of Non-Res Care - North,Private & Voluntary Day Care,Milestones Trust,3888.78, 16-Jul-2014
1305,Revenue,CCHD,Supported Living (S28a) North,Private & Voluntary Home Care,Milestones Trust,9126.38, 25-Jul-2014
1306,Revenue,CCHD,Supported Living (S28a) North,Private & Voluntary Home Care,Milestones Trust,8816.64, 28-Jul-2014
1307,Revenue,CCHD,Supported Living - South,Private & Voluntary Home Care,Milestones Trust,57189.69, 04-Jul-2014
1308,Revenue,CCHD,Day Care - North,Private & Voluntary Day Care,Milestones Trust,750.06, 07-Jul-2014
1309,Revenue,CCHD,Supported Living - North,Private & Voluntary Home Care,Milestones Trust,898.80, 14-Jul-2014
1310,Revenue,CCHD,Purchase of Non-Res Care - North,Private & Voluntary Day Care,Milestones Trust,1190.26, 14-Jul-2014
1311,Revenue,CCHD,Supported Living - North,Private & Voluntary Home Care,Milestones Trust,540.59, 18-Jul-2014
1312,Revenue,CCHD,Supported Living (S28a) North,Private & Voluntary Home Care,Milestones Trust,4032.80, 25-Jul-2014
1313,Revenue,CCHD,Supported Living (S28a) North,Private & Voluntary Home Care,Milestones Trust,4445.83, 25-Jul-2014
1314,Revenue,CCHD,Supported Living (S28a) North,Private & Voluntary Home Care,Milestones Trust,9430.59, 25-Jul-2014
1315,Revenue,CCHD,Supported Living (S28a) North,Private & Voluntary Home Care,Milestones Trust,9153.68, 25-Jul-2014
1316,Revenue,CCHD,Supported Living - North,Private & Voluntary Home Care,Milestones Trust,5731.93, 17-Jul-2014
1317,Revenue,CCHD,Supported Living - North,Private & Voluntary Home Care,Milestones Trust,1208.00, 18-Jul-2014
1318,Revenue,CCHD,Supported Living (S28a) North,Private & Voluntary Home Care,Milestones Trust,8208.70, 10-Jul-2014
1319,Revenue,CCHD,Supported Living (S28a) North,Private & Voluntary Home Care,Milestones Trust,6990.75, 10-Jul-2014
1320,Revenue,CCHD,Supported Living (S28a) North,Private & Voluntary Home Care,Milestones Trust,6990.75, 10-Jul-2014
1321,Revenue,CCHD,Purchase of Non-Res Care - South,Private & Voluntary Day Care,Milestones Trust,934.20, 04-Jul-2014
1322,Revenue,CCHD,Purchase of Non-Res Care - South,Private & Voluntary Day Care,Milestones Trust,685.08, 04-Jul-2014
1323,Revenue,CCHD,Purchase of Non-Res Care - South,Private & Voluntary Day Care,Milestones Trust,685.08, 02-Jul-2014
1324,Revenue,CCHD,Supported Living - South,Private & Voluntary Home Care,Milestones Trust,747.36, 02-Jul-2014
1325,Revenue,CCHD,Purchase of Non-Res Care - South,Private & Voluntary Day Care,Milestones Trust,809.64, 04-Jul-2014
1326,Revenue,CCHD,Purchase of Non-Res Care - South,Private & Voluntary Day Care,Milestones Trust,840.78, 04-Jul-2014
1327,Revenue,CCHD,Purchase of Non-Res Care - South,Private & Voluntary Day Care,Milestones Trust,1183.32, 04-Jul-2014
1328,Revenue,CCHD,Supported Living - South,Private & Voluntary Home Care,Milestones Trust,579.42, 04-Jul-2014
1329,Revenue,CCHD,Supported Living - South,Private & Voluntary Home Care,Milestones Trust,11176.58, 15-Jul-2014
1330,Revenue,CCHD,Stibbs and Fairburn,Respite Planned - Residential,Milestones Trust,127861.00, 28-Jul-2014
1331,Revenue,CCHD,Supported Living - South,Private & Voluntary Home Care,Milestones Trust,7084.35, 25-Jul-2014
1332,Revenue,CCHD,Supported Living - South,Private & Voluntary Home Care,Milestones Trust,4540.75, 25-Jul-2014
1333,Revenue,CCHD,Supported Living - South,Private & Voluntary Home Care,Milestones Trust,6538.68, 25-Jul-2014
1334,Revenue,CCHD,Purchase of Non-Res Care - South,Private & Voluntary Day Care,Milestones Trust,1594.04, 25-Jul-2014
1335,Revenue,CCHD,Younger MH non-res purchasing,Private & Voluntary Day Care,Milestones Trust,1660.69, 31-Jul-2014
1336,Revenue,CCHD,Bed Purchasing - Frenchay Hospital,Permanent Residential,Mostyn Lodge Residential Home,1133.48, 08-Jul-2014
1337,Revenue,CCHD,Older People's Commissioned Se,Grants to Voluntary Bodies,Mothers for Mothers,2155.25, 01-Jul-2014
1338,Revenue,CCHD,Social Lettings Agency,Fees - General,Individual,10.00, 07-Jul-2014
1339,Revenue,CCHD,Social Lettings Agency,Other Supplies & Services,Individual,565.00, 07-Jul-2014
1340,Revenue,CCHD,Social Lettings Agency,Fees - General,Individual,10.00, 18-Jul-2014
1341,Revenue,CCHD,Social Lettings Agency,Other Supplies & Services,Individual,565.00, 18-Jul-2014
1342,Revenue,CCHD,Social Lettings Agency,Fees - General,Individual,10.00, 22-Jul-2014
1343,Revenue,CCHD,Social Lettings Agency,Other Supplies & Services,Individual,565.00, 22-Jul-2014
1344,Revenue,CCHD,Social Lettings Agency,Fees - General,Individual,8.60, 22-Jul-2014
1345,Revenue,CCHD,Social Lettings Agency,Other Supplies & Services,Individual,582.00, 22-Jul-2014
1346,Revenue,CCHD,Social Lettings Agency,Fees - General,Individual,11.60, 01-Jul-2014
1347,Revenue,CCHD,Social Lettings Agency,Other Supplies & Services,Individual,655.41, 01-Jul-2014
1348,Revenue,CCHD,Tenancy Start Up Scheme,Other Supplies & Services,Individual,1675.00, 03-Jul-2014
1349,Revenue,CCHD,Homeless - Private Sector Leasing,Other Supplies & Services,Mr D G & Mrs L K Jenkins,565.00, 23-Jul-2014
1350,Revenue,CCHD,Tenancy Start Up Scheme,Other Supplies & Services,Individual,625.00, 03-Jul-2014
1351,Revenue,CCHD,Social Lettings Agency,Fees - General,Individual,11.71, 02-Jul-2014
1352,Revenue,CCHD,Social Lettings Agency,Other Supplies & Services,Individual,661.96, 02-Jul-2014
1353,Revenue,CCHD,Social Lettings Agency,Fees - General,Individual,10.00, 08-Jul-2014
1354,Revenue,CCHD,Social Lettings Agency,Other Supplies & Services,Individual,565.00, 08-Jul-2014
1355,Revenue,CCHD,Tenancy Start Up Scheme,Fees & Charges Income - General,Individual,732.29, 24-Jul-2014
1356,Revenue,CCHD,Tenancy Start Up Scheme,Other Supplies & Services,Individual,1280.00, 23-Jul-2014
1357,Revenue,CCHD,Tenancy Start Up Scheme,Other Supplies & Services,Individual,990.00, 16-Jul-2014
1358,Revenue,CCHD,Social Lettings Agency,Fees - General,Individual,11.20, 18-Jul-2014
1359,Revenue,CCHD,Social Lettings Agency,Other Supplies & Services,Individual,632.81, 18-Jul-2014
1360,Revenue,CCHD,Social Lettings Agency,Fees - General,Individual,10.00, 08-Jul-2014
1361,Revenue,CCHD,Social Lettings Agency,Other Supplies & Services,Individual,565.00, 08-Jul-2014
1362,Revenue,CCHD,Social Lettings Agency,Fees - General,Individual,10.00, 01-Jul-2014
1363,Revenue,CCHD,Social Lettings Agency,Other Supplies & Services,Individual,565.00, 01-Jul-2014
1364,Revenue,CCHD,Social Lettings Agency,Fees - General,Individual,8.70, 16-Jul-2014
1365,Revenue,CCHD,Social Lettings Agency,Other Supplies & Services,Individual,672.80, 16-Jul-2014
1366,Revenue,CCHD,Social Lettings Agency,Fees - General,Individual,10.00, 30-Jul-2014
1367,Revenue,CCHD,Social Lettings Agency,Other Supplies & Services,Individual,565.00, 30-Jul-2014
1368,Revenue,CCHD,Bed Purchasing - Elderly - North,Other Supplies & Services,Mr William Parsons,500.00, 14-Jul-2014
1369,Revenue,CCHD,Home Care - Elderly - South,Other Small Contracts,Mrs B Kimber -  CM2000,11087.48, 10-Jul-2014
1370,Revenue,CCHD,Home Care - Elderly - North,Other Small Contracts,Mrs B Kimber -  CM2000,5421.09, 10-Jul-2014
1371,Revenue,CCHD,Day Care - South,Private & Voluntary Day Care,Mrs B Kimber -  CM2000,497.31, 10-Jul-2014
1372,Revenue,CCHD,Under 65s -MH  Home Care Purch,Other Small Contracts,Mrs B Kimber -  CM2000,65.76, 10-Jul-2014
1373,Revenue,CCHD,Elderly MH Day Care North,Private & Voluntary Day Care,Mrs B Kimber -  CM2000,98.64, 10-Jul-2014
1374,Revenue,CCHD,Home Care - Elderly - South,Other Small Contracts,Mrs B Kimber -  CM2000,10955.63, 10-Jul-2014
1375,Revenue,CCHD,Home Care - Elderly - North,Other Small Contracts,Mrs B Kimber -  CM2000,5404.65, 10-Jul-2014
1376,Revenue,CCHD,Day Care - South,Private & Voluntary Day Care,Mrs B Kimber -  CM2000,497.31, 10-Jul-2014
1377,Revenue,CCHD,Under 65s -MH  Home Care Purch,Other Small Contracts,Mrs B Kimber -  CM2000,65.76, 10-Jul-2014
1378,Revenue,CCHD,Elderly MH Day Care North,Private & Voluntary Day Care,Mrs B Kimber -  CM2000,98.64, 10-Jul-2014
1379,Revenue,CCHD,Home Care - Elderly - South,Other Small Contracts,Mrs B Kimber -  CM2000,10889.87, 17-Jul-2014
1380,Revenue,CCHD,Home Care - Elderly - North,Other Small Contracts,Mrs B Kimber -  CM2000,5478.63, 17-Jul-2014
1381,Revenue,CCHD,Day Care - South,Private & Voluntary Day Care,Mrs B Kimber -  CM2000,501.42, 17-Jul-2014
1382,Revenue,CCHD,Under 65s -MH  Home Care Purch,Other Small Contracts,Mrs B Kimber -  CM2000,32.88, 17-Jul-2014
1383,Revenue,CCHD,Elderly MH Day Care North,Private & Voluntary Day Care,Mrs B Kimber -  CM2000,98.64, 17-Jul-2014
1384,Revenue,CCHD,Home Care - Elderly - South,Other Small Contracts,Mrs B Kimber -  CM2000,10937.63, 24-Jul-2014
1385,Revenue,CCHD,Home Care - Elderly - North,Other Small Contracts,Mrs B Kimber -  CM2000,5458.08, 24-Jul-2014
1386,Revenue,CCHD,Day Care - South,Private & Voluntary Day Care,Mrs B Kimber -  CM2000,180.84, 24-Jul-2014
1387,Revenue,CCHD,Elderly MH Day Care North,Private & Voluntary Day Care,Mrs B Kimber -  CM2000,98.64, 24-Jul-2014
1388,Revenue,CCHD,Social Lettings Agency,Fees - General,Individual,10.00, 17-Jul-2014
1389,Revenue,CCHD,Social Lettings Agency,Other Supplies & Services,Individual,565.00, 17-Jul-2014
1390,Revenue,CCHD,Social Lettings Agency,Fees - General,Individual,10.00, 14-Jul-2014
1391,Revenue,CCHD,Social Lettings Agency,Other Supplies & Services,Individual,565.00, 14-Jul-2014
1392,Revenue,CCHD,Social Lettings Agency,Fees - General,Individual,10.00, 24-Jul-2014
1393,Revenue,CCHD,Social Lettings Agency,Other Supplies & Services,Individual,565.00, 24-Jul-2014
1394,Revenue,CCHD,Social Lettings Agency,Fees - General,Individual,10.00, 01-Jul-2014
1395,Revenue,CCHD,Social Lettings Agency,Other Supplies & Services,Individual,565.00, 01-Jul-2014
1396,Revenue,CCHD,Supported Living - North,Permanent Residential,Mrs I M Bowerman,1173.44, 07-Jul-2014
1397,Revenue,CCHD,Social Lettings Agency,Fees - General,Individual,10.09, 11-Jul-2014
1398,Revenue,CCHD,Social Lettings Agency,Other Supplies & Services,Individual,570.66, 11-Jul-2014
1399,Revenue,CCHD,Social Lettings Agency,Fees - General,Individual,11.60, 16-Jul-2014
1400,Revenue,CCHD,Social Lettings Agency,Other Supplies & Services,Individual,655.41, 16-Jul-2014
1401,Revenue,CCHD,Social Lettings Agency,Fees - General,Individual,10.00, 08-Jul-2014
1402,Revenue,CCHD,Social Lettings Agency,Other Supplies & Services,Individual,565.00, 08-Jul-2014
1403,Revenue,CCHD,Social Lettings Agency,Fees - General,Individual,15.53, 11-Jul-2014
1404,Revenue,CCHD,Social Lettings Agency,Other Supplies & Services,Individual,877.68, 11-Jul-2014
1405,Revenue,CCHD,Learning Difficulties Development Fund,Other Supplies & Services,MultiMe Ltd,2313.00, 14-Jul-2014
1406,Revenue,CCHD,Younger MH non-res purchasing,Private & Voluntary Day Care,NAS Services Limited,931.25, 11-Jul-2014
1407,Revenue,CCHD,Day Care - North,Private & Voluntary Day Care,NAS Services Limited,897.70, 11-Jul-2014
1408,Revenue,CCHD,Day Care - South,Private & Voluntary Day Care,NAS Services Limited,780.85, 11-Jul-2014
1409,Revenue,CCHD,Day Care - South,Private & Voluntary Day Care,NAS Services Limited,935.70, 11-Jul-2014
1410,Revenue,CCHD,Younger MH non-res purchasing,Private & Voluntary Day Care,NAS Services Limited,640.55, 11-Jul-2014
1411,Revenue,CCHD,Newton House,Security Systems,National Security Group,293.84, 14-Jul-2014
1412,Revenue,CCHD,Newton House,Security Systems,National Security Group,276.04, 24-Jul-2014
1413,Revenue,CCHD,Bed Purchasing - Under 65s PWLD - South,Permanent Residential,National Star College,4615.04, 08-Jul-2014
1414,Revenue,CCHD,Training - Adult Services,Training Expenses,Nelson Training Limited,1183.91, 28-Jul-2014
1415,Revenue,CCHD,Home Care - Elderly - South,Other Small Contracts,Nestor T/A Allied Healthcare,3332.60, 04-Jul-2014
1416,Revenue,CCHD,Home Care - Elderly - North,Private & Voluntary Day Care,Nestor T/A Allied Healthcare,30.40, 04-Jul-2014
1417,Revenue,CCHD,Home Care - Elderly - North,Other Small Contracts,Nestor T/A Allied Healthcare,8029.73, 04-Jul-2014
1418,Revenue,CCHD,Day Care - North,Private & Voluntary Day Care,Nestor T/A Allied Healthcare,228.00, 04-Jul-2014
1419,Revenue,CCHD,Home care - Elderly MH - North,Other Small Contracts,Nestor T/A Allied Healthcare,45.60, 04-Jul-2014
1420,Revenue,CCHD,Home Care - Elderly - South,Other Small Contracts,Nestor T/A Allied Healthcare,3260.40, 18-Jul-2014
1421,Revenue,CCHD,Home Care - Elderly - North,Private & Voluntary Day Care,Nestor T/A Allied Healthcare,30.40, 18-Jul-2014
1422,Revenue,CCHD,Home Care - Elderly - North,Other Small Contracts,Nestor T/A Allied Healthcare,8289.91, 18-Jul-2014
1423,Revenue,CCHD,Day Care - North,Private & Voluntary Day Care,Nestor T/A Allied Healthcare,228.00, 18-Jul-2014
1424,Revenue,CCHD,Home care - Elderly MH - North,Other Small Contracts,Nestor T/A Allied Healthcare,53.20, 18-Jul-2014
1425,Revenue,CCHD,Home Care - Elderly - South,Other Small Contracts,Nestor T/A Allied Healthcare,3066.60, 24-Jul-2014
1426,Revenue,CCHD,Home Care - Elderly - North,Private & Voluntary Day Care,Nestor T/A Allied Healthcare,45.60, 24-Jul-2014
1427,Revenue,CCHD,Home Care - Elderly - North,Other Small Contracts,Nestor T/A Allied Healthcare,8111.30, 24-Jul-2014
1428,Revenue,CCHD,Day Care - North,Private & Voluntary Day Care,Nestor T/A Allied Healthcare,228.00, 24-Jul-2014
1429,Revenue,CCHD,Home care - Elderly MH - North,Other Small Contracts,Nestor T/A Allied Healthcare,49.40, 24-Jul-2014
1430,Revenue,CCHD,Home Care - Elderly - South,Other Small Contracts,Network Health & Social Care,643.44, 17-Jul-2014
1431,Revenue,CCHD,Home Care - Elderly - North,Other Small Contracts,Network Health & Social Care,4010.01, 17-Jul-2014
1432,Revenue,CCHD,Home Care - Elderly - South,Other Small Contracts,Network Health & Social Care,681.74, 28-Jul-2014
1433,Revenue,CCHD,Home Care - Elderly - North,Other Small Contracts,Network Health & Social Care,3941.07, 28-Jul-2014
1434,Revenue,CCHD,Home Care - Elderly - South,Other Small Contracts,Network Health & Social Care,720.04, 28-Jul-2014
1435,Revenue,CCHD,Home Care - Elderly - North,Other Small Contracts,Network Health & Social Care,3692.12, 28-Jul-2014
1436,Revenue,CCHD,Social Lettings Agency,Fees - General,Individual,10.00, 04-Jul-2014
1437,Revenue,CCHD,Social Lettings Agency,Other Supplies & Services,Individual,565.00, 04-Jul-2014
1438,Revenue,CCHD,Community Promoting Independence Team,"Holidays, Outings & Visits",Neville Williams,1076.00, 02-Jul-2014
1439,Revenue,CCHD,Community Promoting Independence Team,"Holidays, Outings & Visits",Neville Williams,1054.00, 31-Jul-2014
1440,Revenue,CCHD,Community Support - North,Preventative Assistance,NHS South Gloucestershire CCG,997.68, 14-Jul-2014
1441,Revenue,CCHD,Bed Purchasing - Under 65s PWLD - South,Permanent Residential,Nightingale Nursing Home,3151.80, 08-Jul-2014
1442,Revenue,CCHD,SLA Grants - Support Serv,Grants to Voluntary Bodies,North Bristol NHS Trust,4350.00, 01-Jul-2014
1443,Revenue,CCHD,"Strategy, Advice and Public Protection",Other Supplies & Services,North Somerset Council,2688.06, 21-Jul-2014
1444,Revenue,CCHD,Bed Purchasing - Under 65s PWLD - South,Permanent Residential,Norwood   Broadway House,4972.40, 08-Jul-2014
1445,Revenue,CCHD,Bed Purchasing - Elderly MH - South,Permanent Residential,Notaro Homes Ltd  Queensmead Court,1884.80, 08-Jul-2014
1446,Revenue,CCHD,Bed Purchasing - Southmead Hospital,Permanent Residential,Notaro Homes Ltd  Queensmead Court,1389.00, 08-Jul-2014
1447,Revenue,CCHD,Bed Purchasing - Elderly - South,Permanent Residential,Nova House Care Home,949.92, 08-Jul-2014
1448,Revenue,CCHD,Home Care - Elderly - South,Other Small Contracts,Nursing Solutions Limited,3410.40, 28-Jul-2014
1449,Revenue,CCHD,Home Care - Elderly - North,Other Small Contracts,Nursing Solutions Limited,689.92, 28-Jul-2014
1450,Revenue,CCHD,Home Care - Elderly - South,Other Small Contracts,Nursing Solutions Limited,3649.52, 29-Jul-2014
1451,Revenue,CCHD,Home Care - Elderly - North,Other Small Contracts,Nursing Solutions Limited,709.52, 29-Jul-2014
1452,Revenue,CCHD,Home Care - Elderly - South,Other Small Contracts,Nursing Solutions Limited,3014.48, 28-Jul-2014
1453,Revenue,CCHD,Home Care - Elderly - North,Other Small Contracts,Nursing Solutions Limited,682.08, 28-Jul-2014
1454,Revenue,CCHD,Section 117 Placements MH Younger,Permanent Nursing,Oaklands,6088.80, 08-Jul-2014
1455,Revenue,CCHD,Kingswood Centre - Maple Suite,Contract Hire & Operational Leases,OCS Group UK Ltd,483.60, 30-Jul-2014
1456,Revenue,CCHD,Woodleaze,Refuse Collection Charges,OCS Group UK Ltd,866.58, 21-Jul-2014
1457,Revenue,CCHD,Housing Advice,Grants to Voluntary Bodies,Orchard & Shipman PLC,13333.25, 30-Jul-2014
1458,Revenue,CCHD,Bed purchasing -S28A  Under 65 - North,Permanent Residential,Orchard End Limited,7562.88, 08-Jul-2014
1459,Revenue,CCHD,Turnberries,"Provisions (Food, etc)",Origin Cafe,596.60, 30-Jul-2014
1460,Revenue,CCHD,Bed purchasing - Elderly S117 - South,Permanent Residential,Osbourne Court,3105.28, 08-Jul-2014
1461,Revenue,CCHD,Bed Purchasing - Elderly - North,Permanent Residential,Osbourne Court,1796.40, 08-Jul-2014
1462,Revenue,CCHD,Bed Purchasing - Elderly S117- North,Permanent Residential,Osbourne Court,1928.00, 08-Jul-2014
1463,Revenue,CCHD,Bed Purchasing - Elderly - North,Permanent Residential,Osbourne Court,2557.32, 08-Jul-2014
1464,Revenue,CCHD,Bed Purchasing - Under 65s PWLD - South,Permanent Residential,Osprey Court,7750.24, 08-Jul-2014
1465,Revenue,CCHD,Bed purchasing - S28A Under 65 - South,Permanent Residential,Osprey Court,4322.88, 08-Jul-2014
1466,Revenue,CCHD,Bed purchasing - S28A Under 65 - South,Permanent Residential,Osprey Court,6396.04, 08-Jul-2014
1467,Revenue,CCHD,Bed Purchasing - PWLD S 117 Placements,Permanent Residential,Osprey Court,11328.56, 08-Jul-2014
1468,Revenue,CCHD,Breakthrough and Inclusion Work,Other Supplies & Services,P3D,2479.38, 15-Jul-2014
1469,Revenue,CCHD,Bed Purchasing - Elderly - South,Permanent Nursing,Palm Court Nursing Home,11926.64, 08-Jul-2014
1470,Revenue,CCHD,Bed Purchasing - Southmead Hospital,Permanent Nursing,Palm Court Nursing Home,1519.32, 08-Jul-2014
1471,Revenue,CCHD,Bed Purchasing - Elderly MH - South,Permanent Residential,Park Farm House,1344.56, 08-Jul-2014
1472,Revenue,CCHD,Bed Purchasing - Elderly MH - South,Permanent Residential,Park Farm House,1614.16, 08-Jul-2014
1473,Revenue,CCHD,Bed Purchasing - Under 65s PWLD - South,Permanent Residential,Park Hall,5634.64, 08-Jul-2014
1474,Revenue,CCHD,Bed purchasing - Under 65s PWLD - North,Permanent Residential,Park Hall,5202.24, 08-Jul-2014
1475,Revenue,CCHD,Bed Purchasing - Under 65s PWLD - South,Permanent Residential,Park Hall,5014.44, 08-Jul-2014
1476,Revenue,CCHD,Bed purchasing - Elderly PWLD - South,Permanent Residential,Park Hall,2555.68, 08-Jul-2014
1477,Revenue,CCHD,Bed purchasing - Elderly PWLD - North,Permanent Residential,Park Hall,4967.68, 08-Jul-2014
1478,Revenue,CCHD,Bed purchasing - S28A Under 65 - South,Permanent Residential,Park Hall,4682.92, 08-Jul-2014
1479,Revenue,CCHD,Bed Purchasing - Under 65s PWLD - South,Permanent Residential,Park Hall,4990.40, 08-Jul-2014
1480,Revenue,CCHD,Bed purchasing - Under 65s PWLD - North,Permanent Residential,Park Hall,4339.28, 08-Jul-2014
1481,Revenue,CCHD,Bed Purchasing - S28A - Over 65- North,Permanent Residential,Park Hall,5382.84, 08-Jul-2014
1482,Revenue,CCHD,Bed Purchasing - Under 65s PWLD - South,Permanent Residential,Park Hall,10767.96, 08-Jul-2014
1483,Revenue,CCHD,Bed purchasing -S28A  Under 65 - North,Permanent Residential,Park Hall,5931.12, 08-Jul-2014
1484,Revenue,CCHD,Bed purchasing - S28A Under 65 - South,Permanent Residential,Park Hall,5645.36, 08-Jul-2014
1485,Revenue,CCHD,Bed Purchasing - Under 65s PWLD - South,Permanent Residential,Park Hall,7181.48, 08-Jul-2014
1486,Revenue,CCHD,Social Lettings Agency,Fees - General,Individual,10.00, 25-Jul-2014
1487,Revenue,CCHD,Social Lettings Agency,Other Supplies & Services,Individual,565.00, 25-Jul-2014
1488,Revenue,CCHD,Bed Purchasing - Under 65s PWLD - South,Permanent Residential,Penleigh House Care Home,4560.48, 08-Jul-2014
1489,Revenue,CCHD,Bed Purchasing - Under 65s PWLD - South,Permanent Residential,Penleigh House Care Home,6430.64, 08-Jul-2014
1490,Revenue,CCHD,Bed purchasing - Elderly PWLD - South,Permanent Residential,Penleigh House Care Home,4318.88, 08-Jul-2014
1491,Revenue,CCHD,Bed purchasing - S28A Under 65 - South,Permanent Residential,Penleigh House Care Home,5497.68, 08-Jul-2014
1492,Revenue,CCHD,Bed Purchasing - Under 65s PWLD - South,Permanent Residential,Penleigh House Care Home,4966.16, 08-Jul-2014
1493,Revenue,CCHD,Training - Adult Services,Training Expenses,Penny McLellan,505.40, 31-Jul-2014
1494,Revenue,CCHD,Breakthrough and Inclusion Work,Other Supplies & Services,Platinum Fitness,945.60, 02-Jul-2014
1495,Revenue,CCHD,Home Care - Elderly - South,Other Small Contracts,Premier Homecare Limited,100.32, 04-Jul-2014
1496,Revenue,CCHD,Home Care - Elderly - North,Other Small Contracts,Premier Homecare Limited,7970.88, 04-Jul-2014
1497,Revenue,CCHD,Day Care - North,Private & Voluntary Day Care,Premier Homecare Limited,13.68, 04-Jul-2014
1498,Revenue,CCHD,Home care - Elderly MH - North,Other Small Contracts,Premier Homecare Limited,127.68, 04-Jul-2014
1499,Revenue,CCHD,Elderly MH Day Care North,Private & Voluntary Day Care,Premier Homecare Limited,127.68, 04-Jul-2014
1500,Revenue,CCHD,Home Care - Elderly - South,Other Small Contracts,Premier Homecare Limited,104.88, 10-Jul-2014
1501,Revenue,CCHD,Home Care - Elderly - North,Other Small Contracts,Premier Homecare Limited,7553.07, 10-Jul-2014
1502,Revenue,CCHD,Home care - Elderly MH - North,Other Small Contracts,Premier Homecare Limited,123.12, 10-Jul-2014
1503,Revenue,CCHD,Elderly MH Day Care North,Private & Voluntary Day Care,Premier Homecare Limited,127.68, 10-Jul-2014
1504,Revenue,CCHD,Home Care - Elderly - South,Other Small Contracts,Premier Homecare Limited,82.08, 17-Jul-2014
1505,Revenue,CCHD,Home Care - Elderly - North,Other Small Contracts,Premier Homecare Limited,8278.11, 17-Jul-2014
1506,Revenue,CCHD,Home care - Elderly MH - North,Other Small Contracts,Premier Homecare Limited,127.68, 17-Jul-2014
1507,Revenue,CCHD,Elderly MH Day Care North,Private & Voluntary Day Care,Premier Homecare Limited,127.68, 17-Jul-2014
1508,Revenue,CCHD,Home Care - Elderly - North,Private & Voluntary Day Care,Premier Homecare Limited,72.96, 28-Jul-2014
1509,Revenue,CCHD,Home Care - Elderly - North,Other Small Contracts,Premier Homecare Limited,9285.87, 28-Jul-2014
1510,Revenue,CCHD,Home care - Elderly MH - North,Other Small Contracts,Premier Homecare Limited,127.68, 28-Jul-2014
1511,Revenue,CCHD,Elderly MH Day Care North,Private & Voluntary Day Care,Premier Homecare Limited,127.68, 28-Jul-2014
1512,Revenue,CCHD,Home Care - Elderly - South,Other Small Contracts,Premier Homecare Limited,63.84, 29-Jul-2014
1513,Revenue,CCHD,Home Care - Elderly - North,Private & Voluntary Day Care,Premier Homecare Limited,72.96, 29-Jul-2014
1514,Revenue,CCHD,Home Care - Elderly - North,Other Small Contracts,Premier Homecare Limited,9183.84, 29-Jul-2014
1515,Revenue,CCHD,Day Care - North,Private & Voluntary Day Care,Premier Homecare Limited,13.68, 29-Jul-2014
1516,Revenue,CCHD,Home care - Elderly MH - North,Other Small Contracts,Premier Homecare Limited,127.68, 29-Jul-2014
1517,Revenue,CCHD,Elderly MH Day Care North,Private & Voluntary Day Care,Premier Homecare Limited,72.96, 29-Jul-2014
1518,Revenue,CCHD,Home Care - Elderly - South,Other Small Contracts,Prestige Nursing,854.10, 28-Jul-2014
1519,Revenue,CCHD,Home Care - Elderly - North,Other Small Contracts,Prestige Nursing,2926.39, 28-Jul-2014
1520,Revenue,CCHD,Day Care - South,Private & Voluntary Day Care,Prestige Nursing,127.02, 28-Jul-2014
1521,Revenue,CCHD,Day Care - North,Private & Voluntary Day Care,Prestige Nursing,70.08, 28-Jul-2014
1522,Revenue,CCHD,Home Care - Elderly - South,Other Small Contracts,Prestige Nursing,827.82, 28-Jul-2014
1523,Revenue,CCHD,Home Care - Elderly - North,Other Small Contracts,Prestige Nursing,3148.68, 28-Jul-2014
1524,Revenue,CCHD,Day Care - South,Private & Voluntary Day Care,Prestige Nursing,122.64, 28-Jul-2014
1525,Revenue,CCHD,Day Care - North,Private & Voluntary Day Care,Prestige Nursing,70.08, 28-Jul-2014
1526,Revenue,CCHD,Home Care - Elderly - South,Other Small Contracts,Prestige Nursing,823.44, 28-Jul-2014
1527,Revenue,CCHD,Home Care - Elderly - North,Other Small Contracts,Prestige Nursing,2928.68, 28-Jul-2014
1528,Revenue,CCHD,Day Care - South,Private & Voluntary Day Care,Prestige Nursing,122.64, 28-Jul-2014
1529,Revenue,CCHD,Day Care - North,Private & Voluntary Day Care,Prestige Nursing,70.08, 28-Jul-2014
1530,Revenue,CCHD,Home Care - Elderly - South,Other Small Contracts,Prestige Nursing,849.72, 28-Jul-2014
1531,Revenue,CCHD,Home Care - Elderly - North,Other Small Contracts,Prestige Nursing,2992.61, 28-Jul-2014
1532,Revenue,CCHD,Day Care - South,Private & Voluntary Day Care,Prestige Nursing,127.02, 28-Jul-2014
1533,Revenue,CCHD,Day Care - North,Private & Voluntary Day Care,Prestige Nursing,70.08, 28-Jul-2014
1534,Revenue,CCHD,Alexandra Way,Agency Staff (Admin/Support Staff) Pay,Prestige Nursing,548.97, 15-Jul-2014
1535,Revenue,CCHD,SLA Grants - Support Serv,Grants to Voluntary Bodies,Princess Royal Trust Carers Centre,50299.25, 01-Jul-2014
1536,Revenue,CCHD,Older People's Commissioned Se,Grants to Voluntary Bodies,Princess Royal Trust Carers Centre,1930.75, 01-Jul-2014
1537,Revenue,CCHD,Section 117 Placements MH Younger,Permanent Residential,Proctor Care Home Limited,8798.00, 08-Jul-2014
1538,Revenue,CCHD,Bed Purchasing - Frenchay Hospital,Permanent Nursing,Ravenswood,2103.28, 08-Jul-2014
1539,Revenue,CCHD,Bed purchasing - Elderly MH - North,Permanent Nursing,Ravenswood,1279.04, 08-Jul-2014
1540,Revenue,CCHD,Bed Purchasing - PWLD S 117 Placements,Permanent Residential,Real Life Options,8098.04, 08-Jul-2014
1541,Revenue,CCHD,Breakthrough and Inclusion Work,Other Supplies & Services,Redefine Mentoring Ltd,3316.03, 11-Jul-2014
1542,Revenue,CCHD,Bed Purchasing - Elderly S117- North,Permanent Nursing,Redholme Memory Care Limited,1991.84, 08-Jul-2014
1543,Revenue,CCHD,Bed Purchasing - Elderly - South,Permanent Nursing,Regent House,2255.28, 08-Jul-2014
1544,Revenue,CCHD,Bed Purchasing - Elderly - South,Permanent Nursing,Regent House,2391.04, 08-Jul-2014
1545,Revenue,CCHD,Bed Purchasing - Elderly - South,Permanent Nursing,Regent House,1670.88, 08-Jul-2014
1546,Revenue,CCHD,Bed Purchasing - Elderly - South,Permanent Nursing,Regent House,1978.40, 08-Jul-2014
1547,Revenue,CCHD,Bed Purchasing - Elderly MH - South,Permanent Nursing,Regent House,2008.44, 08-Jul-2014
1548,Revenue,CCHD,Bed Purchasing - Elderly - South,Permanent Nursing,Regent House,1726.76, 08-Jul-2014
1549,Revenue,CCHD,Bed Purchasing - Elderly - South,Permanent Nursing,Regent House,1894.92, 08-Jul-2014
1550,Revenue,CCHD,Bed Purchasing - Frenchay Hospital,Permanent Nursing,Regent House,1090.60, 08-Jul-2014
1551,Revenue,CCHD,Bed Purchasing - Elderly - North,Permanent Nursing,Regent House,2004.36, 08-Jul-2014
1552,Revenue,CCHD,Bed Purchasing - Southmead Hospital,Permanent Nursing,Regent House,1600.76, 08-Jul-2014
1553,Revenue,CCHD,Bed Purchasing - Elderly - South,Permanent Nursing,Regent House,1826.20, 08-Jul-2014
1554,Revenue,CCHD,Bed Purchasing - Elderly - South,Permanent Nursing,Regent House,1675.68, 08-Jul-2014
1555,Revenue,CCHD,Bed Purchasing - Elderly - North,Permanent Nursing,Regent House,6373.60, 08-Jul-2014
1556,Revenue,CCHD,Bed Purchasing - Southmead Hospital,Permanent Nursing,Regent House,1406.44, 08-Jul-2014
1557,Revenue,CCHD,South Glos Users in South Glos Homes,Permanent Nursing,Regent House,1314.84, 08-Jul-2014
1558,Revenue,CCHD,Bed Purchasing - Elderly - South,Permanent Nursing,Regent House,1668.12, 08-Jul-2014
1559,Revenue,CCHD,Bed Purchasing - Elderly MH - South,Permanent Nursing,Regent House,1197.60, 08-Jul-2014
1560,Revenue,CCHD,Bed purchasing - Elderly MH - North,Permanent Nursing,Regent House,1283.84, 08-Jul-2014
1561,Revenue,CCHD,Bed Purchasing - Elderly - South,Permanent Nursing,Regent House,2001.48, 08-Jul-2014
1562,Revenue,CCHD,Bed Purchasing - Under 65s PWLD - South,Permanent Residential,Ridgeway House,3502.08, 08-Jul-2014
1563,Revenue,CCHD,Bed Purchasing - Under 65s PWLD - South,Permanent Residential,Riverside House,3611.04, 08-Jul-2014
1564,Revenue,CCHD,Bed Purchasing - Frenchay Hospital,Permanent Nursing,Riversway Nursing Home,2685.28, 08-Jul-2014
1565,Revenue,CCHD,Bed purchasing - Elderly PWLD - South,Permanent Residential,Rockleaze,1426.80, 08-Jul-2014
1566,Revenue,CCHD,Bed Purchasing - LD S28A- Over 65- South,Permanent Residential,Rockleaze,2082.04, 08-Jul-2014
1567,Revenue,CCHD,Bed purchasing - Elderly PWLD - South,Permanent Residential,Rockleaze,2414.96, 08-Jul-2014
1568,Revenue,CCHD,Bed purchasing - Elderly PWLD - South,Permanent Residential,Rockleaze,1426.80, 08-Jul-2014
1569,Revenue,CCHD,Bed Purchasing - Frenchay Hospital,Permanent Residential,Rodney House Residential Home,1432.20, 08-Jul-2014
1570,Revenue,CCHD,Bed Purchasing - Under 65s PWLD - South,Permanent Residential,Rosewood Lodge & Brook House,4569.72, 08-Jul-2014
1571,Revenue,CCHD,Sexual Health,Other Supplies & Services,Royal United Hospital,3393.00, 15-Jul-2014
1572,Revenue,CCHD,Sexual Health,Other Supplies & Services,Royal United Hospital,1697.00, 15-Jul-2014
1573,Revenue,CCHD,Sexual Health,Other Supplies & Services,Royal United Hospital,2325.00, 15-Jul-2014
1574,Revenue,CCHD,Sexual Health,Other Supplies & Services,Royal United Hospital,2615.00, 15-Jul-2014
1575,Revenue,CCHD,Sexual Health,Other Supplies & Services,Royal United Hospital,2433.00, 15-Jul-2014
1576,Revenue,CCHD,Sexual Health,Other Supplies & Services,Royal United Hospital,2344.00, 15-Jul-2014
1577,Revenue,CCHD,Sexual Health,Other Supplies & Services,Royal United Hospital,1788.97, 15-Jul-2014
1578,Revenue,CCHD,Sexual Health,Other Supplies & Services,Royal United Hospital,2172.00, 15-Jul-2014
1579,Revenue,CCHD,Sexual Health,Other Supplies & Services,Royal United Hospital,704.00, 15-Jul-2014
1580,Revenue,CCHD,Sexual Health,Other Supplies & Services,Royal United Hospital,1849.00, 15-Jul-2014
1581,Revenue,CCHD,Sexual Health,Other Supplies & Services,Royal United Hospital,2081.00, 15-Jul-2014
1582,Revenue,CCHD,Sexual Health,Other Supplies & Services,Royal United Hospital,1555.00, 18-Jul-2014
1583,Revenue,CCHD,Bed Purchasing - Elderly - South,Permanent Nursing,Saffron Gardens,13768.81, 08-Jul-2014
1584,Revenue,CCHD,Bed Purchasing - Elderly - South,Permanent Nursing,Saffron Gardens,1962.44, 08-Jul-2014
1585,Revenue,CCHD,Bed Purchasing - Elderly - North,Permanent Nursing,Saffron Gardens,2304.20, 08-Jul-2014
1586,Revenue,CCHD,Bed Purchasing - Elderly - South,Respite Emergency - Residential,Saffron Gardens,1178.22, 08-Jul-2014
1587,Revenue,CCHD,Bed Purchasing - Frenchay Hospital,Permanent Nursing,Saffron Gardens,1853.12, 08-Jul-2014
1588,Revenue,CCHD,South Glos Users in South Glos Homes,Permanent Nursing,Saffron Gardens,570.29, 08-Jul-2014
1589,Revenue,CCHD,Bed Purchasing - Frenchay Hospital,Permanent Nursing,Saffron Gardens,1558.53, 08-Jul-2014
1590,Revenue,CCHD,Bed Purchasing - Southmead Hospital,Permanent Residential,Saffron Gardens,1270.68, 08-Jul-2014
1591,Revenue,CCHD,Bed Purchasing - Elderly MH - South,Permanent Nursing,Saffron Gardens,2072.32, 08-Jul-2014
1592,Revenue,CCHD,Bed Purchasing - Southmead Hospital,Permanent Nursing,Saffron Gardens,1391.72, 08-Jul-2014
1593,Revenue,CCHD,Bed Purchasing - Elderly - North,Permanent Nursing,Saffron Gardens,986.64, 08-Jul-2014
1594,Revenue,CCHD,South Glos Users in South Glos Homes,Permanent Nursing,Saffron Gardens,1314.84, 08-Jul-2014
1595,Revenue,CCHD,Bed Purchasing - Frenchay Hospital,Permanent Nursing,Saffron Gardens,597.04, 08-Jul-2014
1596,Revenue,CCHD,Bed Purchasing - Elderly - South,Permanent Residential,Saffron Gardens,1296.84, 08-Jul-2014
1597,Revenue,CCHD,NHS Health Checks & Tobacco Control,Other Supplies & Services,Sainsbury`s Supermarkets Ltd,1015.40, 21-Jul-2014
1598,Revenue,CCHD,Telecare,Interpreting & Translation,Sally Walker Limited,505.00, 18-Jul-2014
1599,Revenue,CCHD,Bed Purchasing - Under 65s PWLD - South,Permanent Residential,Salters Hill Barn,2039.36, 08-Jul-2014
1600,Revenue,CCHD,Bed Purchasing - Southmead Hospital,Permanent Residential,Sanctuary Care Ltd,1284.20, 08-Jul-2014
1601,Revenue,CCHD,Learning Difficulties PSL,Rent,Individual,1650.00, 01-Jul-2014
1602,Revenue,CCHD,Woodleaze,"Provisions (Food, etc)",School Milk Services Limited,618.43, 31-Jul-2014
1603,Revenue,CCHD,Bed purchasing - Under 65s PWLD - North,Permanent Residential,Scope   Accounts Dept,5030.36, 08-Jul-2014
1604,Revenue,CCHD,Bed Purchasing - Under 65s PWLD - South,Permanent Residential,Scope   Accounts Dept,3073.16, 08-Jul-2014
1605,Revenue,CCHD,Community Support - North,Preventative Assistance,SeeAbility,1908.22, 17-Jul-2014
1606,Revenue,CCHD,Community Support - North,Preventative Assistance,SeeAbility,3113.42, 17-Jul-2014
1607,Revenue,CCHD,Community Support - North,Preventative Assistance,SeeAbility,3012.99, 17-Jul-2014
1608,Revenue,CCHD,Community Support - North,Preventative Assistance,SeeAbility,3113.42, 17-Jul-2014
1609,Revenue,CCHD,Community Support - North,Preventative Assistance,SeeAbility,3113.42, 17-Jul-2014
1610,Revenue,CCHD,Community Support - North,Preventative Assistance,SeeAbility,3012.99, 17-Jul-2014
1611,Revenue,CCHD,Community Support - North,Preventative Assistance,SeeAbility,3113.42, 17-Jul-2014
1612,Revenue,CCHD,Community Support - North,Preventative Assistance,SeeAbility,3012.99, 17-Jul-2014
1613,Revenue,CCHD,Community Support - North,Preventative Assistance,SeeAbility,3113.42, 17-Jul-2014
1614,Revenue,CCHD,Community Support - North,Preventative Assistance,SeeAbility,803.46, 17-Jul-2014
1615,Revenue,CCHD,Day Care - North,Private & Voluntary Day Care,SeeAbility,1879.42, 07-Jul-2014
1616,Revenue,CCHD,Supported Living - North,Private & Voluntary Home Care,SeeAbility,6177.24, 14-Jul-2014
1617,Revenue,CCHD,Supported Living - North,Private & Voluntary Home Care,SeeAbility,1341.77, 14-Jul-2014
1618,Revenue,CCHD,Supported Living - North,Private & Voluntary Home Care,SeeAbility,7610.10, 14-Jul-2014
1619,Revenue,CCHD,Supported Living - North,Private & Voluntary Home Care,SeeAbility,1254.26, 14-Jul-2014
1620,Revenue,CCHD,Purchase of Non-Res Care - North,Private & Voluntary Day Care,Selborne Care Ltd,1965.69, 18-Jul-2014
1621,Revenue,CCHD,Purchase of Non-Res Care - North,Private & Voluntary Day Care,Selborne Care Ltd,887.84, 18-Jul-2014
1622,Revenue,CCHD,Supported Living - South,Private & Voluntary Home Care,Selborne Care Ltd,522.56, 08-Jul-2014
1623,Revenue,CCHD,Purchase of Non-Res Care - North,Private & Voluntary Day Care,Selborne Care Ltd,796.92, 18-Jul-2014
1624,Revenue,CCHD,Supported Living - South,Private & Voluntary Home Care,Selborne Care Ltd,562.84, 08-Jul-2014
1625,Revenue,CCHD,Purchase of Non-Res Care - North,Private & Voluntary Day Care,Selborne Care Ltd,796.84, 18-Jul-2014
1626,Revenue,CCHD,Supported Living (S28a) South,Private & Voluntary Home Care,Selborne Care Ltd,3376.08, 24-Jul-2014
1627,Revenue,CCHD,Supported Living - South,Private & Voluntary Home Care,Selborne Care Ltd,2597.34, 25-Jul-2014
1628,Revenue,CCHD,Supported Living - South,Private & Voluntary Home Care,Selborne Care Ltd,722.92, 25-Jul-2014
1629,Revenue,CCHD,Supported Living - South,Private & Voluntary Home Care,Selborne Care Ltd,5205.08, 23-Jul-2014
1630,Revenue,CCHD,Supported Living - South,Private & Voluntary Home Care,Selborne Care Ltd,2060.28, 23-Jul-2014
1631,Revenue,CCHD,Supported Living - South,Private & Voluntary Home Care,Selborne Care Ltd,522.56, 23-Jul-2014
1632,Revenue,CCHD,Supported Living - South,Private & Voluntary Home Care,Selborne Care Ltd,4674.50, 23-Jul-2014
1633,Revenue,CCHD,Supported Living - South,Private & Voluntary Home Care,Selborne Care Ltd,562.84, 23-Jul-2014
1634,Revenue,CCHD,Supported Living (S28a) South,Private & Voluntary Home Care,Selborne Care Ltd,3376.08, 28-Jul-2014
1635,Revenue,CCHD,Bed Purchasing - Under 65s PWLD - South,Permanent Residential,Shaldon House (Positive Care Ltd),2226.92, 08-Jul-2014
1636,Revenue,CCHD,SLA Grants - Support Serv,Grants to Voluntary Bodies,Share the Harmony,2000.00, 25-Jul-2014
1637,Revenue,CCHD,Bed Purchasing - Elderly S117- North,Permanent Nursing,Shaw Healthcare Ltd,2647.96, 08-Jul-2014
1638,Revenue,CCHD,Bed purchasing - Elderly S117 - South,Permanent Nursing,Shaw Healthcare Ltd,2677.88, 08-Jul-2014
1639,Revenue,CCHD,Bed purchasing - Elderly MH - North,Permanent Nursing,Shaw Healthcare Ltd,2085.32, 08-Jul-2014
1640,Revenue,CCHD,Bed purchasing - S28A Under 65 - South,Permanent Residential,Shaw Healthcare Ltd,9968.40, 08-Jul-2014
1641,Revenue,CCHD,Bed purchasing - S28A Under 65 - South,Permanent Residential,Shaw Healthcare Ltd,9792.00, 08-Jul-2014
1642,Revenue,CCHD,Bed purchasing - S28A Under 65 - South,Permanent Residential,Shaw Healthcare Ltd,9796.00, 08-Jul-2014
1643,Revenue,CCHD,Bed Purchasing - Under 65s PWLD - South,Permanent Residential,Shaw Healthcare Ltd,9905.52, 08-Jul-2014
1644,Revenue,CCHD,Bed purchasing - Elderly PWLD - South,Permanent Residential,Shaw Healthcare Ltd,3962.92, 08-Jul-2014
1645,Revenue,CCHD,Bed Purchasing - S28A - Over 65- North,Permanent Residential,Shaw Healthcare Ltd,4299.04, 08-Jul-2014
1646,Revenue,CCHD,Bed Purchasing - S28A - Over 65- North,Permanent Residential,Shaw Healthcare Ltd,4306.44, 08-Jul-2014
1647,Revenue,CCHD,Bed Purchasing - LD S28A- Over 65- South,Permanent Residential,Shaw Healthcare Ltd,4831.08, 08-Jul-2014
1648,Revenue,CCHD,Bed Purchasing - LD S28A- Over 65- South,Permanent Residential,Shaw Healthcare Ltd,4384.44, 08-Jul-2014
1649,Revenue,CCHD,Bed purchasing -S28A  Under 65 - North,Permanent Residential,Shaw Healthcare Ltd,9310.24, 08-Jul-2014
1650,Revenue,CCHD,Bed Purchasing - S28A - Over 65- North,Permanent Residential,Shaw Healthcare Ltd,8704.56, 08-Jul-2014
1651,Revenue,CCHD,Bed Purchasing - Elderly - North,Permanent Residential,Shaw Healthcare Ltd,4146.08, 08-Jul-2014
1652,Revenue,CCHD,Bed Purchasing - Southmead Hospital,Permanent Residential,Shaw Healthcare Ltd,892.72, 08-Jul-2014
1653,Revenue,CCHD,Bed Purchasing - Elderly - North,Permanent Residential,Shaw Healthcare Ltd,1272.20, 08-Jul-2014
1654,Revenue,CCHD,Bed Purchasing - Frenchay Hospital,Permanent Residential,Shaw Healthcare Ltd,1134.52, 08-Jul-2014
1655,Revenue,CCHD,Day Care - North,Private & Voluntary Day Care,Silva Care Limited,1120.79, 07-Jul-2014
1656,Revenue,CCHD,Downend Day Centre,Refuse Collection Charges,SITA UK LTD,793.10, 24-Jul-2014
1657,Revenue,CCHD,Downend Day Centre,Refuse Collection Charges,SITA UK LTD,1812.87, 17-Jul-2014
1658,Revenue,CCHD,Bed purchasing - Under 65s PWLD - North,Permanent Residential,Small House Homes Limited,18014.64, 08-Jul-2014
1659,Revenue,CCHD,Supported Living - North,Private & Voluntary Home Care,Smile Independent Living Support Limited,3287.10, 28-Jul-2014
1660,Revenue,CCHD,Purchase of Non-Res Care - North,Private & Voluntary Day Care,Smile Independent Living Support Limited,1062.00, 28-Jul-2014
1661,Revenue,CCHD,Supported Living - North,Private & Voluntary Home Care,Smile Independent Living Support Limited,3287.10, 28-Jul-2014
1662,Revenue,CCHD,Purchase of Non-Res Care - North,Private & Voluntary Day Care,Smile Independent Living Support Limited,622.15, 28-Jul-2014
1663,Revenue,CCHD,Supported Living - North,Private & Voluntary Home Care,Smile Independent Living Support Limited,3508.82, 28-Jul-2014
1664,Revenue,CCHD,Supported Living - North,Private & Voluntary Home Care,Smile Independent Living Support Limited,635.17, 28-Jul-2014
1665,Revenue,CCHD,Purchase of Non-Res Care - South,Private & Voluntary Day Care,Smile Independent Living Support Limited,680.94, 21-Jul-2014
1666,Revenue,CCHD,Purchase of Non-Res Care - South,Private & Voluntary Day Care,Smile Independent Living Support Limited,892.16, 21-Jul-2014
1667,Revenue,CCHD,Purchase of Non-Res Care - North,Private & Voluntary Day Care,Smile Independent Living Support Limited,1182.52, 28-Jul-2014
1668,Revenue,CCHD,Purchase of Non-Res Care - North,Private & Voluntary Day Care,Smile Independent Living Support Limited,678.98, 28-Jul-2014
1669,Revenue,CCHD,Purchase of Non-Res Care - North,Private & Voluntary Day Care,Smile Independent Living Support Limited,1245.07, 28-Jul-2014
1670,Revenue,CCHD,Purchase of Non-Res Care - North,Private & Voluntary Day Care,Smile Independent Living Support Limited,1013.50, 28-Jul-2014
1671,Revenue,CCHD,Community Support - South,Preventative Assistance,Spearman Consultancy,510.00, 15-Jul-2014
1672,Revenue,CCHD,Bed Purchasing - Elderly - South,Permanent Residential,Springfield House,9536.14, 08-Jul-2014
1673,Revenue,CCHD,Bed Purchasing - Under 65s PWLD - South,Permanent Residential,St Brigas,2086.44, 08-Jul-2014
1674,Revenue,CCHD,Bed Purchasing - Under 65s PWLD - South,Permanent Residential,St Brigas,3016.52, 08-Jul-2014
1675,Revenue,CCHD,Bed Purchasing - Under 65s PWLD - South,Permanent Residential,St Brigas,2033.44, 08-Jul-2014
1676,Revenue,CCHD,Bed Purchasing - Frenchay Hospital,Permanent Nursing,St George Nursing Home,1320.20, 08-Jul-2014
1677,Revenue,CCHD,Bed Purchasing - Southmead Hospital,Permanent Nursing,St George Nursing Home,1784.32, 08-Jul-2014
1678,Revenue,CCHD,Bed Purchasing - Elderly - South,Permanent Nursing,St George Nursing Home,1320.20, 08-Jul-2014
1679,Revenue,CCHD,Bed Purchasing - Frenchay Hospital,Permanent Nursing,St George Nursing Home,1320.20, 08-Jul-2014
1680,Revenue,CCHD,Bed Purchasing - Southmead Hospital,Permanent Nursing,St George Nursing Home,1332.20, 08-Jul-2014
1681,Revenue,CCHD,Bed Purchasing - Southmead Hospital,Permanent Nursing,St George Nursing Home,1320.20, 08-Jul-2014
1682,Revenue,CCHD,Bed Purchasing - Elderly - South,Respite Planned - Nursing,St George Nursing Home,2270.00, 08-Jul-2014
1683,Revenue,CCHD,Bed Purchasing - Frenchay Hospital,Permanent Nursing,St George Nursing Home,1095.80, 08-Jul-2014
1684,Revenue,CCHD,Bed Purchasing - Southmead Hospital,Permanent Nursing,St George Nursing Home,1320.20, 08-Jul-2014
1685,Revenue,CCHD,Bed Purchasing - Elderly - South,Permanent Nursing,St Roses School,4041.36, 04-Jul-2014
1686,Revenue,CCHD,Bed purchasing - Under 65s PWLD - North,Respite Planned - Residential,St Roses School,1590.26, 08-Jul-2014
1687,Revenue,CCHD,MH Purchasing - Younger,Permanent Nursing,Stanley House,4375.16, 08-Jul-2014
1688,Revenue,CCHD,Bed Purchasing - Under 65s PWLD - South,Permanent Residential,Stepping Stones Re-Sett. Unit,7596.04, 08-Jul-2014
1689,Revenue,CCHD,Bed Purchasing - Frenchay Hospital,Permanent Residential,Stonebow House,1322.56, 08-Jul-2014
1690,Revenue,CCHD,Day Care - North,Private & Voluntary Day Care,Supported Independence Ltd,3517.73, 25-Jul-2014
1691,Revenue,CCHD,Supported Living - North,Private & Voluntary Home Care,Supported Independence Ltd,820.82, 14-Jul-2014
1692,Revenue,CCHD,Day Care - North,Private & Voluntary Day Care,Supported Independence Ltd,3637.11, 10-Jul-2014
1693,Revenue,CCHD,Younger MH non-res purchasing,Private & Voluntary Day Care,Supported Independence Ltd,4155.14, 08-Jul-2014
1694,Revenue,CCHD,Supported Living - North,Private & Voluntary Home Care,Supported Independence Ltd,1081.08, 18-Jul-2014
1695,Revenue,CCHD,Younger MH non-res purchasing,Private & Voluntary Day Care,Supported Independence Ltd,960.96, 31-Jul-2014
1696,Revenue,CCHD,Younger MH non-res purchasing,Private & Voluntary Day Care,Supported Independence Ltd,520.75, 31-Jul-2014
1697,Revenue,CCHD,Section 117 Placements MH Younger,Private & Voluntary Day Care,Supported Independence Ltd,573.60, 31-Jul-2014
1698,Revenue,CCHD,Section 117 Placements MH Younger,Private & Voluntary Day Care,Supported Independence Ltd,2236.50, 31-Jul-2014
1699,Revenue,CCHD,Section 117 Placements MH Younger,Private & Voluntary Day Care,Supported Independence Ltd,2459.17, 31-Jul-2014
1700,Revenue,CCHD,Section 117 Placements MH Younger,Private & Voluntary Day Care,Supported Independence Ltd,521.10, 31-Jul-2014
1701,Revenue,CCHD,Section 117 Placements MH Younger,Private & Voluntary Day Care,Supported Independence Ltd,3698.04, 31-Jul-2014
1702,Revenue,CCHD,Younger MH non-res purchasing,Private & Voluntary Day Care,Supported Independence Ltd,1889.23, 31-Jul-2014
1703,Revenue,CCHD,Supporting People Programme,Grants to Voluntary Bodies,Supported Independence Ltd,6267.67, 01-Jul-2014
1704,Revenue,CCHD,Supporting People Programme,Grants to Voluntary Bodies,Supported Independence Ltd,3031.17, 01-Jul-2014
1705,Revenue,CCHD,Supporting People Programme,Grants to Voluntary Bodies,Supported Independent Living Schemes,4706.75, 01-Jul-2014
1706,Revenue,CCHD,Supporting People Programme,Grants to Voluntary Bodies,Supported Independent Living Schemes,6097.83, 01-Jul-2014
1707,Revenue,CCHD,Day Care - South,Private & Voluntary Day Care,Supporting Options,550.76, 22-Jul-2014
1708,Revenue,CCHD,Supported Living - South,Private & Voluntary Home Care,Supporting Options,1260.89, 25-Jul-2014
1709,Revenue,CCHD,Bed Purchasing - Southmead Hospital,Permanent Nursing,Sutherland House,1403.76, 08-Jul-2014
1710,Revenue,CCHD,Breakthrough and Inclusion Work,Other Supplies & Services,Tackle IT LTD,1805.90, 14-Jul-2014
1711,Revenue,CCHD,Breakthrough and Inclusion Work,Other Supplies & Services,Tackle IT LTD,1645.60, 17-Jul-2014
1712,Revenue,CCHD,Bed Purchasing - Elderly S117- North,Permanent Residential,Templemore Care Home,2232.56, 08-Jul-2014
1713,Revenue,CCHD,Home Care - Elderly - South,Other Small Contracts,Tender Home Care Limited,104.00, 28-Jul-2014
1714,Revenue,CCHD,Home Care - Elderly - North,Other Small Contracts,Tender Home Care Limited,772.00, 28-Jul-2014
1715,Revenue,CCHD,Home Care - Elderly - South,Other Small Contracts,Tender Home Care Limited,104.00, 28-Jul-2014
1716,Revenue,CCHD,Home Care - Elderly - North,Other Small Contracts,Tender Home Care Limited,604.00, 28-Jul-2014
1717,Revenue,CCHD,Home Care - Elderly - South,Other Small Contracts,Tender Home Care Limited,104.00, 29-Jul-2014
1718,Revenue,CCHD,Home Care - Elderly - North,Other Small Contracts,Tender Home Care Limited,652.00, 29-Jul-2014
1719,Revenue,CCHD,Minor Adaptations Service,Operational Equipment,Tewkesbury Saw Co Limited,462.62, 30-Jul-2014
1720,Revenue,CCHD,Bed Purchasing - Under 65s PWLD - South,Permanent Residential,The Ann Coleman Centre,6056.28, 08-Jul-2014
1721,Revenue,CCHD,Bed Purchasing - Elderly - North,Permanent Residential,The Beeches,1739.77, 08-Jul-2014
1722,Revenue,CCHD,Bed Purchasing - Southmead Hospital,Permanent Residential,The Beeches,1777.36, 08-Jul-2014
1723,Revenue,CCHD,Bed Purchasing - Frenchay Hospital,Permanent Residential,The Beeches,1532.40, 08-Jul-2014
1724,Revenue,CCHD,Bed Purchasing - Elderly - South,Permanent Residential,The Beeches,1005.76, 08-Jul-2014
1725,Revenue,CCHD,Day Care - North,Private & Voluntary Day Care,The Brandon Trust,766.08, 07-Jul-2014
1726,Revenue,CCHD,Purchase of Non-Res Care - North,Private & Voluntary Day Care,The Brandon Trust,9497.45, 17-Jul-2014
1727,Revenue,CCHD,Supported Living - North,Private & Voluntary Home Care,The Brandon Trust,8563.20, 24-Jul-2014
1728,Revenue,CCHD,Bed purchasing - Elderly MH - North,Permanent Residential,The Cidermill,1432.20, 08-Jul-2014
1729,Revenue,CCHD,Bed Purchasing - Elderly - North,Permanent Nursing,The Cidermill,1496.20, 08-Jul-2014
1730,Revenue,CCHD,Bed purchasing - Elderly MH - North,Permanent Residential,The Cidermill,994.88, 08-Jul-2014
1731,Revenue,CCHD,Bed Purchasing - Southmead Hospital,Permanent Residential,The Cidermill,733.80, 08-Jul-2014
1732,Revenue,CCHD,Bed purchasing - Elderly MH - North,Permanent Nursing,The Cidermill,1219.08, 08-Jul-2014
1733,Revenue,CCHD,Bed Purchasing - Southmead Hospital,Permanent Residential,The Cidermill,972.28, 08-Jul-2014
1734,Revenue,CCHD,Home Care - Elderly - North,Private & Voluntary Day Care,The Cottage,871.14, 08-Jul-2014
1735,Revenue,CCHD,Home Care - Elderly - North,Private & Voluntary Day Care,The Cottage,1194.78, 08-Jul-2014
1736,Revenue,CCHD,Bed purchasing - Under 65s PWLD - North,Permanent Residential,The David Lewis Centre,5902.76, 08-Jul-2014
1737,Revenue,CCHD,Bed Purchasing - Southmead Hospital,Permanent Residential,The Gables Residential Home,1377.76, 08-Jul-2014
1738,Revenue,CCHD,Bed purchasing - Elderly S117 - South,Permanent Residential,The Gables Residential Home,2246.88, 08-Jul-2014
1739,Revenue,CCHD,Bed Purchasing - Southmead Hospital,Permanent Residential,The Gables Residential Home,978.60, 08-Jul-2014
1740,Revenue,CCHD,Bed Purchasing - Elderly - South,Permanent Residential,The Gables Residential Home,1001.20, 08-Jul-2014
1741,Revenue,CCHD,Bed Purchasing - Elderly - South,Permanent Residential,The Garden House,745.16, 08-Jul-2014
1742,Revenue,CCHD,Bed Purchasing - Elderly - North,Permanent Residential,The Garden House,1167.80, 08-Jul-2014
1743,Revenue,CCHD,Bed Purchasing - Elderly - North,Respite Emergency - Residential,The Garden House,4489.86, 08-Jul-2014
1744,Revenue,CCHD,Bed Purchasing - Elderly - North,Permanent Residential,The Garden House,1939.72, 08-Jul-2014
1745,Revenue,CCHD,Bed Purchasing - Elderly - South,Permanent Residential,The Garden House,1556.24, 08-Jul-2014
1746,Revenue,CCHD,Bed Purchasing - Frenchay Hospital,Permanent Residential,The Garden House,1237.76, 08-Jul-2014
1747,Revenue,CCHD,Bed purchasing - Elderly MH - North,Permanent Residential,The Garden House,1669.76, 08-Jul-2014
1748,Revenue,CCHD,Bed Purchasing - Elderly - South,Permanent Residential,The Garden House,1939.72, 08-Jul-2014
1749,Revenue,CCHD,Bed Purchasing - Elderly - North,Permanent Residential,The Garden House,1657.14, 08-Jul-2014
1750,Revenue,CCHD,Bed Purchasing - Elderly - South,Permanent Residential,The Garden House,1512.28, 08-Jul-2014
1751,Revenue,CCHD,Bed Purchasing - Elderly - North,Permanent Residential,The Garden House,1263.96, 08-Jul-2014
1752,Revenue,CCHD,Bed Purchasing - Elderly - South,Permanent Residential,The Garden House,1397.92, 08-Jul-2014
1753,Revenue,CCHD,Bed Purchasing - Elderly MH - South,Permanent Residential,The Garden House,1222.08, 08-Jul-2014
1754,Revenue,CCHD,Bed purchasing - Elderly MH - North,Permanent Residential,The Grove,1050.16, 08-Jul-2014
1755,Revenue,CCHD,Bed Purchasing - Southmead Hospital,Permanent Residential,The Grove,1980.32, 08-Jul-2014
1756,Revenue,CCHD,Bed Purchasing - Elderly S117- North,Permanent Residential,The Grove,2125.20, 08-Jul-2014
1757,Revenue,CCHD,Bed purchasing - Elderly S117 - South,Permanent Residential,The Grove,2356.44, 08-Jul-2014
1758,Revenue,CCHD,Bed Purchasing - Elderly - North,Permanent Residential,The Grove,1672.20, 08-Jul-2014
1759,Revenue,CCHD,Bed purchasing - Elderly MH - North,Permanent Residential,The Grove,1645.08, 08-Jul-2014
1760,Revenue,CCHD,Bed Purchasing - Frenchay Hospital,Permanent Residential,The Grove,1460.20, 08-Jul-2014
1761,Revenue,CCHD,Bed purchasing - Elderly S117 - South,Permanent Residential,The Grove,2356.44, 08-Jul-2014
1762,Revenue,CCHD,Bed Purchasing - Elderly - North,Permanent Residential,The Grove,1269.96, 08-Jul-2014
1763,Revenue,CCHD,Bed Purchasing - Southmead Hospital,Permanent Residential,The Grove,1277.56, 08-Jul-2014
1764,Revenue,CCHD,Bed purchasing - Elderly MH - North,Permanent Residential,The Grove,1551.12, 08-Jul-2014
1765,Revenue,CCHD,Supporting People Programme,Grants to Voluntary Bodies,The Hatch Camphill Community,1970.74, 01-Jul-2014
1766,Revenue,CCHD,Bed Purchasing - Frenchay Hospital,Permanent Nursing,The Heathers,1258.64, 08-Jul-2014
1767,Revenue,CCHD,Bed Purchasing - Elderly - North,Permanent Nursing,The Heathers,912.64, 08-Jul-2014
1768,Revenue,CCHD,Bed Purchasing - Frenchay Hospital,Permanent Nursing,The Heathers,1328.20, 08-Jul-2014
1769,Revenue,CCHD,Bed Purchasing - Southmead Hospital,Permanent Nursing,The Heathers,1320.20, 08-Jul-2014
1770,Revenue,CCHD,Bed Purchasing - Southmead Hospital,Permanent Nursing,The Heathers,2829.00, 08-Jul-2014
1771,Revenue,CCHD,Bed Purchasing - Southmead Hospital,Permanent Nursing,The Heathers,1320.20, 08-Jul-2014
1772,Revenue,CCHD,South Glos Users in South Glos Homes,Permanent Nursing,The Heathers,2070.33, 08-Jul-2014
1773,Revenue,CCHD,Bed Purchasing - Elderly - North,Permanent Residential,The Heathers,1432.20, 08-Jul-2014
1774,Revenue,CCHD,South Glos Users in South Glos Homes,Permanent Nursing,The Heathers,1314.84, 08-Jul-2014
1775,Revenue,CCHD,Bed Purchasing - Frenchay Hospital,Permanent Nursing,The Heathers,1320.20, 08-Jul-2014
1776,Revenue,CCHD,South Glos Users in South Glos Homes,Permanent Nursing,The Heathers,1108.90, 08-Jul-2014
1777,Revenue,CCHD,Bed Purchasing - Southmead Hospital,Permanent Nursing,The Heathers,1298.40, 08-Jul-2014
1778,Revenue,CCHD,Bed Purchasing - Elderly - North,Permanent Nursing,The Heathers,1357.88, 08-Jul-2014
1779,Revenue,CCHD,Bed Purchasing - Frenchay Hospital,Permanent Nursing,The Heathers,1208.68, 08-Jul-2014
1780,Revenue,CCHD,Bed Purchasing - Frenchay Hospital,Permanent Nursing,The Heathers,1320.20, 08-Jul-2014
1781,Revenue,CCHD,South Glos Users in South Glos Homes,Permanent Nursing,The Heathers,1314.84, 08-Jul-2014
1782,Revenue,CCHD,South Glos Users in South Glos Homes,Permanent Nursing,The Heathers,878.32, 08-Jul-2014
1783,Revenue,CCHD,Bed Purchasing - Frenchay Hospital,Permanent Nursing,The Heathers,990.32, 08-Jul-2014
1784,Revenue,CCHD,Bed Purchasing - Elderly - North,Permanent Nursing,The Heathers,1320.20, 08-Jul-2014
